Date,Purpose/Category (T),Department/Service (T),Amount Excl VAT,Beneficiary (T)
17/03/2021,Closed Business Lockdown Grants (COVID-19),Closed Business Lockdown Grants (COVID-19),"4,000.00",1 Oak Ltd T/A Starbucks
17/03/2021,Local Restrictions Support Grants � Mandatory Closed (COVID-19),Local Restrictions Support Grants (COVID-19),"2,001.00",1 Oak Ltd T/A Starbucks
17/03/2021,Local Restrictions Support Grants � Mandatory Closed (COVID-19),Local Restrictions Support Grants (COVID-19),"2,096.00",1 Oak Ltd T/A Starbucks
17/03/2021,Local Restrictions Support Grants � Mandatory Closed (COVID-19),Local Restrictions Support Grants (COVID-19),"1,334.00",1 Oak Ltd T/A Starbucks
17/03/2021,Local Restrictions Support Grants � Mandatory Closed (COVID-19),Local Restrictions Support Grants (COVID-19),667.00,1 Oak Ltd T/A Starbucks
17/03/2021,Local Restrictions Support Grants � Mandatory Closed (COVID-19),Local Restrictions Support Grants (COVID-19),667.00,1 Oak Ltd T/A Starbucks
10/03/2021,Closed Business Lockdown Grants (COVID-19),Closed Business Lockdown Grants (COVID-19),"9,000.00",141 Products Ltd
10/03/2021,Local Restrictions Support Grants � Mandatory Closed (COVID-19),Local Restrictions Support Grants (COVID-19),"4,500.00",141 Products Ltd
10/03/2021,Local Restrictions Support Grants � Mandatory Closed (COVID-19),Local Restrictions Support Grants (COVID-19),"4,714.00",141 Products Ltd
17/02/2021,Closed Business Lockdown Grants (COVID-19),Closed Business Lockdown Grants (COVID-19),"4,000.00",1st Uttoxeter Scount Group
17/02/2021,Local Restrictions Support Grants � Mandatory Closed (COVID-19),Local Restrictions Support Grants (COVID-19),"1,334.00",1st Uttoxeter Scount Group
17/02/2021,Local Restrictions Support Grants � Mandatory Closed (COVID-19),Local Restrictions Support Grants (COVID-19),"2,001.00",1st Uttoxeter Scount Group
01/03/2021,Local Restrictions Support Grants � Mandatory Closed (COVID-19),Local Restrictions Support Grants (COVID-19),"2,096.00",1st Uttoxeter Scount Group
20/01/2021,Closed Business Lockdown Grants (COVID-19),Closed Business Lockdown Grants (COVID-19),"4,000.00",2 Old Hall Cottage
20/01/2021,Local Restrictions Support Grants � Mandatory Closed (COVID-19),Local Restrictions Support Grants (COVID-19),"2,001.00",2 Old Hall Cottage
22/01/2021,Local Restrictions Support Grants � Mandatory Closed (COVID-19),Local Restrictions Support Grants (COVID-19),667.00,2 Old Hall Cottage
22/01/2021,Local Restrictions Support Grants � Mandatory Closed (COVID-19),Local Restrictions Support Grants (COVID-19),667.00,2 Old Hall Cottage
01/03/2021,Local Restrictions Support Grants � Mandatory Closed (COVID-19),Local Restrictions Support Grants (COVID-19),"2,048.35",2 Old Hall Cottage
29/01/2021,Closed Business Lockdown Grants (COVID-19),Closed Business Lockdown Grants (COVID-19),"4,000.00",38 High Street Ltd
22/01/2021,Local Restrictions Support Grants � Mandatory Closed (COVID-19),Local Restrictions Support Grants (COVID-19),"1,334.00",38 High Street Ltd
29/01/2021,Local Restrictions Support Grants � Mandatory Closed (COVID-19),Local Restrictions Support Grants (COVID-19),"2,001.00",38 High Street Ltd
01/03/2021,Local Restrictions Support Grants � Mandatory Closed (COVID-19),Local Restrictions Support Grants (COVID-19),"2,096.00",38 High Street Ltd
20/01/2021,Closed Business Lockdown Grants (COVID-19),Closed Business Lockdown Grants (COVID-19),"4,000.00",99 Station Street Limited
08/01/2021,Local Restrictions Support Grants � Mandatory Closed (COVID-19),Local Restrictions Support Grants (COVID-19),667.00,99 Station Street Limited
08/01/2021,Local Restrictions Support Grants � Mandatory Closed (COVID-19),Local Restrictions Support Grants (COVID-19),667.00,99 Station Street Limited
20/01/2021,Local Restrictions Support Grants � Mandatory Closed (COVID-19),Local Restrictions Support Grants (COVID-19),"2,001.00",99 Station Street Limited
01/03/2021,Local Restrictions Support Grants � Mandatory Closed (COVID-19),Local Restrictions Support Grants (COVID-19),"2,048.35",99 Station Street Limited
20/01/2021,Closed Business Lockdown Grants (COVID-19),Closed Business Lockdown Grants (COVID-19),"6,000.00",A & G Uttoxeter
08/01/2021,Local Restrictions Support Grants � Mandatory Closed (COVID-19),Local Restrictions Support Grants (COVID-19),"1,000.00",A & G Uttoxeter
08/01/2021,Local Restrictions Support Grants � Mandatory Closed (COVID-19),Local Restrictions Support Grants (COVID-19),"1,000.00",A & G Uttoxeter
20/01/2021,Local Restrictions Support Grants � Mandatory Closed (COVID-19),Local Restrictions Support Grants (COVID-19),"3,000.00",A & G Uttoxeter
03/02/2021,Christmas Support Payment - Wet Led Pubs (COVID-19),Local Restrictions Support Grants (COVID-19),"1,000.00",A & G Uttoxeter
01/03/2021,Local Restrictions Support Grants � Mandatory Closed (COVID-19),Local Restrictions Support Grants (COVID-19),"3,071.57",A & G Uttoxeter
20/01/2021,Closed Business Lockdown Grants (COVID-19),Closed Business Lockdown Grants (COVID-19),"4,000.00",A and G Uttoxeter
20/01/2021,Closed Business Lockdown Grants (COVID-19),Closed Business Lockdown Grants (COVID-19),"4,000.00",A and G Uttoxeter
20/01/2021,Closed Business Lockdown Grants (COVID-19),Closed Business Lockdown Grants (COVID-19),"4,000.00",A and G Uttoxeter
08/01/2021,Local Restrictions Support Grants � Mandatory Closed (COVID-19),Local Restrictions Support Grants (COVID-19),667.00,A and G Uttoxeter
08/01/2021,Local Restrictions Support Grants � Mandatory Closed (COVID-19),Local Restrictions Support Grants (COVID-19),667.00,A and G Uttoxeter
08/01/2021,Local Restrictions Support Grants � Mandatory Closed (COVID-19),Local Restrictions Support Grants (COVID-19),667.00,A and G Uttoxeter
08/01/2021,Local Restrictions Support Grants � Mandatory Closed (COVID-19),Local Restrictions Support Grants (COVID-19),667.00,A and G Uttoxeter
13/01/2021,Local Restrictions Support Grants � Mandatory Closed (COVID-19),Local Restrictions Support Grants (COVID-19),"1,334.00",A and G Uttoxeter
20/01/2021,Local Restrictions Support Grants � Mandatory Closed (COVID-19),Local Restrictions Support Grants (COVID-19),"2,001.00",A and G Uttoxeter
20/01/2021,Local Restrictions Support Grants � Mandatory Closed (COVID-19),Local Restrictions Support Grants (COVID-19),"2,001.00",A and G Uttoxeter
20/01/2021,Local Restrictions Support Grants � Mandatory Closed (COVID-19),Local Restrictions Support Grants (COVID-19),"2,001.00",A and G Uttoxeter
20/01/2021,Christmas Support Payment - Wet Led Pubs (COVID-19),Local Restrictions Support Grants (COVID-19),"1,000.00",A and G Uttoxeter
22/01/2021,Local Restrictions Support Grants � Mandatory Closed (COVID-19),Local Restrictions Support Grants (COVID-19),667.00,A and G Uttoxeter
22/01/2021,Local Restrictions Support Grants � Mandatory Closed (COVID-19),Local Restrictions Support Grants (COVID-19),667.00,A and G Uttoxeter
03/02/2021,Christmas Support Payment - Wet Led Pubs (COVID-19),Local Restrictions Support Grants (COVID-19),"1,000.00",A and G Uttoxeter
03/02/2021,Christmas Support Payment - Wet Led Pubs (COVID-19),Local Restrictions Support Grants (COVID-19),"1,000.00",A and G Uttoxeter
01/03/2021,Local Restrictions Support Grants � Mandatory Closed (COVID-19),Local Restrictions Support Grants (COVID-19),"2,048.35",A and G Uttoxeter
01/03/2021,Local Restrictions Support Grants � Mandatory Closed (COVID-19),Local Restrictions Support Grants (COVID-19),"2,048.35",A and G Uttoxeter
01/03/2021,Local Restrictions Support Grants � Mandatory Closed (COVID-19),Local Restrictions Support Grants (COVID-19),"2,048.35",A and G Uttoxeter
20/01/2021,Closed Business Lockdown Grants (COVID-19),Closed Business Lockdown Grants (COVID-19),"4,000.00",A Bunch of Blooms
20/01/2021,Local Restrictions Support Grants � Mandatory Closed (COVID-19),Local Restrictions Support Grants (COVID-19),"2,001.00",A Bunch of Blooms
01/03/2021,Local Restrictions Support Grants � Mandatory Closed (COVID-19),Local Restrictions Support Grants (COVID-19),"2,096.00",A Bunch of Blooms
24/02/2021,Closed Business Lockdown Grants (COVID-19),Closed Business Lockdown Grants (COVID-19),"9,000.00",A Write Card Ltd
24/02/2021,Local Restrictions Support Grants � Mandatory Closed (COVID-19),Local Restrictions Support Grants (COVID-19),535.71,A Write Card Ltd
24/02/2021,Local Restrictions Support Grants � Mandatory Closed (COVID-19),Local Restrictions Support Grants (COVID-19),"4,500.00",A Write Card Ltd
24/02/2021,Local Restrictions Support Grants � Mandatory Closed (COVID-19),Local Restrictions Support Grants (COVID-19),"3,000.00",A Write Card Ltd
01/03/2021,Local Restrictions Support Grants � Mandatory Closed (COVID-19),Local Restrictions Support Grants (COVID-19),"4,714.00",A Write Card Ltd
18/01/2021,"Seeds, Plants and Shrubs",Horticultural Resource Centre,525.00,A.E. Roberts Nurserymen Ltd
08/03/2021,Closed Business Lockdown Grants (COVID-19),Closed Business Lockdown Grants (COVID-19),"4,000.00",Abbots Bromley Physiotherapy Ltd
08/03/2021,Local Restrictions Support Grants � Mandatory Closed (COVID-19),Local Restrictions Support Grants (COVID-19),667.00,Abbots Bromley Physiotherapy Ltd
08/03/2021,Local Restrictions Support Grants � Mandatory Closed (COVID-19),Local Restrictions Support Grants (COVID-19),667.00,Abbots Bromley Physiotherapy Ltd
08/03/2021,Local Restrictions Support Grants � Mandatory Closed (COVID-19),Local Restrictions Support Grants (COVID-19),"1,334.00",Abbots Bromley Physiotherapy Ltd
08/03/2021,Local Restrictions Support Grants � Mandatory Closed (COVID-19),Local Restrictions Support Grants (COVID-19),"2,001.00",Abbots Bromley Physiotherapy Ltd
08/03/2021,Local Restrictions Support Grants � Mandatory Closed (COVID-19),Local Restrictions Support Grants (COVID-19),"2,096.00",Abbots Bromley Physiotherapy Ltd
20/01/2021,Closed Business Lockdown Grants (COVID-19),Closed Business Lockdown Grants (COVID-19),"6,000.00",Abbots Bromley village Hall
20/01/2021,Local Restrictions Support Grants � Mandatory Closed (COVID-19),Local Restrictions Support Grants (COVID-19),"3,000.00",Abbots Bromley village Hall
01/03/2021,Local Restrictions Support Grants � Mandatory Closed (COVID-19),Local Restrictions Support Grants (COVID-19),"3,143.00",Abbots Bromley village Hall
08/03/2021,Local Restrictions Support Grants � Mandatory Closed (COVID-19),Local Restrictions Support Grants (COVID-19),793.33,Abbots Bromley village Hall
17/02/2021,Christmas Support Payment - Wet Led Pubs (COVID-19),Local Restrictions Support Grants (COVID-19),"1,000.00",ACCOUNTS DEPARTMENT
12/12/2020,Repairs & Maintenance to Buildings,Burton Retail Market,686.79,Ace Electrical Services
20/01/2021,Closed Business Lockdown Grants (COVID-19),Closed Business Lockdown Grants (COVID-19),"4,000.00",Active Athlete Ltd
20/01/2021,Local Restrictions Support Grants � Mandatory Closed (COVID-19),Local Restrictions Support Grants (COVID-19),"2,001.00",Active Athlete Ltd
01/03/2021,Local Restrictions Support Grants � Mandatory Closed (COVID-19),Local Restrictions Support Grants (COVID-19),"2,096.00",Active Athlete Ltd
24/03/2021,Closed Business Lockdown Grants (COVID-19),Closed Business Lockdown Grants (COVID-19),"6,000.00",AD07 Trading Ltd
24/03/2021,Local Restrictions Support Grants � Mandatory Closed (COVID-19),Local Restrictions Support Grants (COVID-19),"2,000.00",AD07 Trading Ltd
24/03/2021,Local Restrictions Support Grants � Mandatory Closed (COVID-19),Local Restrictions Support Grants (COVID-19),"3,000.00",AD07 Trading Ltd
24/03/2021,Local Restrictions Support Grants � Mandatory Closed (COVID-19),Local Restrictions Support Grants (COVID-19),"3,143.00",AD07 Trading Ltd
17/02/2021,Closed Business Lockdown Grants (COVID-19),Closed Business Lockdown Grants (COVID-19),"4,000.00",Adrenaline MX Ltd
03/02/2021,Local Restrictions Support Grants � Mandatory Closed (COVID-19),Local Restrictions Support Grants (COVID-19),"1,334.00",Adrenaline MX Ltd
17/02/2021,Local Restrictions Support Grants � Mandatory Closed (COVID-19),Local Restrictions Support Grants (COVID-19),"2,001.00",Adrenaline MX Ltd
01/03/2021,Local Restrictions Support Grants � Mandatory Closed (COVID-19),Local Restrictions Support Grants (COVID-19),"2,096.00",Adrenaline MX Ltd
24/02/2021,Local Restrictions Support Grants � Discretionary (COVID-19),Local Restrictions Support Grants (COVID-19),"8,000.00",ADVANCE LED LIGHTING SOLUTIONS LTD
17/12/2020,"Fertilisers, Weedkiller and Insecticides",Street Cleaning,"1,597.60",Agrovista UK Ltd
20/12/2020,Accommodation Costs - B & B/Hotels,Housing Options - Accommodation,"1,080.00",AH Investment Solutions Limited
20/12/2020,Accommodation Costs - B & B/Hotels,Housing Options - Accommodation,"1,260.00",AH Investment Solutions Limited
20/12/2020,Accommodation Costs - B & B/Hotels,Next Steps Accommodation Programme (NSAP),630.00,AH Investment Solutions Limited
20/01/2021,Closed Business Lockdown Grants (COVID-19),Closed Business Lockdown Grants (COVID-19),"4,000.00",Ahoy Sailor Vintage
20/01/2021,Local Restrictions Support Grants � Mandatory Closed (COVID-19),Local Restrictions Support Grants (COVID-19),"2,001.00",Ahoy Sailor Vintage
01/03/2021,Local Restrictions Support Grants � Mandatory Closed (COVID-19),Local Restrictions Support Grants (COVID-19),"2,096.00",Ahoy Sailor Vintage
25/02/2021,Consultants,Business Rate Collection,"1,050.00",Airey Consultancy Services Ltd
09/10/2020,DFG Contractor Payments,Housing Standards,"2,495.09",AKW Medi-Care Ltd
01/12/2020,DFG Contractor Payments,Housing Standards,"2,495.09",AKW Medi-Care Ltd
23/02/2021,DFG Contractor Payments,Housing Standards,"2,495.09",AKW Medi-Care Ltd
23/02/2021,DFG Contractor Payments,Housing Standards,"2,495.09",AKW Medi-Care Ltd
20/01/2021,Closed Business Lockdown Grants (COVID-19),Closed Business Lockdown Grants (COVID-19),"6,000.00",albion bathrooms ltd
20/01/2021,Local Restrictions Support Grants � Mandatory Closed (COVID-19),Local Restrictions Support Grants (COVID-19),"3,000.00",albion bathrooms ltd
01/03/2021,Local Restrictions Support Grants � Mandatory Closed (COVID-19),Local Restrictions Support Grants (COVID-19),"3,143.00",albion bathrooms ltd
24/03/2021,Closed Business Lockdown Grants (COVID-19),Closed Business Lockdown Grants (COVID-19),"4,000.00",Allestree
24/03/2021,Local Restrictions Support Grants � Mandatory Closed (COVID-19),Local Restrictions Support Grants (COVID-19),"2,001.00",Allestree
24/03/2021,Local Restrictions Support Grants � Mandatory Closed (COVID-19),Local Restrictions Support Grants (COVID-19),667.00,Allestree
24/03/2021,Local Restrictions Support Grants � Mandatory Closed (COVID-19),Local Restrictions Support Grants (COVID-19),"1,334.00",Allestree
24/03/2021,Local Restrictions Support Grants � Mandatory Closed (COVID-19),Local Restrictions Support Grants (COVID-19),667.00,Allestree
24/03/2021,Local Restrictions Support Grants � Mandatory Closed (COVID-19),Local Restrictions Support Grants (COVID-19),"2,096.00",Allestree
03/03/2021,Closed Business Lockdown Grants (COVID-19),Closed Business Lockdown Grants (COVID-19),"4,000.00",allora fashion ltd
03/03/2021,Closed Business Lockdown Grants (COVID-19),Closed Business Lockdown Grants (COVID-19),"4,000.00",allora fashion ltd
03/03/2021,Closed Business Lockdown Grants (COVID-19),Closed Business Lockdown Grants (COVID-19),"4,000.00",allora fashion ltd
03/03/2021,Local Restrictions Support Grants � Mandatory Closed (COVID-19),Local Restrictions Support Grants (COVID-19),"2,001.00",allora fashion ltd
03/03/2021,Local Restrictions Support Grants � Mandatory Closed (COVID-19),Local Restrictions Support Grants (COVID-19),"2,001.00",allora fashion ltd
03/03/2021,Local Restrictions Support Grants � Mandatory Closed (COVID-19),Local Restrictions Support Grants (COVID-19),"2,096.00",allora fashion ltd
03/03/2021,Local Restrictions Support Grants � Mandatory Closed (COVID-19),Local Restrictions Support Grants (COVID-19),"2,096.00",allora fashion ltd
03/03/2021,Local Restrictions Support Grants � Mandatory Closed (COVID-19),Local Restrictions Support Grants (COVID-19),"1,334.00",allora fashion ltd
03/03/2021,Local Restrictions Support Grants � Mandatory Closed (COVID-19),Local Restrictions Support Grants (COVID-19),"1,334.00",allora fashion ltd
03/03/2021,Local Restrictions Support Grants � Mandatory Closed (COVID-19),Local Restrictions Support Grants (COVID-19),"2,001.00",allora fashion ltd
03/03/2021,Local Restrictions Support Grants � Mandatory Closed (COVID-19),Local Restrictions Support Grants (COVID-19),"2,096.00",allora fashion ltd
03/03/2021,Local Restrictions Support Grants � Mandatory Closed (COVID-19),Local Restrictions Support Grants (COVID-19),"1,334.00",allora fashion ltd
20/01/2021,Closed Business Lockdown Grants (COVID-19),Closed Business Lockdown Grants (COVID-19),"6,000.00",Alpha One Retail Ltd
04/01/2021,Local Restrictions Support Grants � Mandatory Closed (COVID-19),Local Restrictions Support Grants (COVID-19),"2,000.00",Alpha One Retail Ltd
20/01/2021,Local Restrictions Support Grants � Mandatory Closed (COVID-19),Local Restrictions Support Grants (COVID-19),"3,000.00",Alpha One Retail Ltd
01/03/2021,Local Restrictions Support Grants � Mandatory Closed (COVID-19),Local Restrictions Support Grants (COVID-19),"3,143.00",Alpha One Retail Ltd
28/02/2021,General Grants,Housing Options,"2,500.00",Altair Consultancy and Advisory Services Limited
20/01/2021,Closed Business Lockdown Grants (COVID-19),Closed Business Lockdown Grants (COVID-19),"6,000.00",Amber Taverns Limited
15/01/2021,Local Restrictions Support Grants � Mandatory Closed (COVID-19),Local Restrictions Support Grants (COVID-19),"2,000.00",Amber Taverns Limited
20/01/2021,Local Restrictions Support Grants � Mandatory Closed (COVID-19),Local Restrictions Support Grants (COVID-19),"3,000.00",Amber Taverns Limited
22/01/2021,Local Restrictions Support Grants � Mandatory Closed (COVID-19),Local Restrictions Support Grants (COVID-19),"1,000.00",Amber Taverns Limited
22/01/2021,Local Restrictions Support Grants � Mandatory Closed (COVID-19),Local Restrictions Support Grants (COVID-19),"1,000.00",Amber Taverns Limited
01/03/2021,Local Restrictions Support Grants � Mandatory Closed (COVID-19),Local Restrictions Support Grants (COVID-19),"3,071.57",Amber Taverns Limited
24/02/2021,Christmas Support Payment - Wet Led Pubs (COVID-19),Local Restrictions Support Grants (COVID-19),"1,000.00",Amber Taverns Ltd
20/01/2021,Closed Business Lockdown Grants (COVID-19),Closed Business Lockdown Grants (COVID-19),"4,000.00",An Individual
15/01/2021,Local Restrictions Support Grants � Mandatory Closed (COVID-19),Local Restrictions Support Grants (COVID-19),"1,334.00",An Individual
20/01/2021,Local Restrictions Support Grants � Mandatory Closed (COVID-19),Local Restrictions Support Grants (COVID-19),"2,001.00",An Individual
01/03/2021,Local Restrictions Support Grants � Mandatory Closed (COVID-19),Local Restrictions Support Grants (COVID-19),"2,096.00",An Individual
20/01/2021,Closed Business Lockdown Grants (COVID-19),Closed Business Lockdown Grants (COVID-19),"4,000.00",An Individual
08/01/2021,Local Restrictions Support Grants � Mandatory Closed (COVID-19),Local Restrictions Support Grants (COVID-19),667.00,An Individual
08/01/2021,Local Restrictions Support Grants � Mandatory Closed (COVID-19),Local Restrictions Support Grants (COVID-19),667.00,An Individual
20/01/2021,Local Restrictions Support Grants � Mandatory Closed (COVID-19),Local Restrictions Support Grants (COVID-19),"2,001.00",An Individual
01/03/2021,Local Restrictions Support Grants � Mandatory Closed (COVID-19),Local Restrictions Support Grants (COVID-19),"2,048.35",An Individual
10/02/2021,Closed Business Lockdown Grants (COVID-19),Closed Business Lockdown Grants (COVID-19),"4,000.00",An Individual
10/02/2021,Local Restrictions Support Grants � Mandatory Closed (COVID-19),Local Restrictions Support Grants (COVID-19),"1,334.00",An Individual
10/02/2021,Local Restrictions Support Grants � Mandatory Closed (COVID-19),Local Restrictions Support Grants (COVID-19),"2,001.00",An Individual
01/03/2021,Local Restrictions Support Grants � Mandatory Closed (COVID-19),Local Restrictions Support Grants (COVID-19),"2,096.00",An Individual
20/01/2021,Closed Business Lockdown Grants (COVID-19),Closed Business Lockdown Grants (COVID-19),"4,000.00",An Individual
08/01/2021,Local Restrictions Support Grants � Mandatory Closed (COVID-19),Local Restrictions Support Grants (COVID-19),"1,334.00",An Individual
20/01/2021,Local Restrictions Support Grants � Mandatory Closed (COVID-19),Local Restrictions Support Grants (COVID-19),"2,001.00",An Individual
01/03/2021,Local Restrictions Support Grants � Mandatory Closed (COVID-19),Local Restrictions Support Grants (COVID-19),"2,096.00",An Individual
20/01/2021,Closed Business Lockdown Grants (COVID-19),Closed Business Lockdown Grants (COVID-19),"6,000.00",An Individual
20/01/2021,Local Restrictions Support Grants � Mandatory Closed (COVID-19),Local Restrictions Support Grants (COVID-19),"3,000.00",An Individual
22/01/2021,Local Restrictions Support Grants � Mandatory Closed (COVID-19),Local Restrictions Support Grants (COVID-19),"1,000.00",An Individual
22/01/2021,Local Restrictions Support Grants � Mandatory Closed (COVID-19),Local Restrictions Support Grants (COVID-19),"1,000.00",An Individual
01/03/2021,Local Restrictions Support Grants � Mandatory Closed (COVID-19),Local Restrictions Support Grants (COVID-19),"3,071.57",An Individual
13/01/2021,Local Restrictions Support Grants � Discretionary (COVID-19),Local Restrictions Support Grants (COVID-19),"1,334.00",An Individual
24/02/2021,Local Restrictions Support Grants � Discretionary (COVID-19),Local Restrictions Support Grants (COVID-19),"8,666.00",An Individual
20/01/2021,Closed Business Lockdown Grants (COVID-19),Closed Business Lockdown Grants (COVID-19),"4,000.00",An Individual
06/01/2021,Local Restrictions Support Grants � Mandatory Closed (COVID-19),Local Restrictions Support Grants (COVID-19),"1,334.00",An Individual
20/01/2021,Local Restrictions Support Grants � Mandatory Closed (COVID-19),Local Restrictions Support Grants (COVID-19),"2,001.00",An Individual
01/03/2021,Local Restrictions Support Grants � Mandatory Closed (COVID-19),Local Restrictions Support Grants (COVID-19),"2,096.00",An Individual
20/01/2021,Closed Business Lockdown Grants (COVID-19),Closed Business Lockdown Grants (COVID-19),"4,000.00",An Individual
20/01/2021,Local Restrictions Support Grants � Mandatory Closed (COVID-19),Local Restrictions Support Grants (COVID-19),"2,001.00",An Individual
01/03/2021,Local Restrictions Support Grants � Mandatory Closed (COVID-19),Local Restrictions Support Grants (COVID-19),"2,096.00",An Individual
20/01/2021,Closed Business Lockdown Grants (COVID-19),Closed Business Lockdown Grants (COVID-19),"4,000.00",An Individual
20/01/2021,Local Restrictions Support Grants � Mandatory Closed (COVID-19),Local Restrictions Support Grants (COVID-19),"2,001.00",An Individual
01/03/2021,Local Restrictions Support Grants � Mandatory Closed (COVID-19),Local Restrictions Support Grants (COVID-19),"2,096.00",An Individual
20/01/2021,Closed Business Lockdown Grants (COVID-19),Closed Business Lockdown Grants (COVID-19),"4,000.00",An Individual
20/01/2021,Local Restrictions Support Grants � Mandatory Closed (COVID-19),Local Restrictions Support Grants (COVID-19),"2,001.00",An Individual
01/03/2021,Local Restrictions Support Grants � Mandatory Closed (COVID-19),Local Restrictions Support Grants (COVID-19),"2,096.00",An Individual
20/01/2021,Closed Business Lockdown Grants (COVID-19),Closed Business Lockdown Grants (COVID-19),"4,000.00",An Individual
20/01/2021,Local Restrictions Support Grants � Mandatory Closed (COVID-19),Local Restrictions Support Grants (COVID-19),"2,001.00",An Individual
01/03/2021,Local Restrictions Support Grants � Mandatory Closed (COVID-19),Local Restrictions Support Grants (COVID-19),"2,096.00",An Individual
19/03/2021,Flood Compensation Payments,Flood Compensation Payments,"5,000.00",An Individual
04/01/2021,Flood Compensation Payments,Flood Compensation Payments,"5,000.00",An Individual
22/02/2021,Flood Compensation Payments,Flood Compensation Payments,"4,939.75",An Individual
15/02/2021,Flood Compensation Payments,Flood Compensation Payments,"5,000.00",An Individual
11/01/2021,Flood Compensation Payments,Flood Compensation Payments,"5,000.00",An Individual
08/02/2021,Flood Compensation Payments,Flood Compensation Payments,"4,229.00",An Individual
19/03/2021,Flood Compensation Payments,Flood Compensation Payments,"3,306.00",An Individual
15/02/2021,Flood Compensation Payments,Flood Compensation Payments,"4,939.75",An Individual
19/03/2021,Flood Compensation Payments,Flood Compensation Payments,"5,000.00",An Individual
29/01/2021,Flood Compensation Payments,Flood Compensation Payments,"2,952.00",An Individual
17/03/2021,Flood Compensation Payments,Flood Compensation Payments,"5,000.00",An Individual
01/03/2021,Flood Compensation Payments,Flood Compensation Payments,"3,691.40",An Individual
03/03/2021,Flood Compensation Payments,Flood Compensation Payments,"5,000.00",An Individual
25/01/2021,Flood Compensation Payments,Flood Compensation Payments,"5,000.00",An Individual
04/01/2021,Flood Compensation Payments,Flood Compensation Payments,"4,003.40",An Individual
04/02/2021,Test and Trace Payments - Local Discretionary Scheme (COVID-19),Test and Trace Payments (COVID-19),500.00,An Individual
09/02/2021,Test and Trace Payments - Local Discretionary Scheme (COVID-19),Test and Trace Payments (COVID-19),500.00,An Individual
26/01/2021,Test and Trace Payments - Standard Scheme (COVID-19),Test and Trace Payments (COVID-19),500.00,An Individual
18/03/2021,Test and Trace Payments - Local Discretionary Scheme (COVID-19),Test and Trace Payments (COVID-19),500.00,An Individual
18/03/2021,Test and Trace Payments - Standard Scheme (COVID-19),Test and Trace Payments (COVID-19),500.00,An Individual
09/03/2021,Test and Trace Payments - Local Discretionary Scheme (COVID-19),Test and Trace Payments (COVID-19),500.00,An Individual
28/01/2021,Test and Trace Payments - Local Discretionary Scheme (COVID-19),Test and Trace Payments (COVID-19),500.00,An Individual
09/03/2021,Test and Trace Payments - Local Discretionary Scheme (COVID-19),Test and Trace Payments (COVID-19),500.00,An Individual
23/03/2021,Test and Trace Payments - Standard Scheme (COVID-19),Test and Trace Payments (COVID-19),500.00,An Individual
16/03/2021,Test and Trace Payments - Standard Scheme (COVID-19),Test and Trace Payments (COVID-19),500.00,An Individual
18/03/2021,Test and Trace Payments - Standard Scheme (COVID-19),Test and Trace Payments (COVID-19),500.00,An Individual
07/01/2021,Test and Trace Payments - Standard Scheme (COVID-19),Test and Trace Payments (COVID-19),500.00,An Individual
26/01/2021,Test and Trace Payments - Standard Scheme (COVID-19),Test and Trace Payments (COVID-19),500.00,An Individual
12/01/2021,Test and Trace Payments - Standard Scheme (COVID-19),Test and Trace Payments (COVID-19),500.00,An Individual
09/02/2021,Test and Trace Payments - Standard Scheme (COVID-19),Test and Trace Payments (COVID-19),500.00,An Individual
09/03/2021,Test and Trace Payments - Standard Scheme (COVID-19),Test and Trace Payments (COVID-19),500.00,An Individual
31/03/2021,Test and Trace Payments - Standard Scheme (COVID-19),Test and Trace Payments (COVID-19),500.00,An Individual
09/02/2021,Test and Trace Payments - Standard Scheme (COVID-19),Test and Trace Payments (COVID-19),500.00,An Individual
28/01/2021,Test and Trace Payments - Local Discretionary Scheme (COVID-19),Test and Trace Payments (COVID-19),500.00,An Individual
02/02/2021,Test and Trace Payments - Standard Scheme (COVID-19),Test and Trace Payments (COVID-19),500.00,An Individual
23/02/2021,Test and Trace Payments - Standard Scheme (COVID-19),Test and Trace Payments (COVID-19),500.00,An Individual
02/03/2021,Test and Trace Payments - Standard Scheme (COVID-19),Test and Trace Payments (COVID-19),500.00,An Individual
11/02/2021,Test and Trace Payments - Standard Scheme (COVID-19),Test and Trace Payments (COVID-19),500.00,An Individual
04/03/2021,Test and Trace Payments - Local Discretionary Scheme (COVID-19),Test and Trace Payments (COVID-19),500.00,An Individual
14/01/2021,Test and Trace Payments - Standard Scheme (COVID-19),Test and Trace Payments (COVID-19),500.00,An Individual
26/01/2021,Test and Trace Payments - Standard Scheme (COVID-19),Test and Trace Payments (COVID-19),500.00,An Individual
02/02/2021,Test and Trace Payments - Standard Scheme (COVID-19),Test and Trace Payments (COVID-19),500.00,An Individual
19/01/2021,Test and Trace Payments - Standard Scheme (COVID-19),Test and Trace Payments (COVID-19),500.00,An Individual
12/01/2021,Test and Trace Payments - Standard Scheme (COVID-19),Test and Trace Payments (COVID-19),500.00,An Individual
07/01/2021,Test and Trace Payments - Standard Scheme (COVID-19),Test and Trace Payments (COVID-19),500.00,An Individual
19/01/2021,Test and Trace Payments - Standard Scheme (COVID-19),Test and Trace Payments (COVID-19),500.00,An Individual
16/03/2021,Test and Trace Payments - Standard Scheme (COVID-19),Test and Trace Payments (COVID-19),500.00,An Individual
31/03/2021,Test and Trace Payments - Local Discretionary Scheme (COVID-19),Test and Trace Payments (COVID-19),500.00,An Individual
12/01/2021,Test and Trace Payments - Standard Scheme (COVID-19),Test and Trace Payments (COVID-19),500.00,An Individual
09/03/2021,Test and Trace Payments - Local Discretionary Scheme (COVID-19),Test and Trace Payments (COVID-19),500.00,An Individual
02/03/2021,Test and Trace Payments - Standard Scheme (COVID-19),Test and Trace Payments (COVID-19),500.00,An Individual
26/01/2021,Test and Trace Payments - Standard Scheme (COVID-19),Test and Trace Payments (COVID-19),500.00,An Individual
14/01/2021,Test and Trace Payments - Standard Scheme (COVID-19),Test and Trace Payments (COVID-19),500.00,An Individual
26/01/2021,Test and Trace Payments - Local Discretionary Scheme (COVID-19),Test and Trace Payments (COVID-19),500.00,An Individual
19/01/2021,Test and Trace Payments - Standard Scheme (COVID-19),Test and Trace Payments (COVID-19),500.00,An Individual
02/02/2021,Test and Trace Payments - Standard Scheme (COVID-19),Test and Trace Payments (COVID-19),500.00,An Individual
26/01/2021,Test and Trace Payments - Standard Scheme (COVID-19),Test and Trace Payments (COVID-19),500.00,An Individual
18/03/2021,Test and Trace Payments - Local Discretionary Scheme (COVID-19),Test and Trace Payments (COVID-19),500.00,An Individual
09/02/2021,Test and Trace Payments - Standard Scheme (COVID-19),Test and Trace Payments (COVID-19),500.00,An Individual
04/02/2021,Test and Trace Payments - Standard Scheme (COVID-19),Test and Trace Payments (COVID-19),500.00,An Individual
11/03/2021,Test and Trace Payments - Local Discretionary Scheme (COVID-19),Test and Trace Payments (COVID-19),500.00,An Individual
26/01/2021,Test and Trace Payments - Standard Scheme (COVID-19),Test and Trace Payments (COVID-19),500.00,An Individual
21/01/2021,Test and Trace Payments - Standard Scheme (COVID-19),Test and Trace Payments (COVID-19),500.00,An Individual
19/01/2021,Test and Trace Payments - Standard Scheme (COVID-19),Test and Trace Payments (COVID-19),500.00,An Individual
19/01/2021,Test and Trace Payments - Standard Scheme (COVID-19),Test and Trace Payments (COVID-19),500.00,An Individual
23/02/2021,Test and Trace Payments - Standard Scheme (COVID-19),Test and Trace Payments (COVID-19),500.00,An Individual
23/03/2021,Test and Trace Payments - Local Discretionary Scheme (COVID-19),Test and Trace Payments (COVID-19),500.00,An Individual
16/02/2021,Test and Trace Payments - Local Discretionary Scheme (COVID-19),Test and Trace Payments (COVID-19),500.00,An Individual
16/03/2021,Test and Trace Payments - Local Discretionary Scheme (COVID-19),Test and Trace Payments (COVID-19),500.00,An Individual
12/01/2021,Test and Trace Payments - Standard Scheme (COVID-19),Test and Trace Payments (COVID-19),500.00,An Individual
30/03/2021,Test and Trace Payments - Local Discretionary Scheme (COVID-19),Test and Trace Payments (COVID-19),500.00,An Individual
28/01/2021,Test and Trace Payments - Local Discretionary Scheme (COVID-19),Test and Trace Payments (COVID-19),500.00,An Individual
28/01/2021,Test and Trace Payments - Local Discretionary Scheme (COVID-19),Test and Trace Payments (COVID-19),500.00,An Individual
05/01/2021,Test and Trace Payments - Standard Scheme (COVID-19),Test and Trace Payments (COVID-19),500.00,An Individual
25/03/2021,Test and Trace Payments - Standard Scheme (COVID-19),Test and Trace Payments (COVID-19),500.00,An Individual
09/03/2021,Test and Trace Payments - Local Discretionary Scheme (COVID-19),Test and Trace Payments (COVID-19),500.00,An Individual
21/01/2021,Test and Trace Payments - Standard Scheme (COVID-19),Test and Trace Payments (COVID-19),500.00,An Individual
04/02/2021,Test and Trace Payments - Standard Scheme (COVID-19),Test and Trace Payments (COVID-19),500.00,An Individual
04/02/2021,Test and Trace Payments - Standard Scheme (COVID-19),Test and Trace Payments (COVID-19),500.00,An Individual
23/02/2021,Test and Trace Payments - Standard Scheme (COVID-19),Test and Trace Payments (COVID-19),500.00,An Individual
07/01/2021,Test and Trace Payments - Standard Scheme (COVID-19),Test and Trace Payments (COVID-19),500.00,An Individual
09/02/2021,Test and Trace Payments - Standard Scheme (COVID-19),Test and Trace Payments (COVID-19),500.00,An Individual
09/02/2021,Test and Trace Payments - Standard Scheme (COVID-19),Test and Trace Payments (COVID-19),500.00,An Individual
28/01/2021,Test and Trace Payments - Local Discretionary Scheme (COVID-19),Test and Trace Payments (COVID-19),500.00,An Individual
04/03/2021,Test and Trace Payments - Local Discretionary Scheme (COVID-19),Test and Trace Payments (COVID-19),500.00,An Individual
23/02/2021,Test and Trace Payments - Standard Scheme (COVID-19),Test and Trace Payments (COVID-19),500.00,An Individual
04/02/2021,Test and Trace Payments - Local Discretionary Scheme (COVID-19),Test and Trace Payments (COVID-19),500.00,An Individual
04/02/2021,Test and Trace Payments - Local Discretionary Scheme (COVID-19),Test and Trace Payments (COVID-19),500.00,An Individual
21/01/2021,Test and Trace Payments - Standard Scheme (COVID-19),Test and Trace Payments (COVID-19),500.00,An Individual
09/02/2021,Test and Trace Payments - Standard Scheme (COVID-19),Test and Trace Payments (COVID-19),500.00,An Individual
16/03/2021,Test and Trace Payments - Standard Scheme (COVID-19),Test and Trace Payments (COVID-19),500.00,An Individual
09/03/2021,Test and Trace Payments - Standard Scheme (COVID-19),Test and Trace Payments (COVID-19),500.00,An Individual
09/02/2021,Test and Trace Payments - Standard Scheme (COVID-19),Test and Trace Payments (COVID-19),500.00,An Individual
12/01/2021,Test and Trace Payments - Standard Scheme (COVID-19),Test and Trace Payments (COVID-19),500.00,An Individual
26/01/2021,Test and Trace Payments - Standard Scheme (COVID-19),Test and Trace Payments (COVID-19),500.00,An Individual
19/01/2021,Test and Trace Payments - Standard Scheme (COVID-19),Test and Trace Payments (COVID-19),500.00,An Individual
02/03/2021,Test and Trace Payments - Standard Scheme (COVID-19),Test and Trace Payments (COVID-19),500.00,An Individual
21/01/2021,Test and Trace Payments - Local Discretionary Scheme (COVID-19),Test and Trace Payments (COVID-19),500.00,An Individual
23/03/2021,Test and Trace Payments - Local Discretionary Scheme (COVID-19),Test and Trace Payments (COVID-19),500.00,An Individual
26/01/2021,Test and Trace Payments - Standard Scheme (COVID-19),Test and Trace Payments (COVID-19),500.00,An Individual
19/01/2021,Test and Trace Payments - Standard Scheme (COVID-19),Test and Trace Payments (COVID-19),500.00,An Individual
19/01/2021,Test and Trace Payments - Standard Scheme (COVID-19),Test and Trace Payments (COVID-19),500.00,An Individual
16/02/2021,Test and Trace Payments - Local Discretionary Scheme (COVID-19),Test and Trace Payments (COVID-19),500.00,An Individual
02/03/2021,Test and Trace Payments - Standard Scheme (COVID-19),Test and Trace Payments (COVID-19),500.00,An Individual
11/02/2021,Test and Trace Payments - Local Discretionary Scheme (COVID-19),Test and Trace Payments (COVID-19),500.00,An Individual
31/03/2021,Test and Trace Payments - Standard Scheme (COVID-19),Test and Trace Payments (COVID-19),500.00,An Individual
09/02/2021,Test and Trace Payments - Local Discretionary Scheme (COVID-19),Test and Trace Payments (COVID-19),500.00,An Individual
07/01/2021,Test and Trace Payments - Standard Scheme (COVID-19),Test and Trace Payments (COVID-19),500.00,An Individual
07/01/2021,Test and Trace Payments - Standard Scheme (COVID-19),Test and Trace Payments (COVID-19),500.00,An Individual
02/02/2021,Test and Trace Payments - Local Discretionary Scheme (COVID-19),Test and Trace Payments (COVID-19),500.00,An Individual
07/01/2021,Test and Trace Payments - Standard Scheme (COVID-19),Test and Trace Payments (COVID-19),500.00,An Individual
18/02/2021,Test and Trace Payments - Standard Scheme (COVID-19),Test and Trace Payments (COVID-19),500.00,An Individual
16/02/2021,Test and Trace Payments - Standard Scheme (COVID-19),Test and Trace Payments (COVID-19),500.00,An Individual
16/03/2021,Test and Trace Payments - Standard Scheme (COVID-19),Test and Trace Payments (COVID-19),500.00,An Individual
16/02/2021,Test and Trace Payments - Local Discretionary Scheme (COVID-19),Test and Trace Payments (COVID-19),500.00,An Individual
09/02/2021,Test and Trace Payments - Standard Scheme (COVID-19),Test and Trace Payments (COVID-19),500.00,An Individual
12/01/2021,Test and Trace Payments - Standard Scheme (COVID-19),Test and Trace Payments (COVID-19),500.00,An Individual
02/03/2021,Test and Trace Payments - Standard Scheme (COVID-19),Test and Trace Payments (COVID-19),500.00,An Individual
07/01/2021,Test and Trace Payments - Standard Scheme (COVID-19),Test and Trace Payments (COVID-19),500.00,An Individual
07/01/2021,Test and Trace Payments - Standard Scheme (COVID-19),Test and Trace Payments (COVID-19),500.00,An Individual
09/03/2021,Test and Trace Payments - Standard Scheme (COVID-19),Test and Trace Payments (COVID-19),500.00,An Individual
11/02/2021,Test and Trace Payments - Standard Scheme (COVID-19),Test and Trace Payments (COVID-19),500.00,An Individual
26/01/2021,Test and Trace Payments - Standard Scheme (COVID-19),Test and Trace Payments (COVID-19),500.00,An Individual
09/03/2021,Test and Trace Payments - Standard Scheme (COVID-19),Test and Trace Payments (COVID-19),500.00,An Individual
21/01/2021,Test and Trace Payments - Local Discretionary Scheme (COVID-19),Test and Trace Payments (COVID-19),500.00,An Individual
16/02/2021,Test and Trace Payments - Standard Scheme (COVID-19),Test and Trace Payments (COVID-19),500.00,An Individual
02/02/2021,Test and Trace Payments - Standard Scheme (COVID-19),Test and Trace Payments (COVID-19),500.00,An Individual
05/01/2021,Test and Trace Payments - Standard Scheme (COVID-19),Test and Trace Payments (COVID-19),500.00,An Individual
19/01/2021,Test and Trace Payments - Standard Scheme (COVID-19),Test and Trace Payments (COVID-19),500.00,An Individual
23/02/2021,Test and Trace Payments - Standard Scheme (COVID-19),Test and Trace Payments (COVID-19),500.00,An Individual
26/01/2021,Test and Trace Payments - Standard Scheme (COVID-19),Test and Trace Payments (COVID-19),500.00,An Individual
12/01/2021,Test and Trace Payments - Standard Scheme (COVID-19),Test and Trace Payments (COVID-19),500.00,An Individual
14/01/2021,Test and Trace Payments - Standard Scheme (COVID-19),Test and Trace Payments (COVID-19),500.00,An Individual
19/01/2021,Test and Trace Payments - Standard Scheme (COVID-19),Test and Trace Payments (COVID-19),500.00,An Individual
09/03/2021,Test and Trace Payments - Local Discretionary Scheme (COVID-19),Test and Trace Payments (COVID-19),500.00,An Individual
16/02/2021,Test and Trace Payments - Standard Scheme (COVID-19),Test and Trace Payments (COVID-19),500.00,An Individual
26/01/2021,Test and Trace Payments - Local Discretionary Scheme (COVID-19),Test and Trace Payments (COVID-19),500.00,An Individual
07/01/2021,Test and Trace Payments - Standard Scheme (COVID-19),Test and Trace Payments (COVID-19),500.00,An Individual
12/01/2021,Test and Trace Payments - Standard Scheme (COVID-19),Test and Trace Payments (COVID-19),500.00,An Individual
05/01/2021,Test and Trace Payments - Standard Scheme (COVID-19),Test and Trace Payments (COVID-19),500.00,An Individual
04/03/2021,Test and Trace Payments - Standard Scheme (COVID-19),Test and Trace Payments (COVID-19),500.00,An Individual
09/02/2021,Test and Trace Payments - Standard Scheme (COVID-19),Test and Trace Payments (COVID-19),500.00,An Individual
19/01/2021,Test and Trace Payments - Standard Scheme (COVID-19),Test and Trace Payments (COVID-19),500.00,An Individual
05/01/2021,Test and Trace Payments - Standard Scheme (COVID-19),Test and Trace Payments (COVID-19),500.00,An Individual
23/02/2021,Test and Trace Payments - Standard Scheme (COVID-19),Test and Trace Payments (COVID-19),500.00,An Individual
16/02/2021,Test and Trace Payments - Standard Scheme (COVID-19),Test and Trace Payments (COVID-19),500.00,An Individual
16/03/2021,Test and Trace Payments - Standard Scheme (COVID-19),Test and Trace Payments (COVID-19),500.00,An Individual
25/03/2021,Test and Trace Payments - Standard Scheme (COVID-19),Test and Trace Payments (COVID-19),500.00,An Individual
28/01/2021,Test and Trace Payments - Local Discretionary Scheme (COVID-19),Test and Trace Payments (COVID-19),500.00,An Individual
16/02/2021,Test and Trace Payments - Standard Scheme (COVID-19),Test and Trace Payments (COVID-19),500.00,An Individual
23/03/2021,Test and Trace Payments - Standard Scheme (COVID-19),Test and Trace Payments (COVID-19),500.00,An Individual
25/03/2021,Test and Trace Payments - Standard Scheme (COVID-19),Test and Trace Payments (COVID-19),500.00,An Individual
05/01/2021,Test and Trace Payments - Standard Scheme (COVID-19),Test and Trace Payments (COVID-19),500.00,An Individual
07/01/2021,Test and Trace Payments - Standard Scheme (COVID-19),Test and Trace Payments (COVID-19),500.00,An Individual
26/01/2021,Test and Trace Payments - Standard Scheme (COVID-19),Test and Trace Payments (COVID-19),500.00,An Individual
18/02/2021,Test and Trace Payments - Standard Scheme (COVID-19),Test and Trace Payments (COVID-19),500.00,An Individual
05/01/2021,Test and Trace Payments - Standard Scheme (COVID-19),Test and Trace Payments (COVID-19),500.00,An Individual
05/01/2021,Test and Trace Payments - Standard Scheme (COVID-19),Test and Trace Payments (COVID-19),500.00,An Individual
04/02/2021,Test and Trace Payments - Local Discretionary Scheme (COVID-19),Test and Trace Payments (COVID-19),500.00,An Individual
31/03/2021,Test and Trace Payments - Standard Scheme (COVID-19),Test and Trace Payments (COVID-19),500.00,An Individual
23/03/2021,Test and Trace Payments - Standard Scheme (COVID-19),Test and Trace Payments (COVID-19),500.00,An Individual
26/01/2021,Test and Trace Payments - Standard Scheme (COVID-19),Test and Trace Payments (COVID-19),500.00,An Individual
23/02/2021,Test and Trace Payments - Standard Scheme (COVID-19),Test and Trace Payments (COVID-19),500.00,An Individual
23/03/2021,Test and Trace Payments - Local Discretionary Scheme (COVID-19),Test and Trace Payments (COVID-19),500.00,An Individual
23/03/2021,Test and Trace Payments - Standard Scheme (COVID-19),Test and Trace Payments (COVID-19),500.00,An Individual
30/03/2021,Test and Trace Payments - Standard Scheme (COVID-19),Test and Trace Payments (COVID-19),500.00,An Individual
12/01/2021,Test and Trace Payments - Standard Scheme (COVID-19),Test and Trace Payments (COVID-19),500.00,An Individual
07/01/2021,Test and Trace Payments - Standard Scheme (COVID-19),Test and Trace Payments (COVID-19),500.00,An Individual
16/02/2021,Test and Trace Payments - Local Discretionary Scheme (COVID-19),Test and Trace Payments (COVID-19),500.00,An Individual
16/02/2021,Test and Trace Payments - Local Discretionary Scheme (COVID-19),Test and Trace Payments (COVID-19),500.00,An Individual
12/01/2021,Test and Trace Payments - Standard Scheme (COVID-19),Test and Trace Payments (COVID-19),500.00,An Individual
09/03/2021,Test and Trace Payments - Local Discretionary Scheme (COVID-19),Test and Trace Payments (COVID-19),500.00,An Individual
09/03/2021,Test and Trace Payments - Local Discretionary Scheme (COVID-19),Test and Trace Payments (COVID-19),500.00,An Individual
26/01/2021,Test and Trace Payments - Local Discretionary Scheme (COVID-19),Test and Trace Payments (COVID-19),500.00,An Individual
21/01/2021,Test and Trace Payments - Standard Scheme (COVID-19),Test and Trace Payments (COVID-19),500.00,An Individual
26/01/2021,Test and Trace Payments - Standard Scheme (COVID-19),Test and Trace Payments (COVID-19),500.00,An Individual
07/01/2021,Test and Trace Payments - Standard Scheme (COVID-19),Test and Trace Payments (COVID-19),500.00,An Individual
04/02/2021,Test and Trace Payments - Local Discretionary Scheme (COVID-19),Test and Trace Payments (COVID-19),500.00,An Individual
07/01/2021,Test and Trace Payments - Standard Scheme (COVID-19),Test and Trace Payments (COVID-19),500.00,An Individual
11/03/2021,Test and Trace Payments - Local Discretionary Scheme (COVID-19),Test and Trace Payments (COVID-19),500.00,An Individual
09/02/2021,Test and Trace Payments - Local Discretionary Scheme (COVID-19),Test and Trace Payments (COVID-19),500.00,An Individual
21/01/2021,Test and Trace Payments - Standard Scheme (COVID-19),Test and Trace Payments (COVID-19),500.00,An Individual
12/01/2021,Test and Trace Payments - Standard Scheme (COVID-19),Test and Trace Payments (COVID-19),500.00,An Individual
28/01/2021,Test and Trace Payments - Standard Scheme (COVID-19),Test and Trace Payments (COVID-19),500.00,An Individual
23/02/2021,Test and Trace Payments - Standard Scheme (COVID-19),Test and Trace Payments (COVID-19),500.00,An Individual
26/01/2021,Test and Trace Payments - Standard Scheme (COVID-19),Test and Trace Payments (COVID-19),500.00,An Individual
16/02/2021,Test and Trace Payments - Standard Scheme (COVID-19),Test and Trace Payments (COVID-19),500.00,An Individual
26/01/2021,Test and Trace Payments - Standard Scheme (COVID-19),Test and Trace Payments (COVID-19),500.00,An Individual
05/01/2021,Test and Trace Payments - Standard Scheme (COVID-19),Test and Trace Payments (COVID-19),500.00,An Individual
18/02/2021,Test and Trace Payments - Standard Scheme (COVID-19),Test and Trace Payments (COVID-19),500.00,An Individual
14/01/2021,Test and Trace Payments - Standard Scheme (COVID-19),Test and Trace Payments (COVID-19),500.00,An Individual
19/01/2021,Test and Trace Payments - Standard Scheme (COVID-19),Test and Trace Payments (COVID-19),500.00,An Individual
02/03/2021,Test and Trace Payments - Standard Scheme (COVID-19),Test and Trace Payments (COVID-19),500.00,An Individual
16/02/2021,Test and Trace Payments - Local Discretionary Scheme (COVID-19),Test and Trace Payments (COVID-19),500.00,An Individual
04/02/2021,Test and Trace Payments - Local Discretionary Scheme (COVID-19),Test and Trace Payments (COVID-19),500.00,An Individual
04/02/2021,Test and Trace Payments - Local Discretionary Scheme (COVID-19),Test and Trace Payments (COVID-19),500.00,An Individual
02/02/2021,Test and Trace Payments - Local Discretionary Scheme (COVID-19),Test and Trace Payments (COVID-19),500.00,An Individual
02/02/2021,Test and Trace Payments - Local Discretionary Scheme (COVID-19),Test and Trace Payments (COVID-19),500.00,An Individual
26/01/2021,Test and Trace Payments - Standard Scheme (COVID-19),Test and Trace Payments (COVID-19),500.00,An Individual
02/03/2021,Test and Trace Payments - Standard Scheme (COVID-19),Test and Trace Payments (COVID-19),500.00,An Individual
09/02/2021,Test and Trace Payments - Standard Scheme (COVID-19),Test and Trace Payments (COVID-19),500.00,An Individual
02/02/2021,Test and Trace Payments - Local Discretionary Scheme (COVID-19),Test and Trace Payments (COVID-19),500.00,An Individual
07/01/2021,Test and Trace Payments - Standard Scheme (COVID-19),Test and Trace Payments (COVID-19),500.00,An Individual
11/02/2021,Test and Trace Payments - Standard Scheme (COVID-19),Test and Trace Payments (COVID-19),500.00,An Individual
30/03/2021,Test and Trace Payments - Local Discretionary Scheme (COVID-19),Test and Trace Payments (COVID-19),500.00,An Individual
28/01/2021,Test and Trace Payments - Local Discretionary Scheme (COVID-19),Test and Trace Payments (COVID-19),500.00,An Individual
09/02/2021,Test and Trace Payments - Standard Scheme (COVID-19),Test and Trace Payments (COVID-19),500.00,An Individual
12/01/2021,Test and Trace Payments - Standard Scheme (COVID-19),Test and Trace Payments (COVID-19),500.00,An Individual
26/01/2021,Test and Trace Payments - Standard Scheme (COVID-19),Test and Trace Payments (COVID-19),500.00,An Individual
11/03/2021,Test and Trace Payments - Standard Scheme (COVID-19),Test and Trace Payments (COVID-19),500.00,An Individual
02/02/2021,Test and Trace Payments - Local Discretionary Scheme (COVID-19),Test and Trace Payments (COVID-19),500.00,An Individual
18/03/2021,Test and Trace Payments - Standard Scheme (COVID-19),Test and Trace Payments (COVID-19),500.00,An Individual
26/01/2021,Test and Trace Payments - Local Discretionary Scheme (COVID-19),Test and Trace Payments (COVID-19),500.00,An Individual
19/01/2021,Test and Trace Payments - Standard Scheme (COVID-19),Test and Trace Payments (COVID-19),500.00,An Individual
26/01/2021,Test and Trace Payments - Local Discretionary Scheme (COVID-19),Test and Trace Payments (COVID-19),500.00,An Individual
21/01/2021,Test and Trace Payments - Standard Scheme (COVID-19),Test and Trace Payments (COVID-19),500.00,An Individual
12/01/2021,Test and Trace Payments - Standard Scheme (COVID-19),Test and Trace Payments (COVID-19),500.00,An Individual
23/03/2021,Test and Trace Payments - Standard Scheme (COVID-19),Test and Trace Payments (COVID-19),500.00,An Individual
02/02/2021,Test and Trace Payments - Local Discretionary Scheme (COVID-19),Test and Trace Payments (COVID-19),500.00,An Individual
23/02/2021,Test and Trace Payments - Standard Scheme (COVID-19),Test and Trace Payments (COVID-19),500.00,An Individual
11/03/2021,Test and Trace Payments - Local Discretionary Scheme (COVID-19),Test and Trace Payments (COVID-19),500.00,An Individual
02/02/2021,Test and Trace Payments - Local Discretionary Scheme (COVID-19),Test and Trace Payments (COVID-19),500.00,An Individual
23/03/2021,Test and Trace Payments - Standard Scheme (COVID-19),Test and Trace Payments (COVID-19),500.00,An Individual
04/02/2021,Test and Trace Payments - Local Discretionary Scheme (COVID-19),Test and Trace Payments (COVID-19),500.00,An Individual
21/01/2021,Test and Trace Payments - Standard Scheme (COVID-19),Test and Trace Payments (COVID-19),500.00,An Individual
12/01/2021,Test and Trace Payments - Standard Scheme (COVID-19),Test and Trace Payments (COVID-19),500.00,An Individual
12/01/2021,Test and Trace Payments - Standard Scheme (COVID-19),Test and Trace Payments (COVID-19),500.00,An Individual
16/03/2021,Test and Trace Payments - Standard Scheme (COVID-19),Test and Trace Payments (COVID-19),500.00,An Individual
02/02/2021,Test and Trace Payments - Standard Scheme (COVID-19),Test and Trace Payments (COVID-19),500.00,An Individual
12/01/2021,Test and Trace Payments - Standard Scheme (COVID-19),Test and Trace Payments (COVID-19),500.00,An Individual
19/01/2021,Test and Trace Payments - Standard Scheme (COVID-19),Test and Trace Payments (COVID-19),500.00,An Individual
09/02/2021,Test and Trace Payments - Standard Scheme (COVID-19),Test and Trace Payments (COVID-19),500.00,An Individual
21/01/2021,Test and Trace Payments - Standard Scheme (COVID-19),Test and Trace Payments (COVID-19),500.00,An Individual
11/02/2021,Test and Trace Payments - Standard Scheme (COVID-19),Test and Trace Payments (COVID-19),500.00,An Individual
04/02/2021,Test and Trace Payments - Local Discretionary Scheme (COVID-19),Test and Trace Payments (COVID-19),500.00,An Individual
02/02/2021,Test and Trace Payments - Local Discretionary Scheme (COVID-19),Test and Trace Payments (COVID-19),500.00,An Individual
21/01/2021,Test and Trace Payments - Standard Scheme (COVID-19),Test and Trace Payments (COVID-19),500.00,An Individual
23/03/2021,Test and Trace Payments - Standard Scheme (COVID-19),Test and Trace Payments (COVID-19),500.00,An Individual
09/02/2021,Test and Trace Payments - Standard Scheme (COVID-19),Test and Trace Payments (COVID-19),500.00,An Individual
23/02/2021,Test and Trace Payments - Local Discretionary Scheme (COVID-19),Test and Trace Payments (COVID-19),500.00,An Individual
07/01/2021,Test and Trace Payments - Standard Scheme (COVID-19),Test and Trace Payments (COVID-19),500.00,An Individual
30/03/2021,Test and Trace Payments - Local Discretionary Scheme (COVID-19),Test and Trace Payments (COVID-19),500.00,An Individual
12/01/2021,Test and Trace Payments - Standard Scheme (COVID-19),Test and Trace Payments (COVID-19),500.00,An Individual
21/01/2021,Test and Trace Payments - Standard Scheme (COVID-19),Test and Trace Payments (COVID-19),500.00,An Individual
04/02/2021,Test and Trace Payments - Local Discretionary Scheme (COVID-19),Test and Trace Payments (COVID-19),500.00,An Individual
23/02/2021,Test and Trace Payments - Standard Scheme (COVID-19),Test and Trace Payments (COVID-19),500.00,An Individual
18/02/2021,Test and Trace Payments - Standard Scheme (COVID-19),Test and Trace Payments (COVID-19),500.00,An Individual
21/01/2021,Test and Trace Payments - Standard Scheme (COVID-19),Test and Trace Payments (COVID-19),500.00,An Individual
04/02/2021,Test and Trace Payments - Standard Scheme (COVID-19),Test and Trace Payments (COVID-19),500.00,An Individual
02/02/2021,Test and Trace Payments - Standard Scheme (COVID-19),Test and Trace Payments (COVID-19),500.00,An Individual
12/01/2021,Test and Trace Payments - Standard Scheme (COVID-19),Test and Trace Payments (COVID-19),500.00,An Individual
09/03/2021,Test and Trace Payments - Local Discretionary Scheme (COVID-19),Test and Trace Payments (COVID-19),500.00,An Individual
26/01/2021,Test and Trace Payments - Local Discretionary Scheme (COVID-19),Test and Trace Payments (COVID-19),500.00,An Individual
23/02/2021,Test and Trace Payments - Standard Scheme (COVID-19),Test and Trace Payments (COVID-19),500.00,An Individual
28/01/2021,Test and Trace Payments - Standard Scheme (COVID-19),Test and Trace Payments (COVID-19),500.00,An Individual
16/02/2021,Test and Trace Payments - Standard Scheme (COVID-19),Test and Trace Payments (COVID-19),500.00,An Individual
07/01/2021,Test and Trace Payments - Standard Scheme (COVID-19),Test and Trace Payments (COVID-19),500.00,An Individual
23/02/2021,Test and Trace Payments - Standard Scheme (COVID-19),Test and Trace Payments (COVID-19),500.00,An Individual
05/01/2021,Test and Trace Payments - Standard Scheme (COVID-19),Test and Trace Payments (COVID-19),500.00,An Individual
23/03/2021,Test and Trace Payments - Standard Scheme (COVID-19),Test and Trace Payments (COVID-19),500.00,An Individual
23/02/2021,Test and Trace Payments - Standard Scheme (COVID-19),Test and Trace Payments (COVID-19),500.00,An Individual
23/02/2021,Test and Trace Payments - Standard Scheme (COVID-19),Test and Trace Payments (COVID-19),500.00,An Individual
02/02/2021,Test and Trace Payments - Local Discretionary Scheme (COVID-19),Test and Trace Payments (COVID-19),500.00,An Individual
26/01/2021,Test and Trace Payments - Local Discretionary Scheme (COVID-19),Test and Trace Payments (COVID-19),500.00,An Individual
09/02/2021,Test and Trace Payments - Standard Scheme (COVID-19),Test and Trace Payments (COVID-19),500.00,An Individual
11/03/2021,Test and Trace Payments - Standard Scheme (COVID-19),Test and Trace Payments (COVID-19),500.00,An Individual
16/03/2021,Test and Trace Payments - Local Discretionary Scheme (COVID-19),Test and Trace Payments (COVID-19),500.00,An Individual
09/03/2021,Test and Trace Payments - Local Discretionary Scheme (COVID-19),Test and Trace Payments (COVID-19),500.00,An Individual
18/03/2021,Test and Trace Payments - Standard Scheme (COVID-19),Test and Trace Payments (COVID-19),500.00,An Individual
12/01/2021,Test and Trace Payments - Standard Scheme (COVID-19),Test and Trace Payments (COVID-19),500.00,An Individual
16/02/2021,Test and Trace Payments - Local Discretionary Scheme (COVID-19),Test and Trace Payments (COVID-19),500.00,An Individual
04/03/2021,Test and Trace Payments - Standard Scheme (COVID-19),Test and Trace Payments (COVID-19),500.00,An Individual
28/01/2021,Test and Trace Payments - Standard Scheme (COVID-19),Test and Trace Payments (COVID-19),500.00,An Individual
11/03/2021,Test and Trace Payments - Local Discretionary Scheme (COVID-19),Test and Trace Payments (COVID-19),500.00,An Individual
16/03/2021,Test and Trace Payments - Local Discretionary Scheme (COVID-19),Test and Trace Payments (COVID-19),500.00,An Individual
18/03/2021,Test and Trace Payments - Local Discretionary Scheme (COVID-19),Test and Trace Payments (COVID-19),500.00,An Individual
16/02/2021,Test and Trace Payments - Local Discretionary Scheme (COVID-19),Test and Trace Payments (COVID-19),500.00,An Individual
09/03/2021,Test and Trace Payments - Standard Scheme (COVID-19),Test and Trace Payments (COVID-19),500.00,An Individual
02/03/2021,Test and Trace Payments - Standard Scheme (COVID-19),Test and Trace Payments (COVID-19),500.00,An Individual
14/01/2021,Test and Trace Payments - Standard Scheme (COVID-19),Test and Trace Payments (COVID-19),500.00,An Individual
23/02/2021,Test and Trace Payments - Standard Scheme (COVID-19),Test and Trace Payments (COVID-19),500.00,An Individual
09/02/2021,Test and Trace Payments - Standard Scheme (COVID-19),Test and Trace Payments (COVID-19),500.00,An Individual
05/01/2021,Test and Trace Payments - Standard Scheme (COVID-19),Test and Trace Payments (COVID-19),500.00,An Individual
26/01/2021,Test and Trace Payments - Standard Scheme (COVID-19),Test and Trace Payments (COVID-19),500.00,An Individual
02/03/2021,Test and Trace Payments - Standard Scheme (COVID-19),Test and Trace Payments (COVID-19),500.00,An Individual
09/02/2021,Test and Trace Payments - Standard Scheme (COVID-19),Test and Trace Payments (COVID-19),500.00,An Individual
28/01/2021,Test and Trace Payments - Standard Scheme (COVID-19),Test and Trace Payments (COVID-19),500.00,An Individual
04/02/2021,Test and Trace Payments - Standard Scheme (COVID-19),Test and Trace Payments (COVID-19),500.00,An Individual
02/03/2021,Test and Trace Payments - Standard Scheme (COVID-19),Test and Trace Payments (COVID-19),500.00,An Individual
05/01/2021,Test and Trace Payments - Standard Scheme (COVID-19),Test and Trace Payments (COVID-19),500.00,An Individual
04/02/2021,Test and Trace Payments - Standard Scheme (COVID-19),Test and Trace Payments (COVID-19),500.00,An Individual
23/02/2021,Test and Trace Payments - Standard Scheme (COVID-19),Test and Trace Payments (COVID-19),500.00,An Individual
09/03/2021,Test and Trace Payments - Standard Scheme (COVID-19),Test and Trace Payments (COVID-19),500.00,An Individual
30/03/2021,Test and Trace Payments - Standard Scheme (COVID-19),Test and Trace Payments (COVID-19),500.00,An Individual
09/03/2021,Test and Trace Payments - Standard Scheme (COVID-19),Test and Trace Payments (COVID-19),500.00,An Individual
12/01/2021,Test and Trace Payments - Standard Scheme (COVID-19),Test and Trace Payments (COVID-19),500.00,An Individual
21/01/2021,Test and Trace Payments - Standard Scheme (COVID-19),Test and Trace Payments (COVID-19),500.00,An Individual
14/01/2021,Test and Trace Payments - Standard Scheme (COVID-19),Test and Trace Payments (COVID-19),500.00,An Individual
26/01/2021,Test and Trace Payments - Standard Scheme (COVID-19),Test and Trace Payments (COVID-19),500.00,An Individual
04/02/2021,Test and Trace Payments - Standard Scheme (COVID-19),Test and Trace Payments (COVID-19),500.00,An Individual
25/02/2021,Test and Trace Payments - Standard Scheme (COVID-19),Test and Trace Payments (COVID-19),500.00,An Individual
16/03/2021,Test and Trace Payments - Standard Scheme (COVID-19),Test and Trace Payments (COVID-19),500.00,An Individual
19/01/2021,Test and Trace Payments - Standard Scheme (COVID-19),Test and Trace Payments (COVID-19),500.00,An Individual
07/01/2021,Test and Trace Payments - Standard Scheme (COVID-19),Test and Trace Payments (COVID-19),500.00,An Individual
12/01/2021,Test and Trace Payments - Standard Scheme (COVID-19),Test and Trace Payments (COVID-19),500.00,An Individual
23/02/2021,Test and Trace Payments - Standard Scheme (COVID-19),Test and Trace Payments (COVID-19),500.00,An Individual
23/02/2021,Test and Trace Payments - Standard Scheme (COVID-19),Test and Trace Payments (COVID-19),500.00,An Individual
09/03/2021,Test and Trace Payments - Standard Scheme (COVID-19),Test and Trace Payments (COVID-19),500.00,An Individual
04/02/2021,Test and Trace Payments - Standard Scheme (COVID-19),Test and Trace Payments (COVID-19),500.00,An Individual
31/03/2021,Test and Trace Payments - Local Discretionary Scheme (COVID-19),Test and Trace Payments (COVID-19),500.00,An Individual
09/02/2021,Test and Trace Payments - Standard Scheme (COVID-19),Test and Trace Payments (COVID-19),500.00,An Individual
14/01/2021,Test and Trace Payments - Standard Scheme (COVID-19),Test and Trace Payments (COVID-19),500.00,An Individual
16/03/2021,Test and Trace Payments - Standard Scheme (COVID-19),Test and Trace Payments (COVID-19),500.00,An Individual
09/03/2021,Test and Trace Payments - Local Discretionary Scheme (COVID-19),Test and Trace Payments (COVID-19),500.00,An Individual
09/03/2021,Test and Trace Payments - Standard Scheme (COVID-19),Test and Trace Payments (COVID-19),500.00,An Individual
23/03/2021,Test and Trace Payments - Local Discretionary Scheme (COVID-19),Test and Trace Payments (COVID-19),500.00,An Individual
12/01/2021,Test and Trace Payments - Standard Scheme (COVID-19),Test and Trace Payments (COVID-19),500.00,An Individual
04/02/2021,Test and Trace Payments - Local Discretionary Scheme (COVID-19),Test and Trace Payments (COVID-19),500.00,An Individual
12/01/2021,Test and Trace Payments - Standard Scheme (COVID-19),Test and Trace Payments (COVID-19),500.00,An Individual
09/03/2021,Test and Trace Payments - Local Discretionary Scheme (COVID-19),Test and Trace Payments (COVID-19),500.00,An Individual
02/02/2021,Test and Trace Payments - Standard Scheme (COVID-19),Test and Trace Payments (COVID-19),500.00,An Individual
23/03/2021,Test and Trace Payments - Standard Scheme (COVID-19),Test and Trace Payments (COVID-19),500.00,An Individual
14/01/2021,Test and Trace Payments - Standard Scheme (COVID-19),Test and Trace Payments (COVID-19),500.00,An Individual
28/01/2021,Test and Trace Payments - Standard Scheme (COVID-19),Test and Trace Payments (COVID-19),500.00,An Individual
09/02/2021,Test and Trace Payments - Standard Scheme (COVID-19),Test and Trace Payments (COVID-19),500.00,An Individual
12/01/2021,Test and Trace Payments - Standard Scheme (COVID-19),Test and Trace Payments (COVID-19),500.00,An Individual
09/02/2021,Test and Trace Payments - Standard Scheme (COVID-19),Test and Trace Payments (COVID-19),500.00,An Individual
14/01/2021,Test and Trace Payments - Standard Scheme (COVID-19),Test and Trace Payments (COVID-19),500.00,An Individual
18/02/2021,Test and Trace Payments - Standard Scheme (COVID-19),Test and Trace Payments (COVID-19),500.00,An Individual
12/01/2021,Test and Trace Payments - Standard Scheme (COVID-19),Test and Trace Payments (COVID-19),500.00,An Individual
18/02/2021,Test and Trace Payments - Standard Scheme (COVID-19),Test and Trace Payments (COVID-19),500.00,An Individual
23/02/2021,Test and Trace Payments - Standard Scheme (COVID-19),Test and Trace Payments (COVID-19),500.00,An Individual
14/01/2021,Test and Trace Payments - Standard Scheme (COVID-19),Test and Trace Payments (COVID-19),500.00,An Individual
16/02/2021,Test and Trace Payments - Local Discretionary Scheme (COVID-19),Test and Trace Payments (COVID-19),500.00,An Individual
23/02/2021,Test and Trace Payments - Standard Scheme (COVID-19),Test and Trace Payments (COVID-19),500.00,An Individual
28/01/2021,Test and Trace Payments - Standard Scheme (COVID-19),Test and Trace Payments (COVID-19),500.00,An Individual
07/01/2021,Test and Trace Payments - Standard Scheme (COVID-19),Test and Trace Payments (COVID-19),500.00,An Individual
18/02/2021,Test and Trace Payments - Standard Scheme (COVID-19),Test and Trace Payments (COVID-19),500.00,An Individual
23/02/2021,Test and Trace Payments - Standard Scheme (COVID-19),Test and Trace Payments (COVID-19),500.00,An Individual
07/01/2021,Test and Trace Payments - Standard Scheme (COVID-19),Test and Trace Payments (COVID-19),500.00,An Individual
07/01/2021,Test and Trace Payments - Standard Scheme (COVID-19),Test and Trace Payments (COVID-19),500.00,An Individual
26/01/2021,Test and Trace Payments - Local Discretionary Scheme (COVID-19),Test and Trace Payments (COVID-19),500.00,An Individual
09/02/2021,Test and Trace Payments - Standard Scheme (COVID-19),Test and Trace Payments (COVID-19),500.00,An Individual
11/02/2021,Test and Trace Payments - Standard Scheme (COVID-19),Test and Trace Payments (COVID-19),500.00,An Individual
23/02/2021,Test and Trace Payments - Standard Scheme (COVID-19),Test and Trace Payments (COVID-19),500.00,An Individual
26/01/2021,Test and Trace Payments - Standard Scheme (COVID-19),Test and Trace Payments (COVID-19),500.00,An Individual
02/03/2021,Test and Trace Payments - Standard Scheme (COVID-19),Test and Trace Payments (COVID-19),500.00,An Individual
30/03/2021,Test and Trace Payments - Standard Scheme (COVID-19),Test and Trace Payments (COVID-19),500.00,An Individual
02/03/2021,Test and Trace Payments - Standard Scheme (COVID-19),Test and Trace Payments (COVID-19),500.00,An Individual
11/02/2021,Test and Trace Payments - Standard Scheme (COVID-19),Test and Trace Payments (COVID-19),500.00,An Individual
04/02/2021,Test and Trace Payments - Standard Scheme (COVID-19),Test and Trace Payments (COVID-19),500.00,An Individual
21/01/2021,Test and Trace Payments - Standard Scheme (COVID-19),Test and Trace Payments (COVID-19),500.00,An Individual
09/03/2021,Test and Trace Payments - Local Discretionary Scheme (COVID-19),Test and Trace Payments (COVID-19),500.00,An Individual
02/03/2021,Test and Trace Payments - Standard Scheme (COVID-19),Test and Trace Payments (COVID-19),500.00,An Individual
21/01/2021,Test and Trace Payments - Local Discretionary Scheme (COVID-19),Test and Trace Payments (COVID-19),500.00,An Individual
07/01/2021,Test and Trace Payments - Standard Scheme (COVID-19),Test and Trace Payments (COVID-19),500.00,An Individual
21/01/2021,Test and Trace Payments - Local Discretionary Scheme (COVID-19),Test and Trace Payments (COVID-19),500.00,An Individual
09/03/2021,Test and Trace Payments - Standard Scheme (COVID-19),Test and Trace Payments (COVID-19),500.00,An Individual
05/01/2021,Test and Trace Payments - Standard Scheme (COVID-19),Test and Trace Payments (COVID-19),500.00,An Individual
28/01/2021,Test and Trace Payments - Local Discretionary Scheme (COVID-19),Test and Trace Payments (COVID-19),500.00,An Individual
14/01/2021,Test and Trace Payments - Standard Scheme (COVID-19),Test and Trace Payments (COVID-19),500.00,An Individual
02/03/2021,Test and Trace Payments - Standard Scheme (COVID-19),Test and Trace Payments (COVID-19),500.00,An Individual
28/01/2021,Test and Trace Payments - Local Discretionary Scheme (COVID-19),Test and Trace Payments (COVID-19),500.00,An Individual
04/02/2021,Test and Trace Payments - Local Discretionary Scheme (COVID-19),Test and Trace Payments (COVID-19),500.00,An Individual
04/02/2021,Test and Trace Payments - Standard Scheme (COVID-19),Test and Trace Payments (COVID-19),500.00,An Individual
05/01/2021,Test and Trace Payments - Standard Scheme (COVID-19),Test and Trace Payments (COVID-19),500.00,An Individual
11/03/2021,Test and Trace Payments - Local Discretionary Scheme (COVID-19),Test and Trace Payments (COVID-19),500.00,An Individual
09/03/2021,Test and Trace Payments - Local Discretionary Scheme (COVID-19),Test and Trace Payments (COVID-19),500.00,An Individual
11/03/2021,Test and Trace Payments - Standard Scheme (COVID-19),Test and Trace Payments (COVID-19),500.00,An Individual
12/01/2021,Test and Trace Payments - Standard Scheme (COVID-19),Test and Trace Payments (COVID-19),500.00,An Individual
02/02/2021,Test and Trace Payments - Local Discretionary Scheme (COVID-19),Test and Trace Payments (COVID-19),500.00,An Individual
26/01/2021,Test and Trace Payments - Standard Scheme (COVID-19),Test and Trace Payments (COVID-19),500.00,An Individual
09/03/2021,Test and Trace Payments - Standard Scheme (COVID-19),Test and Trace Payments (COVID-19),500.00,An Individual
26/01/2021,Test and Trace Payments - Standard Scheme (COVID-19),Test and Trace Payments (COVID-19),500.00,An Individual
28/01/2021,Test and Trace Payments - Standard Scheme (COVID-19),Test and Trace Payments (COVID-19),500.00,An Individual
07/01/2021,Test and Trace Payments - Standard Scheme (COVID-19),Test and Trace Payments (COVID-19),500.00,An Individual
23/02/2021,Test and Trace Payments - Standard Scheme (COVID-19),Test and Trace Payments (COVID-19),500.00,An Individual
09/02/2021,Test and Trace Payments - Standard Scheme (COVID-19),Test and Trace Payments (COVID-19),500.00,An Individual
07/01/2021,Test and Trace Payments - Standard Scheme (COVID-19),Test and Trace Payments (COVID-19),500.00,An Individual
25/03/2021,Test and Trace Payments - Local Discretionary Scheme (COVID-19),Test and Trace Payments (COVID-19),500.00,An Individual
19/01/2021,Test and Trace Payments - Standard Scheme (COVID-19),Test and Trace Payments (COVID-19),500.00,An Individual
19/01/2021,Test and Trace Payments - Standard Scheme (COVID-19),Test and Trace Payments (COVID-19),500.00,An Individual
26/01/2021,Test and Trace Payments - Local Discretionary Scheme (COVID-19),Test and Trace Payments (COVID-19),500.00,An Individual
02/02/2021,Test and Trace Payments - Standard Scheme (COVID-19),Test and Trace Payments (COVID-19),500.00,An Individual
23/02/2021,Test and Trace Payments - Standard Scheme (COVID-19),Test and Trace Payments (COVID-19),500.00,An Individual
12/01/2021,Test and Trace Payments - Standard Scheme (COVID-19),Test and Trace Payments (COVID-19),500.00,An Individual
23/02/2021,Test and Trace Payments - Standard Scheme (COVID-19),Test and Trace Payments (COVID-19),500.00,An Individual
31/03/2021,Test and Trace Payments - Local Discretionary Scheme (COVID-19),Test and Trace Payments (COVID-19),500.00,An Individual
16/02/2021,Test and Trace Payments - Local Discretionary Scheme (COVID-19),Test and Trace Payments (COVID-19),500.00,An Individual
09/02/2021,Test and Trace Payments - Standard Scheme (COVID-19),Test and Trace Payments (COVID-19),500.00,An Individual
31/03/2021,Test and Trace Payments - Standard Scheme (COVID-19),Test and Trace Payments (COVID-19),500.00,An Individual
04/02/2021,Test and Trace Payments - Local Discretionary Scheme (COVID-19),Test and Trace Payments (COVID-19),500.00,An Individual
05/01/2021,Test and Trace Payments - Standard Scheme (COVID-19),Test and Trace Payments (COVID-19),500.00,An Individual
04/02/2021,Test and Trace Payments - Local Discretionary Scheme (COVID-19),Test and Trace Payments (COVID-19),500.00,An Individual
26/01/2021,Test and Trace Payments - Standard Scheme (COVID-19),Test and Trace Payments (COVID-19),500.00,An Individual
30/03/2021,Test and Trace Payments - Local Discretionary Scheme (COVID-19),Test and Trace Payments (COVID-19),500.00,An Individual
09/03/2021,Test and Trace Payments - Standard Scheme (COVID-19),Test and Trace Payments (COVID-19),500.00,An Individual
09/03/2021,Test and Trace Payments - Standard Scheme (COVID-19),Test and Trace Payments (COVID-19),500.00,An Individual
30/03/2021,Test and Trace Payments - Local Discretionary Scheme (COVID-19),Test and Trace Payments (COVID-19),500.00,An Individual
26/01/2021,Test and Trace Payments - Standard Scheme (COVID-19),Test and Trace Payments (COVID-19),500.00,An Individual
11/02/2021,Test and Trace Payments - Standard Scheme (COVID-19),Test and Trace Payments (COVID-19),500.00,An Individual
07/01/2021,Test and Trace Payments - Standard Scheme (COVID-19),Test and Trace Payments (COVID-19),500.00,An Individual
21/01/2021,Test and Trace Payments - Local Discretionary Scheme (COVID-19),Test and Trace Payments (COVID-19),500.00,An Individual
04/02/2021,Test and Trace Payments - Local Discretionary Scheme (COVID-19),Test and Trace Payments (COVID-19),500.00,An Individual
19/01/2021,Test and Trace Payments - Standard Scheme (COVID-19),Test and Trace Payments (COVID-19),500.00,An Individual
02/02/2021,Test and Trace Payments - Local Discretionary Scheme (COVID-19),Test and Trace Payments (COVID-19),500.00,An Individual
04/02/2021,Test and Trace Payments - Standard Scheme (COVID-19),Test and Trace Payments (COVID-19),500.00,An Individual
16/02/2021,Test and Trace Payments - Local Discretionary Scheme (COVID-19),Test and Trace Payments (COVID-19),500.00,An Individual
26/01/2021,Test and Trace Payments - Local Discretionary Scheme (COVID-19),Test and Trace Payments (COVID-19),500.00,An Individual
04/02/2021,Test and Trace Payments - Standard Scheme (COVID-19),Test and Trace Payments (COVID-19),500.00,An Individual
19/01/2021,Test and Trace Payments - Standard Scheme (COVID-19),Test and Trace Payments (COVID-19),500.00,An Individual
09/02/2021,Test and Trace Payments - Standard Scheme (COVID-19),Test and Trace Payments (COVID-19),500.00,An Individual
02/03/2021,Test and Trace Payments - Standard Scheme (COVID-19),Test and Trace Payments (COVID-19),500.00,An Individual
11/02/2021,Test and Trace Payments - Standard Scheme (COVID-19),Test and Trace Payments (COVID-19),500.00,An Individual
09/03/2021,Test and Trace Payments - Local Discretionary Scheme (COVID-19),Test and Trace Payments (COVID-19),500.00,An Individual
26/01/2021,Test and Trace Payments - Standard Scheme (COVID-19),Test and Trace Payments (COVID-19),500.00,An Individual
07/01/2021,Test and Trace Payments - Standard Scheme (COVID-19),Test and Trace Payments (COVID-19),500.00,An Individual
04/02/2021,Test and Trace Payments - Standard Scheme (COVID-19),Test and Trace Payments (COVID-19),500.00,An Individual
05/01/2021,Test and Trace Payments - Standard Scheme (COVID-19),Test and Trace Payments (COVID-19),500.00,An Individual
18/02/2021,Test and Trace Payments - Standard Scheme (COVID-19),Test and Trace Payments (COVID-19),500.00,An Individual
11/02/2021,Test and Trace Payments - Standard Scheme (COVID-19),Test and Trace Payments (COVID-19),500.00,An Individual
16/03/2021,Test and Trace Payments - Local Discretionary Scheme (COVID-19),Test and Trace Payments (COVID-19),500.00,An Individual
28/01/2021,Test and Trace Payments - Local Discretionary Scheme (COVID-19),Test and Trace Payments (COVID-19),500.00,An Individual
12/01/2021,Test and Trace Payments - Standard Scheme (COVID-19),Test and Trace Payments (COVID-19),500.00,An Individual
16/02/2021,Test and Trace Payments - Standard Scheme (COVID-19),Test and Trace Payments (COVID-19),500.00,An Individual
14/01/2021,Test and Trace Payments - Standard Scheme (COVID-19),Test and Trace Payments (COVID-19),500.00,An Individual
20/01/2021,Closed Business Lockdown Grants (COVID-19),Closed Business Lockdown Grants (COVID-19),"4,000.00",An Individual
20/01/2021,Local Restrictions Support Grants � Mandatory Closed (COVID-19),Local Restrictions Support Grants (COVID-19),"2,001.00",An Individual
26/02/2021,Other Equipment,Open Spaces,"4,000.00",An Individual
29/01/2021,Closed Business Lockdown Grants (COVID-19),Closed Business Lockdown Grants (COVID-19),"4,000.00",An Individual
22/01/2021,Local Restrictions Support Grants � Mandatory Closed (COVID-19),Local Restrictions Support Grants (COVID-19),"1,334.00",An Individual
29/01/2021,Local Restrictions Support Grants � Mandatory Closed (COVID-19),Local Restrictions Support Grants (COVID-19),"2,001.00",An Individual
01/03/2021,Local Restrictions Support Grants � Mandatory Closed (COVID-19),Local Restrictions Support Grants (COVID-19),"2,096.00",An Individual
20/01/2021,Closed Business Lockdown Grants (COVID-19),Closed Business Lockdown Grants (COVID-19),"4,000.00",An Individual
20/01/2021,Local Restrictions Support Grants � Mandatory Closed (COVID-19),Local Restrictions Support Grants (COVID-19),"2,001.00",An Individual
01/03/2021,Local Restrictions Support Grants � Mandatory Closed (COVID-19),Local Restrictions Support Grants (COVID-19),"2,096.00",An Individual
24/02/2021,Local Restrictions Support Grants � Discretionary (COVID-19),Local Restrictions Support Grants (COVID-19),"10,000.00",An Individual
08/03/2021,Closed Business Lockdown Grants (COVID-19),Closed Business Lockdown Grants (COVID-19),"4,000.00",An Individual
08/03/2021,Local Restrictions Support Grants � Mandatory Closed (COVID-19),Local Restrictions Support Grants (COVID-19),667.00,An Individual
08/03/2021,Local Restrictions Support Grants � Mandatory Closed (COVID-19),Local Restrictions Support Grants (COVID-19),"2,001.00",An Individual
08/03/2021,Local Restrictions Support Grants � Mandatory Closed (COVID-19),Local Restrictions Support Grants (COVID-19),"2,096.00",An Individual
08/03/2021,Local Restrictions Support Grants � Mandatory Closed (COVID-19),Local Restrictions Support Grants (COVID-19),"1,334.00",An Individual
08/03/2021,Local Restrictions Support Grants � Mandatory Closed (COVID-19),Local Restrictions Support Grants (COVID-19),667.00,An Individual
20/01/2021,Closed Business Lockdown Grants (COVID-19),Closed Business Lockdown Grants (COVID-19),"4,000.00",An Individual
20/01/2021,Local Restrictions Support Grants � Mandatory Closed (COVID-19),Local Restrictions Support Grants (COVID-19),"2,001.00",An Individual
01/03/2021,Local Restrictions Support Grants � Mandatory Closed (COVID-19),Local Restrictions Support Grants (COVID-19),"2,096.00",An Individual
20/01/2021,Closed Business Lockdown Grants (COVID-19),Closed Business Lockdown Grants (COVID-19),"4,000.00",An Individual
20/01/2021,Local Restrictions Support Grants � Mandatory Closed (COVID-19),Local Restrictions Support Grants (COVID-19),"2,001.00",An Individual
22/01/2021,Local Restrictions Support Grants � Mandatory Closed (COVID-19),Local Restrictions Support Grants (COVID-19),667.00,An Individual
22/01/2021,Local Restrictions Support Grants � Mandatory Closed (COVID-19),Local Restrictions Support Grants (COVID-19),667.00,An Individual
01/03/2021,Local Restrictions Support Grants � Mandatory Closed (COVID-19),Local Restrictions Support Grants (COVID-19),"2,048.35",An Individual
20/01/2021,Closed Business Lockdown Grants (COVID-19),Closed Business Lockdown Grants (COVID-19),"6,000.00",An Individual
08/01/2021,Local Restrictions Support Grants � Mandatory Closed (COVID-19),Local Restrictions Support Grants (COVID-19),"1,000.00",An Individual
08/01/2021,Local Restrictions Support Grants � Mandatory Closed (COVID-19),Local Restrictions Support Grants (COVID-19),"1,000.00",An Individual
13/01/2021,Christmas Support Payment - Wet Led Pubs (COVID-19),Local Restrictions Support Grants (COVID-19),"1,000.00",An Individual
20/01/2021,Local Restrictions Support Grants � Mandatory Closed (COVID-19),Local Restrictions Support Grants (COVID-19),"3,000.00",An Individual
01/03/2021,Local Restrictions Support Grants � Mandatory Closed (COVID-19),Local Restrictions Support Grants (COVID-19),"3,071.57",An Individual
20/01/2021,Closed Business Lockdown Grants (COVID-19),Closed Business Lockdown Grants (COVID-19),"4,000.00",An Individual
20/01/2021,Local Restrictions Support Grants � Mandatory Closed (COVID-19),Local Restrictions Support Grants (COVID-19),"2,001.00",An Individual
22/01/2021,Local Restrictions Support Grants � Mandatory Closed (COVID-19),Local Restrictions Support Grants (COVID-19),667.00,An Individual
22/01/2021,Local Restrictions Support Grants � Mandatory Closed (COVID-19),Local Restrictions Support Grants (COVID-19),667.00,An Individual
01/03/2021,Local Restrictions Support Grants � Mandatory Closed (COVID-19),Local Restrictions Support Grants (COVID-19),"2,048.35",An Individual
20/01/2021,Closed Business Lockdown Grants (COVID-19),Closed Business Lockdown Grants (COVID-19),"4,000.00",An Individual
20/01/2021,Local Restrictions Support Grants � Mandatory Closed (COVID-19),Local Restrictions Support Grants (COVID-19),"2,001.00",An Individual
01/03/2021,Local Restrictions Support Grants � Mandatory Closed (COVID-19),Local Restrictions Support Grants (COVID-19),"2,096.00",An Individual
20/01/2021,Closed Business Lockdown Grants (COVID-19),Closed Business Lockdown Grants (COVID-19),"4,000.00",An Individual
20/01/2021,Local Restrictions Support Grants � Mandatory Closed (COVID-19),Local Restrictions Support Grants (COVID-19),"2,001.00",An Individual
01/03/2021,Local Restrictions Support Grants � Mandatory Closed (COVID-19),Local Restrictions Support Grants (COVID-19),"2,096.00",An Individual
29/01/2021,Closed Business Lockdown Grants (COVID-19),Closed Business Lockdown Grants (COVID-19),"4,000.00",An Individual
22/01/2021,Local Restrictions Support Grants � Mandatory Closed (COVID-19),Local Restrictions Support Grants (COVID-19),"1,334.00",An Individual
29/01/2021,Local Restrictions Support Grants � Mandatory Closed (COVID-19),Local Restrictions Support Grants (COVID-19),"2,001.00",An Individual
01/03/2021,Local Restrictions Support Grants � Mandatory Closed (COVID-19),Local Restrictions Support Grants (COVID-19),"2,096.00",An Individual
03/03/2021,Closed Business Lockdown Grants (COVID-19),Closed Business Lockdown Grants (COVID-19),"4,000.00",An Individual
03/03/2021,Local Restrictions Support Grants � Mandatory Closed (COVID-19),Local Restrictions Support Grants (COVID-19),"2,001.00",An Individual
03/03/2021,Local Restrictions Support Grants � Mandatory Closed (COVID-19),Local Restrictions Support Grants (COVID-19),"2,096.00",An Individual
03/03/2021,Local Restrictions Support Grants � Mandatory Closed (COVID-19),Local Restrictions Support Grants (COVID-19),"1,334.00",An Individual
20/01/2021,Closed Business Lockdown Grants (COVID-19),Closed Business Lockdown Grants (COVID-19),"4,000.00",An Individual
20/01/2021,Local Restrictions Support Grants � Mandatory Closed (COVID-19),Local Restrictions Support Grants (COVID-19),"2,001.00",An Individual
01/03/2021,Local Restrictions Support Grants � Mandatory Closed (COVID-19),Local Restrictions Support Grants (COVID-19),"2,096.00",An Individual
20/01/2021,Closed Business Lockdown Grants (COVID-19),Closed Business Lockdown Grants (COVID-19),"4,000.00",An Individual
08/01/2021,Local Restrictions Support Grants � Mandatory Closed (COVID-19),Local Restrictions Support Grants (COVID-19),"1,334.00",An Individual
20/01/2021,Local Restrictions Support Grants � Mandatory Closed (COVID-19),Local Restrictions Support Grants (COVID-19),"2,001.00",An Individual
22/01/2021,Local Restrictions Support Grants � Mandatory Closed (COVID-19),Local Restrictions Support Grants (COVID-19),667.00,An Individual
22/01/2021,Local Restrictions Support Grants � Mandatory Closed (COVID-19),Local Restrictions Support Grants (COVID-19),667.00,An Individual
01/03/2021,Local Restrictions Support Grants � Mandatory Closed (COVID-19),Local Restrictions Support Grants (COVID-19),"2,048.35",An Individual
20/01/2021,Closed Business Lockdown Grants (COVID-19),Closed Business Lockdown Grants (COVID-19),"4,000.00",An Individual
20/01/2021,Local Restrictions Support Grants � Mandatory Closed (COVID-19),Local Restrictions Support Grants (COVID-19),"2,001.00",An Individual
01/03/2021,Local Restrictions Support Grants � Mandatory Closed (COVID-19),Local Restrictions Support Grants (COVID-19),"2,096.00",An Individual
20/01/2021,Closed Business Lockdown Grants (COVID-19),Closed Business Lockdown Grants (COVID-19),"4,000.00",An Individual
20/01/2021,Local Restrictions Support Grants � Mandatory Closed (COVID-19),Local Restrictions Support Grants (COVID-19),"2,001.00",An Individual
22/01/2021,Local Restrictions Support Grants � Mandatory Closed (COVID-19),Local Restrictions Support Grants (COVID-19),667.00,An Individual
22/01/2021,Local Restrictions Support Grants � Mandatory Closed (COVID-19),Local Restrictions Support Grants (COVID-19),667.00,An Individual
01/03/2021,Local Restrictions Support Grants � Mandatory Closed (COVID-19),Local Restrictions Support Grants (COVID-19),"2,048.35",An Individual
24/02/2021,Local Restrictions Support Grants � Discretionary (COVID-19),Local Restrictions Support Grants (COVID-19),"8,666.00",An Individual
03/03/2021,Closed Business Lockdown Grants (COVID-19),Closed Business Lockdown Grants (COVID-19),"4,000.00",An Individual
03/03/2021,Local Restrictions Support Grants � Mandatory Closed (COVID-19),Local Restrictions Support Grants (COVID-19),"2,001.00",An Individual
03/03/2021,Local Restrictions Support Grants � Mandatory Closed (COVID-19),Local Restrictions Support Grants (COVID-19),"1,334.00",An Individual
03/03/2021,Local Restrictions Support Grants � Mandatory Closed (COVID-19),Local Restrictions Support Grants (COVID-19),"2,096.00",An Individual
03/03/2021,Closed Business Lockdown Grants (COVID-19),Closed Business Lockdown Grants (COVID-19),"4,000.00",An Individual
03/03/2021,Local Restrictions Support Grants � Mandatory Closed (COVID-19),Local Restrictions Support Grants (COVID-19),"2,001.00",An Individual
03/03/2021,Local Restrictions Support Grants � Mandatory Closed (COVID-19),Local Restrictions Support Grants (COVID-19),"1,334.00",An Individual
03/03/2021,Local Restrictions Support Grants � Mandatory Closed (COVID-19),Local Restrictions Support Grants (COVID-19),"2,096.00",An Individual
27/01/2021,Local Restrictions Support Grants � Discretionary (COVID-19),Local Restrictions Support Grants (COVID-19),"1,334.00",An Individual
24/02/2021,Local Restrictions Support Grants � Discretionary (COVID-19),Local Restrictions Support Grants (COVID-19),"8,666.00",An Individual
17/02/2021,Closed Business Lockdown Grants (COVID-19),Closed Business Lockdown Grants (COVID-19),"4,000.00",An Individual
17/02/2021,Local Restrictions Support Grants � Mandatory Closed (COVID-19),Local Restrictions Support Grants (COVID-19),"1,334.00",An Individual
17/02/2021,Local Restrictions Support Grants � Mandatory Closed (COVID-19),Local Restrictions Support Grants (COVID-19),"2,001.00",An Individual
01/03/2021,Local Restrictions Support Grants � Mandatory Closed (COVID-19),Local Restrictions Support Grants (COVID-19),"2,096.00",An Individual
20/01/2021,Closed Business Lockdown Grants (COVID-19),Closed Business Lockdown Grants (COVID-19),"4,000.00",An Individual
20/01/2021,Local Restrictions Support Grants � Mandatory Closed (COVID-19),Local Restrictions Support Grants (COVID-19),"2,001.00",An Individual
01/03/2021,Local Restrictions Support Grants � Mandatory Closed (COVID-19),Local Restrictions Support Grants (COVID-19),"2,096.00",An Individual
20/01/2021,Closed Business Lockdown Grants (COVID-19),Closed Business Lockdown Grants (COVID-19),"4,000.00",An Individual
20/01/2021,Local Restrictions Support Grants � Mandatory Closed (COVID-19),Local Restrictions Support Grants (COVID-19),"2,001.00",An Individual
01/03/2021,Local Restrictions Support Grants � Mandatory Closed (COVID-19),Local Restrictions Support Grants (COVID-19),"2,096.00",An Individual
10/03/2021,Closed Business Lockdown Grants (COVID-19),Closed Business Lockdown Grants (COVID-19),"4,000.00",An Individual
10/03/2021,Local Restrictions Support Grants � Mandatory Closed (COVID-19),Local Restrictions Support Grants (COVID-19),"2,001.00",An Individual
10/03/2021,Local Restrictions Support Grants � Mandatory Closed (COVID-19),Local Restrictions Support Grants (COVID-19),"2,096.00",An Individual
17/02/2021,Closed Business Lockdown Grants (COVID-19),Closed Business Lockdown Grants (COVID-19),"6,000.00",An Individual
17/02/2021,Local Restrictions Support Grants � Mandatory Closed (COVID-19),Local Restrictions Support Grants (COVID-19),"2,000.00",An Individual
17/02/2021,Local Restrictions Support Grants � Mandatory Closed (COVID-19),Local Restrictions Support Grants (COVID-19),"3,000.00",An Individual
01/03/2021,Local Restrictions Support Grants � Mandatory Closed (COVID-19),Local Restrictions Support Grants (COVID-19),"3,143.00",An Individual
17/02/2021,Closed Business Lockdown Grants (COVID-19),Closed Business Lockdown Grants (COVID-19),"4,000.00",An Individual
03/02/2021,Local Restrictions Support Grants � Mandatory Closed (COVID-19),Local Restrictions Support Grants (COVID-19),"1,334.00",An Individual
17/02/2021,Local Restrictions Support Grants � Mandatory Closed (COVID-19),Local Restrictions Support Grants (COVID-19),"2,001.00",An Individual
01/03/2021,Local Restrictions Support Grants � Mandatory Closed (COVID-19),Local Restrictions Support Grants (COVID-19),"2,096.00",An Individual
10/03/2021,Closed Business Lockdown Grants (COVID-19),Closed Business Lockdown Grants (COVID-19),"4,000.00",An Individual
10/03/2021,Local Restrictions Support Grants � Mandatory Closed (COVID-19),Local Restrictions Support Grants (COVID-19),"1,334.00",An Individual
10/03/2021,Local Restrictions Support Grants � Mandatory Closed (COVID-19),Local Restrictions Support Grants (COVID-19),"2,001.00",An Individual
10/03/2021,Local Restrictions Support Grants � Mandatory Closed (COVID-19),Local Restrictions Support Grants (COVID-19),667.00,An Individual
10/03/2021,Local Restrictions Support Grants � Mandatory Closed (COVID-19),Local Restrictions Support Grants (COVID-19),"2,096.00",An Individual
10/03/2021,Local Restrictions Support Grants � Mandatory Closed (COVID-19),Local Restrictions Support Grants (COVID-19),667.00,An Individual
20/01/2021,Closed Business Lockdown Grants (COVID-19),Closed Business Lockdown Grants (COVID-19),"4,000.00",An Individual
20/01/2021,Local Restrictions Support Grants � Mandatory Closed (COVID-19),Local Restrictions Support Grants (COVID-19),"2,001.00",An Individual
01/03/2021,Local Restrictions Support Grants � Mandatory Closed (COVID-19),Local Restrictions Support Grants (COVID-19),"2,096.00",An Individual
18/01/2021,Consultants,Management Local Outbreaks - SCC Grant Env Health (COVID-19),581.00,An Individual
20/01/2021,Closed Business Lockdown Grants (COVID-19),Closed Business Lockdown Grants (COVID-19),"4,000.00",An Individual
20/01/2021,Local Restrictions Support Grants � Mandatory Closed (COVID-19),Local Restrictions Support Grants (COVID-19),"2,001.00",An Individual
22/01/2021,Local Restrictions Support Grants � Mandatory Closed (COVID-19),Local Restrictions Support Grants (COVID-19),667.00,An Individual
22/01/2021,Local Restrictions Support Grants � Mandatory Closed (COVID-19),Local Restrictions Support Grants (COVID-19),667.00,An Individual
01/03/2021,Local Restrictions Support Grants � Mandatory Closed (COVID-19),Local Restrictions Support Grants (COVID-19),"2,048.35",An Individual
06/01/2021,Local Restrictions Support Grants � Mandatory Closed (COVID-19),Local Restrictions Support Grants (COVID-19),"2,000.00",An Individual
17/02/2021,Closed Business Lockdown Grants (COVID-19),Closed Business Lockdown Grants (COVID-19),"4,000.00",An Individual
17/02/2021,Local Restrictions Support Grants � Mandatory Closed (COVID-19),Local Restrictions Support Grants (COVID-19),"1,334.00",An Individual
17/02/2021,Local Restrictions Support Grants � Mandatory Closed (COVID-19),Local Restrictions Support Grants (COVID-19),"2,001.00",An Individual
01/03/2021,Local Restrictions Support Grants � Mandatory Closed (COVID-19),Local Restrictions Support Grants (COVID-19),"2,096.00",An Individual
20/01/2021,Closed Business Lockdown Grants (COVID-19),Closed Business Lockdown Grants (COVID-19),"4,000.00",An Individual
20/01/2021,Local Restrictions Support Grants � Mandatory Closed (COVID-19),Local Restrictions Support Grants (COVID-19),"2,001.00",An Individual
22/01/2021,Local Restrictions Support Grants � Mandatory Closed (COVID-19),Local Restrictions Support Grants (COVID-19),667.00,An Individual
22/01/2021,Local Restrictions Support Grants � Mandatory Closed (COVID-19),Local Restrictions Support Grants (COVID-19),667.00,An Individual
01/03/2021,Local Restrictions Support Grants � Mandatory Closed (COVID-19),Local Restrictions Support Grants (COVID-19),"2,048.35",An Individual
20/01/2021,Closed Business Lockdown Grants (COVID-19),Closed Business Lockdown Grants (COVID-19),"4,000.00",An Individual
13/01/2021,Local Restrictions Support Grants � Mandatory Closed (COVID-19),Local Restrictions Support Grants (COVID-19),"1,334.00",An Individual
20/01/2021,Local Restrictions Support Grants � Mandatory Closed (COVID-19),Local Restrictions Support Grants (COVID-19),"2,001.00",An Individual
01/03/2021,Local Restrictions Support Grants � Mandatory Closed (COVID-19),Local Restrictions Support Grants (COVID-19),"2,096.00",An Individual
20/01/2021,Closed Business Lockdown Grants (COVID-19),Closed Business Lockdown Grants (COVID-19),"4,000.00",An Individual
20/01/2021,Local Restrictions Support Grants � Mandatory Closed (COVID-19),Local Restrictions Support Grants (COVID-19),"2,001.00",An Individual
01/03/2021,Local Restrictions Support Grants � Mandatory Closed (COVID-19),Local Restrictions Support Grants (COVID-19),"2,096.00",An Individual
17/02/2021,Closed Business Lockdown Grants (COVID-19),Closed Business Lockdown Grants (COVID-19),"4,000.00",An Individual
17/02/2021,Local Restrictions Support Grants � Mandatory Closed (COVID-19),Local Restrictions Support Grants (COVID-19),"1,334.00",An Individual
17/02/2021,Local Restrictions Support Grants � Mandatory Closed (COVID-19),Local Restrictions Support Grants (COVID-19),"2,001.00",An Individual
01/03/2021,Local Restrictions Support Grants � Mandatory Closed (COVID-19),Local Restrictions Support Grants (COVID-19),"2,096.00",An Individual
20/01/2021,Closed Business Lockdown Grants (COVID-19),Closed Business Lockdown Grants (COVID-19),"4,000.00",An Individual
20/01/2021,Local Restrictions Support Grants � Mandatory Closed (COVID-19),Local Restrictions Support Grants (COVID-19),"2,001.00",An Individual
01/03/2021,Local Restrictions Support Grants � Mandatory Closed (COVID-19),Local Restrictions Support Grants (COVID-19),"2,096.00",An Individual
20/01/2021,Closed Business Lockdown Grants (COVID-19),Closed Business Lockdown Grants (COVID-19),"4,000.00",An Individual
08/01/2021,Local Restrictions Support Grants � Mandatory Closed (COVID-19),Local Restrictions Support Grants (COVID-19),"1,334.00",An Individual
20/01/2021,Local Restrictions Support Grants � Mandatory Closed (COVID-19),Local Restrictions Support Grants (COVID-19),"2,001.00",An Individual
22/01/2021,Local Restrictions Support Grants � Mandatory Closed (COVID-19),Local Restrictions Support Grants (COVID-19),667.00,An Individual
22/01/2021,Local Restrictions Support Grants � Mandatory Closed (COVID-19),Local Restrictions Support Grants (COVID-19),667.00,An Individual
01/03/2021,Local Restrictions Support Grants � Mandatory Closed (COVID-19),Local Restrictions Support Grants (COVID-19),"2,048.35",An Individual
17/02/2021,Closed Business Lockdown Grants (COVID-19),Closed Business Lockdown Grants (COVID-19),"4,000.00",An Individual
17/02/2021,Local Restrictions Support Grants � Mandatory Closed (COVID-19),Local Restrictions Support Grants (COVID-19),"1,334.00",An Individual
17/02/2021,Local Restrictions Support Grants � Mandatory Closed (COVID-19),Local Restrictions Support Grants (COVID-19),"2,001.00",An Individual
01/03/2021,Local Restrictions Support Grants � Mandatory Closed (COVID-19),Local Restrictions Support Grants (COVID-19),"2,096.00",An Individual
20/01/2021,Closed Business Lockdown Grants (COVID-19),Closed Business Lockdown Grants (COVID-19),"4,000.00",An Individual
20/01/2021,Local Restrictions Support Grants � Mandatory Closed (COVID-19),Local Restrictions Support Grants (COVID-19),"2,001.00",An Individual
01/03/2021,Local Restrictions Support Grants � Mandatory Closed (COVID-19),Local Restrictions Support Grants (COVID-19),"2,096.00",An Individual
20/01/2021,Closed Business Lockdown Grants (COVID-19),Closed Business Lockdown Grants (COVID-19),"4,000.00",An Individual
08/01/2021,Local Restrictions Support Grants � Mandatory Closed (COVID-19),Local Restrictions Support Grants (COVID-19),667.00,An Individual
08/01/2021,Local Restrictions Support Grants � Mandatory Closed (COVID-19),Local Restrictions Support Grants (COVID-19),667.00,An Individual
20/01/2021,Local Restrictions Support Grants � Mandatory Closed (COVID-19),Local Restrictions Support Grants (COVID-19),"2,001.00",An Individual
01/03/2021,Local Restrictions Support Grants � Mandatory Closed (COVID-19),Local Restrictions Support Grants (COVID-19),"2,048.35",An Individual
31/03/2021,Local Restrictions Support Grants � Discretionary (COVID-19),Local Restrictions Support Grants (COVID-19),"10,000.00",An Individual
24/02/2021,Closed Business Lockdown Grants (COVID-19),Closed Business Lockdown Grants (COVID-19),"4,000.00",An Individual
24/02/2021,Local Restrictions Support Grants � Mandatory Closed (COVID-19),Local Restrictions Support Grants (COVID-19),"1,334.00",An Individual
24/02/2021,Local Restrictions Support Grants � Mandatory Closed (COVID-19),Local Restrictions Support Grants (COVID-19),"2,001.00",An Individual
01/03/2021,Local Restrictions Support Grants � Mandatory Closed (COVID-19),Local Restrictions Support Grants (COVID-19),"2,096.00",An Individual
20/01/2021,Closed Business Lockdown Grants (COVID-19),Closed Business Lockdown Grants (COVID-19),"6,000.00",An Individual
20/01/2021,Local Restrictions Support Grants � Mandatory Closed (COVID-19),Local Restrictions Support Grants (COVID-19),"3,000.00",An Individual
24/02/2021,Local Restrictions Support Grants � Mandatory Closed (COVID-19),Local Restrictions Support Grants (COVID-19),"1,000.00",An Individual
24/02/2021,Local Restrictions Support Grants � Mandatory Closed (COVID-19),Local Restrictions Support Grants (COVID-19),"1,000.00",An Individual
01/03/2021,Local Restrictions Support Grants � Mandatory Closed (COVID-19),Local Restrictions Support Grants (COVID-19),"3,143.00",An Individual
08/03/2021,Closed Business Lockdown Grants (COVID-19),Closed Business Lockdown Grants (COVID-19),"4,000.00",An Individual
08/03/2021,Local Restrictions Support Grants � Mandatory Closed (COVID-19),Local Restrictions Support Grants (COVID-19),"1,334.00",An Individual
08/03/2021,Local Restrictions Support Grants � Mandatory Closed (COVID-19),Local Restrictions Support Grants (COVID-19),"2,001.00",An Individual
08/03/2021,Local Restrictions Support Grants � Mandatory Closed (COVID-19),Local Restrictions Support Grants (COVID-19),667.00,An Individual
08/03/2021,Local Restrictions Support Grants � Mandatory Closed (COVID-19),Local Restrictions Support Grants (COVID-19),"2,096.00",An Individual
08/03/2021,Local Restrictions Support Grants � Mandatory Closed (COVID-19),Local Restrictions Support Grants (COVID-19),667.00,An Individual
20/01/2021,Closed Business Lockdown Grants (COVID-19),Closed Business Lockdown Grants (COVID-19),"4,000.00",An Individual
20/01/2021,Local Restrictions Support Grants � Mandatory Closed (COVID-19),Local Restrictions Support Grants (COVID-19),"2,001.00",An Individual
22/01/2021,Local Restrictions Support Grants � Mandatory Closed (COVID-19),Local Restrictions Support Grants (COVID-19),667.00,An Individual
22/01/2021,Local Restrictions Support Grants � Mandatory Closed (COVID-19),Local Restrictions Support Grants (COVID-19),667.00,An Individual
01/03/2021,Local Restrictions Support Grants � Mandatory Closed (COVID-19),Local Restrictions Support Grants (COVID-19),"2,048.35",An Individual
20/01/2021,Closed Business Lockdown Grants (COVID-19),Closed Business Lockdown Grants (COVID-19),"4,000.00",An Individual
20/01/2021,Local Restrictions Support Grants � Mandatory Closed (COVID-19),Local Restrictions Support Grants (COVID-19),"2,001.00",An Individual
01/03/2021,Local Restrictions Support Grants � Mandatory Closed (COVID-19),Local Restrictions Support Grants (COVID-19),"2,096.00",An Individual
08/03/2021,Closed Business Lockdown Grants (COVID-19),Closed Business Lockdown Grants (COVID-19),"4,000.00",An Individual
08/03/2021,Local Restrictions Support Grants � Mandatory Closed (COVID-19),Local Restrictions Support Grants (COVID-19),667.00,An Individual
08/03/2021,Local Restrictions Support Grants � Mandatory Closed (COVID-19),Local Restrictions Support Grants (COVID-19),667.00,An Individual
08/03/2021,Local Restrictions Support Grants � Mandatory Closed (COVID-19),Local Restrictions Support Grants (COVID-19),"2,001.00",An Individual
08/03/2021,Local Restrictions Support Grants � Mandatory Closed (COVID-19),Local Restrictions Support Grants (COVID-19),"1,334.00",An Individual
08/03/2021,Local Restrictions Support Grants � Mandatory Closed (COVID-19),Local Restrictions Support Grants (COVID-19),"2,096.00",An Individual
20/01/2021,Closed Business Lockdown Grants (COVID-19),Closed Business Lockdown Grants (COVID-19),"4,000.00",An Individual
20/01/2021,Local Restrictions Support Grants � Mandatory Closed (COVID-19),Local Restrictions Support Grants (COVID-19),"2,001.00",An Individual
01/03/2021,Local Restrictions Support Grants � Mandatory Closed (COVID-19),Local Restrictions Support Grants (COVID-19),"2,096.00",An Individual
20/01/2021,Closed Business Lockdown Grants (COVID-19),Closed Business Lockdown Grants (COVID-19),"4,000.00",An Individual
20/01/2021,Local Restrictions Support Grants � Mandatory Closed (COVID-19),Local Restrictions Support Grants (COVID-19),"2,001.00",An Individual
01/03/2021,Local Restrictions Support Grants � Mandatory Closed (COVID-19),Local Restrictions Support Grants (COVID-19),"2,096.00",An Individual
20/01/2021,Closed Business Lockdown Grants (COVID-19),Closed Business Lockdown Grants (COVID-19),"4,000.00",An Individual
20/01/2021,Local Restrictions Support Grants � Mandatory Closed (COVID-19),Local Restrictions Support Grants (COVID-19),"2,001.00",An Individual
22/01/2021,Local Restrictions Support Grants � Mandatory Closed (COVID-19),Local Restrictions Support Grants (COVID-19),667.00,An Individual
22/01/2021,Local Restrictions Support Grants � Mandatory Closed (COVID-19),Local Restrictions Support Grants (COVID-19),667.00,An Individual
01/03/2021,Local Restrictions Support Grants � Mandatory Closed (COVID-19),Local Restrictions Support Grants (COVID-19),"2,048.35",An Individual
20/01/2021,Closed Business Lockdown Grants (COVID-19),Closed Business Lockdown Grants (COVID-19),"4,000.00",An Individual
20/01/2021,Local Restrictions Support Grants � Mandatory Closed (COVID-19),Local Restrictions Support Grants (COVID-19),"2,001.00",An Individual
01/03/2021,Local Restrictions Support Grants � Mandatory Closed (COVID-19),Local Restrictions Support Grants (COVID-19),"2,096.00",An Individual
03/03/2021,Closed Business Lockdown Grants (COVID-19),Closed Business Lockdown Grants (COVID-19),"4,000.00",An Individual
03/03/2021,Local Restrictions Support Grants � Mandatory Closed (COVID-19),Local Restrictions Support Grants (COVID-19),"1,334.00",An Individual
03/03/2021,Local Restrictions Support Grants � Mandatory Closed (COVID-19),Local Restrictions Support Grants (COVID-19),"2,096.00",An Individual
03/03/2021,Local Restrictions Support Grants � Mandatory Closed (COVID-19),Local Restrictions Support Grants (COVID-19),"2,001.00",An Individual
10/02/2021,Closed Business Lockdown Grants (COVID-19),Closed Business Lockdown Grants (COVID-19),"4,000.00",An Individual
10/02/2021,Local Restrictions Support Grants � Mandatory Closed (COVID-19),Local Restrictions Support Grants (COVID-19),"1,334.00",An Individual
10/02/2021,Local Restrictions Support Grants � Mandatory Closed (COVID-19),Local Restrictions Support Grants (COVID-19),"2,001.00",An Individual
01/03/2021,Local Restrictions Support Grants � Mandatory Closed (COVID-19),Local Restrictions Support Grants (COVID-19),"2,096.00",An Individual
31/03/2021,Local Restrictions Support Grants � Discretionary (COVID-19),Local Restrictions Support Grants (COVID-19),"10,000.00",An Individual
20/01/2021,Closed Business Lockdown Grants (COVID-19),Closed Business Lockdown Grants (COVID-19),"4,000.00",An Individual
20/01/2021,Local Restrictions Support Grants � Mandatory Closed (COVID-19),Local Restrictions Support Grants (COVID-19),"2,001.00",An Individual
01/03/2021,Local Restrictions Support Grants � Mandatory Closed (COVID-19),Local Restrictions Support Grants (COVID-19),"2,096.00",An Individual
20/01/2021,Closed Business Lockdown Grants (COVID-19),Closed Business Lockdown Grants (COVID-19),"4,000.00",An Individual
20/01/2021,Local Restrictions Support Grants � Mandatory Closed (COVID-19),Local Restrictions Support Grants (COVID-19),"2,001.00",An Individual
01/03/2021,Local Restrictions Support Grants � Mandatory Closed (COVID-19),Local Restrictions Support Grants (COVID-19),"2,096.00",An Individual
20/01/2021,Closed Business Lockdown Grants (COVID-19),Closed Business Lockdown Grants (COVID-19),"4,000.00",An Individual
20/01/2021,Local Restrictions Support Grants � Mandatory Closed (COVID-19),Local Restrictions Support Grants (COVID-19),"2,001.00",An Individual
01/03/2021,Local Restrictions Support Grants � Mandatory Closed (COVID-19),Local Restrictions Support Grants (COVID-19),"2,096.00",An Individual
02/03/2021,DFG Contractor Payments,Housing Standards,"23,600.00",An Individual
20/01/2021,Closed Business Lockdown Grants (COVID-19),Closed Business Lockdown Grants (COVID-19),"4,000.00",An Individual
20/01/2021,Local Restrictions Support Grants � Mandatory Closed (COVID-19),Local Restrictions Support Grants (COVID-19),"2,001.00",An Individual
01/03/2021,Local Restrictions Support Grants � Mandatory Closed (COVID-19),Local Restrictions Support Grants (COVID-19),"2,096.00",An Individual
20/01/2021,Closed Business Lockdown Grants (COVID-19),Closed Business Lockdown Grants (COVID-19),"4,000.00",An Individual
20/01/2021,Closed Business Lockdown Grants (COVID-19),Closed Business Lockdown Grants (COVID-19),"4,000.00",An Individual
20/01/2021,Local Restrictions Support Grants � Mandatory Closed (COVID-19),Local Restrictions Support Grants (COVID-19),"2,001.00",An Individual
01/03/2021,Local Restrictions Support Grants � Mandatory Closed (COVID-19),Local Restrictions Support Grants (COVID-19),"2,096.00",An Individual
17/02/2021,Closed Business Lockdown Grants (COVID-19),Closed Business Lockdown Grants (COVID-19),"4,000.00",An Individual
20/01/2021,Local Restrictions Support Grants � Mandatory Closed (COVID-19),Local Restrictions Support Grants (COVID-19),"1,334.00",An Individual
17/02/2021,Local Restrictions Support Grants � Mandatory Closed (COVID-19),Local Restrictions Support Grants (COVID-19),"2,001.00",An Individual
01/03/2021,Local Restrictions Support Grants � Mandatory Closed (COVID-19),Local Restrictions Support Grants (COVID-19),"2,096.00",An Individual
20/01/2021,Closed Business Lockdown Grants (COVID-19),Closed Business Lockdown Grants (COVID-19),"4,000.00",An Individual
20/01/2021,Local Restrictions Support Grants � Mandatory Closed (COVID-19),Local Restrictions Support Grants (COVID-19),"2,001.00",An Individual
01/03/2021,Local Restrictions Support Grants � Mandatory Closed (COVID-19),Local Restrictions Support Grants (COVID-19),"2,096.00",An Individual
29/01/2021,Closed Business Lockdown Grants (COVID-19),Closed Business Lockdown Grants (COVID-19),"4,000.00",An Individual
27/01/2021,Local Restrictions Support Grants � Mandatory Closed (COVID-19),Local Restrictions Support Grants (COVID-19),"1,334.00",An Individual
29/01/2021,Local Restrictions Support Grants � Mandatory Closed (COVID-19),Local Restrictions Support Grants (COVID-19),"2,001.00",An Individual
01/03/2021,Local Restrictions Support Grants � Mandatory Closed (COVID-19),Local Restrictions Support Grants (COVID-19),"2,096.00",An Individual
17/02/2021,Closed Business Lockdown Grants (COVID-19),Closed Business Lockdown Grants (COVID-19),"4,000.00",An Individual
17/02/2021,Local Restrictions Support Grants � Mandatory Closed (COVID-19),Local Restrictions Support Grants (COVID-19),"1,334.00",An Individual
17/02/2021,Local Restrictions Support Grants � Mandatory Closed (COVID-19),Local Restrictions Support Grants (COVID-19),"2,001.00",An Individual
01/03/2021,Local Restrictions Support Grants � Mandatory Closed (COVID-19),Local Restrictions Support Grants (COVID-19),"2,096.00",An Individual
08/03/2021,Closed Business Lockdown Grants (COVID-19),Closed Business Lockdown Grants (COVID-19),"6,000.00",An Individual
08/03/2021,Local Restrictions Support Grants � Mandatory Closed (COVID-19),Local Restrictions Support Grants (COVID-19),"3,000.00",An Individual
08/03/2021,Local Restrictions Support Grants � Mandatory Closed (COVID-19),Local Restrictions Support Grants (COVID-19),"3,143.00",An Individual
20/01/2021,Closed Business Lockdown Grants (COVID-19),Closed Business Lockdown Grants (COVID-19),"6,000.00",An Individual
08/01/2021,Local Restrictions Support Grants � Mandatory Closed (COVID-19),Local Restrictions Support Grants (COVID-19),"1,000.00",An Individual
08/01/2021,Local Restrictions Support Grants � Mandatory Closed (COVID-19),Local Restrictions Support Grants (COVID-19),"1,000.00",An Individual
20/01/2021,Local Restrictions Support Grants � Mandatory Closed (COVID-19),Local Restrictions Support Grants (COVID-19),"3,000.00",An Individual
01/03/2021,Local Restrictions Support Grants � Mandatory Closed (COVID-19),Local Restrictions Support Grants (COVID-19),"3,071.57",An Individual
08/03/2021,Christmas Support Payment - Wet Led Pubs (COVID-19),Local Restrictions Support Grants (COVID-19),"1,000.00",An Individual
20/01/2021,Closed Business Lockdown Grants (COVID-19),Closed Business Lockdown Grants (COVID-19),"4,000.00",An Individual
06/01/2021,Local Restrictions Support Grants � Mandatory Closed (COVID-19),Local Restrictions Support Grants (COVID-19),"1,334.00",An Individual
20/01/2021,Local Restrictions Support Grants � Mandatory Closed (COVID-19),Local Restrictions Support Grants (COVID-19),"2,001.00",An Individual
01/03/2021,Local Restrictions Support Grants � Mandatory Closed (COVID-19),Local Restrictions Support Grants (COVID-19),"2,096.00",An Individual
20/01/2021,Closed Business Lockdown Grants (COVID-19),Closed Business Lockdown Grants (COVID-19),"4,000.00",An Individual
20/01/2021,Local Restrictions Support Grants � Mandatory Closed (COVID-19),Local Restrictions Support Grants (COVID-19),"2,001.00",An Individual
01/03/2021,Local Restrictions Support Grants � Mandatory Closed (COVID-19),Local Restrictions Support Grants (COVID-19),"2,096.00",An Individual
24/02/2021,Closed Business Lockdown Grants (COVID-19),Closed Business Lockdown Grants (COVID-19),"4,000.00",An Individual
24/02/2021,Local Restrictions Support Grants � Mandatory Closed (COVID-19),Local Restrictions Support Grants (COVID-19),"2,001.00",An Individual
01/03/2021,Local Restrictions Support Grants � Mandatory Closed (COVID-19),Local Restrictions Support Grants (COVID-19),"2,096.00",An Individual
20/01/2021,Closed Business Lockdown Grants (COVID-19),Closed Business Lockdown Grants (COVID-19),"4,000.00",An Individual
20/01/2021,Local Restrictions Support Grants � Mandatory Closed (COVID-19),Local Restrictions Support Grants (COVID-19),"2,001.00",An Individual
01/03/2021,Local Restrictions Support Grants � Mandatory Closed (COVID-19),Local Restrictions Support Grants (COVID-19),"2,096.00",An Individual
20/01/2021,Closed Business Lockdown Grants (COVID-19),Closed Business Lockdown Grants (COVID-19),"4,000.00",An Individual
20/01/2021,Local Restrictions Support Grants � Mandatory Closed (COVID-19),Local Restrictions Support Grants (COVID-19),"2,001.00",An Individual
01/03/2021,Local Restrictions Support Grants � Mandatory Closed (COVID-19),Local Restrictions Support Grants (COVID-19),"2,096.00",An Individual
10/02/2021,Closed Business Lockdown Grants (COVID-19),Closed Business Lockdown Grants (COVID-19),"4,000.00",An Individual
10/02/2021,Local Restrictions Support Grants � Mandatory Closed (COVID-19),Local Restrictions Support Grants (COVID-19),"2,001.00",An Individual
10/02/2021,Local Restrictions Support Grants � Mandatory Closed (COVID-19),Local Restrictions Support Grants (COVID-19),"1,334.00",An Individual
01/03/2021,Local Restrictions Support Grants � Mandatory Closed (COVID-19),Local Restrictions Support Grants (COVID-19),"2,096.00",An Individual
08/03/2021,Local Restrictions Support Grants � Discretionary (COVID-19),Local Restrictions Support Grants (COVID-19),"10,000.00",An Individual
22/01/2021,Local Restrictions Support Grants � Discretionary (COVID-19),Local Restrictions Support Grants (COVID-19),"1,334.00",An Individual
24/02/2021,Local Restrictions Support Grants � Discretionary (COVID-19),Local Restrictions Support Grants (COVID-19),"8,666.00",An Individual
20/01/2021,Closed Business Lockdown Grants (COVID-19),Closed Business Lockdown Grants (COVID-19),"4,000.00",An Individual
20/01/2021,Local Restrictions Support Grants � Mandatory Closed (COVID-19),Local Restrictions Support Grants (COVID-19),"2,001.00",An Individual
01/03/2021,Local Restrictions Support Grants � Mandatory Closed (COVID-19),Local Restrictions Support Grants (COVID-19),"2,096.00",An Individual
20/01/2021,Closed Business Lockdown Grants (COVID-19),Closed Business Lockdown Grants (COVID-19),"4,000.00",An Individual
20/01/2021,Local Restrictions Support Grants � Mandatory Closed (COVID-19),Local Restrictions Support Grants (COVID-19),"2,001.00",An Individual
22/01/2021,Local Restrictions Support Grants � Mandatory Closed (COVID-19),Local Restrictions Support Grants (COVID-19),667.00,An Individual
22/01/2021,Local Restrictions Support Grants � Mandatory Closed (COVID-19),Local Restrictions Support Grants (COVID-19),667.00,An Individual
01/03/2021,Local Restrictions Support Grants � Mandatory Closed (COVID-19),Local Restrictions Support Grants (COVID-19),"2,048.35",An Individual
20/01/2021,Closed Business Lockdown Grants (COVID-19),Closed Business Lockdown Grants (COVID-19),"4,000.00",An Individual
20/01/2021,Local Restrictions Support Grants � Mandatory Closed (COVID-19),Local Restrictions Support Grants (COVID-19),"2,001.00",An Individual
01/03/2021,Local Restrictions Support Grants � Mandatory Closed (COVID-19),Local Restrictions Support Grants (COVID-19),"2,096.00",An Individual
20/01/2021,Closed Business Lockdown Grants (COVID-19),Closed Business Lockdown Grants (COVID-19),"4,000.00",An Individual
20/01/2021,Local Restrictions Support Grants � Mandatory Closed (COVID-19),Local Restrictions Support Grants (COVID-19),"2,001.00",An Individual
01/03/2021,Local Restrictions Support Grants � Mandatory Closed (COVID-19),Local Restrictions Support Grants (COVID-19),"2,096.00",An Individual
03/03/2021,Closed Business Lockdown Grants (COVID-19),Closed Business Lockdown Grants (COVID-19),"4,000.00",An Individual
03/03/2021,Local Restrictions Support Grants � Mandatory Closed (COVID-19),Local Restrictions Support Grants (COVID-19),"2,001.00",An Individual
03/03/2021,Local Restrictions Support Grants � Mandatory Closed (COVID-19),Local Restrictions Support Grants (COVID-19),"1,334.00",An Individual
03/03/2021,Local Restrictions Support Grants � Mandatory Closed (COVID-19),Local Restrictions Support Grants (COVID-19),"2,096.00",An Individual
20/01/2021,Closed Business Lockdown Grants (COVID-19),Closed Business Lockdown Grants (COVID-19),"4,000.00",An Individual
20/01/2021,Local Restrictions Support Grants � Mandatory Closed (COVID-19),Local Restrictions Support Grants (COVID-19),"2,001.00",An Individual
01/03/2021,Local Restrictions Support Grants � Mandatory Closed (COVID-19),Local Restrictions Support Grants (COVID-19),"2,096.00",An Individual
20/01/2021,Closed Business Lockdown Grants (COVID-19),Closed Business Lockdown Grants (COVID-19),"4,000.00",An Individual
20/01/2021,Local Restrictions Support Grants � Mandatory Closed (COVID-19),Local Restrictions Support Grants (COVID-19),"2,001.00",An Individual
01/03/2021,Local Restrictions Support Grants � Mandatory Closed (COVID-19),Local Restrictions Support Grants (COVID-19),"2,096.00",An Individual
17/03/2021,Closed Business Lockdown Grants (COVID-19),Closed Business Lockdown Grants (COVID-19),"4,000.00",An Individual
17/03/2021,Local Restrictions Support Grants � Mandatory Closed (COVID-19),Local Restrictions Support Grants (COVID-19),667.00,An Individual
17/03/2021,Local Restrictions Support Grants � Mandatory Closed (COVID-19),Local Restrictions Support Grants (COVID-19),667.00,An Individual
17/03/2021,Local Restrictions Support Grants � Mandatory Closed (COVID-19),Local Restrictions Support Grants (COVID-19),"2,001.00",An Individual
17/03/2021,Local Restrictions Support Grants � Mandatory Closed (COVID-19),Local Restrictions Support Grants (COVID-19),"2,096.00",An Individual
17/03/2021,Local Restrictions Support Grants � Mandatory Closed (COVID-19),Local Restrictions Support Grants (COVID-19),"1,334.00",An Individual
20/01/2021,Closed Business Lockdown Grants (COVID-19),Closed Business Lockdown Grants (COVID-19),"4,000.00",An Individual
08/01/2021,Local Restrictions Support Grants � Mandatory Closed (COVID-19),Local Restrictions Support Grants (COVID-19),667.00,An Individual
08/01/2021,Local Restrictions Support Grants � Mandatory Closed (COVID-19),Local Restrictions Support Grants (COVID-19),667.00,An Individual
13/01/2021,Christmas Support Payment - Wet Led Pubs (COVID-19),Local Restrictions Support Grants (COVID-19),"1,000.00",An Individual
20/01/2021,Local Restrictions Support Grants � Mandatory Closed (COVID-19),Local Restrictions Support Grants (COVID-19),"2,001.00",An Individual
01/03/2021,Local Restrictions Support Grants � Mandatory Closed (COVID-19),Local Restrictions Support Grants (COVID-19),"2,048.35",An Individual
03/03/2021,Local Restrictions Support Grants � Mandatory Closed (COVID-19),Local Restrictions Support Grants (COVID-19),"1,334.00",An Individual
20/01/2021,Closed Business Lockdown Grants (COVID-19),Closed Business Lockdown Grants (COVID-19),"4,000.00",An Individual
20/01/2021,Closed Business Lockdown Grants (COVID-19),Closed Business Lockdown Grants (COVID-19),"4,000.00",An Individual
20/01/2021,Closed Business Lockdown Grants (COVID-19),Closed Business Lockdown Grants (COVID-19),"4,000.00",An Individual
08/01/2021,Local Restrictions Support Grants � Mandatory Closed (COVID-19),Local Restrictions Support Grants (COVID-19),"1,334.00",An Individual
13/01/2021,Local Restrictions Support Grants � Mandatory Closed (COVID-19),Local Restrictions Support Grants (COVID-19),"1,334.00",An Individual
20/01/2021,Local Restrictions Support Grants � Mandatory Closed (COVID-19),Local Restrictions Support Grants (COVID-19),"2,001.00",An Individual
20/01/2021,Local Restrictions Support Grants � Mandatory Closed (COVID-19),Local Restrictions Support Grants (COVID-19),"2,001.00",An Individual
20/01/2021,Local Restrictions Support Grants � Mandatory Closed (COVID-19),Local Restrictions Support Grants (COVID-19),"2,001.00",An Individual
22/01/2021,Local Restrictions Support Grants � Mandatory Closed (COVID-19),Local Restrictions Support Grants (COVID-19),667.00,An Individual
22/01/2021,Local Restrictions Support Grants � Mandatory Closed (COVID-19),Local Restrictions Support Grants (COVID-19),667.00,An Individual
22/01/2021,Local Restrictions Support Grants � Mandatory Closed (COVID-19),Local Restrictions Support Grants (COVID-19),667.00,An Individual
22/01/2021,Local Restrictions Support Grants � Mandatory Closed (COVID-19),Local Restrictions Support Grants (COVID-19),667.00,An Individual
22/01/2021,Local Restrictions Support Grants � Mandatory Closed (COVID-19),Local Restrictions Support Grants (COVID-19),667.00,An Individual
22/01/2021,Local Restrictions Support Grants � Mandatory Closed (COVID-19),Local Restrictions Support Grants (COVID-19),667.00,An Individual
01/03/2021,Local Restrictions Support Grants � Mandatory Closed (COVID-19),Local Restrictions Support Grants (COVID-19),"2,048.35",An Individual
01/03/2021,Local Restrictions Support Grants � Mandatory Closed (COVID-19),Local Restrictions Support Grants (COVID-19),"2,048.35",An Individual
01/03/2021,Local Restrictions Support Grants � Mandatory Closed (COVID-19),Local Restrictions Support Grants (COVID-19),"2,048.35",An Individual
20/01/2021,Closed Business Lockdown Grants (COVID-19),Closed Business Lockdown Grants (COVID-19),"4,000.00",An Individual
08/01/2021,Local Restrictions Support Grants � Mandatory Closed (COVID-19),Local Restrictions Support Grants (COVID-19),667.00,An Individual
08/01/2021,Local Restrictions Support Grants � Mandatory Closed (COVID-19),Local Restrictions Support Grants (COVID-19),667.00,An Individual
20/01/2021,Local Restrictions Support Grants � Mandatory Closed (COVID-19),Local Restrictions Support Grants (COVID-19),"2,001.00",An Individual
20/01/2021,Christmas Support Payment - Wet Led Pubs (COVID-19),Local Restrictions Support Grants (COVID-19),"1,000.00",An Individual
01/03/2021,Local Restrictions Support Grants � Mandatory Closed (COVID-19),Local Restrictions Support Grants (COVID-19),"2,048.35",An Individual
20/01/2021,Closed Business Lockdown Grants (COVID-19),Closed Business Lockdown Grants (COVID-19),"6,000.00",An Individual
08/01/2021,Local Restrictions Support Grants � Mandatory Closed (COVID-19),Local Restrictions Support Grants (COVID-19),"2,000.00",An Individual
20/01/2021,Local Restrictions Support Grants � Mandatory Closed (COVID-19),Local Restrictions Support Grants (COVID-19),"3,000.00",An Individual
01/03/2021,Local Restrictions Support Grants � Mandatory Closed (COVID-19),Local Restrictions Support Grants (COVID-19),"3,143.00",An Individual
29/01/2021,Local Restrictions Support Grants � Mandatory Closed (COVID-19),Local Restrictions Support Grants (COVID-19),"2,000.00",An Individual
20/01/2021,Closed Business Lockdown Grants (COVID-19),Closed Business Lockdown Grants (COVID-19),"4,000.00",An Individual
20/01/2021,Local Restrictions Support Grants � Mandatory Closed (COVID-19),Local Restrictions Support Grants (COVID-19),"2,001.00",An Individual
01/03/2021,Local Restrictions Support Grants � Mandatory Closed (COVID-19),Local Restrictions Support Grants (COVID-19),"2,096.00",An Individual
20/01/2021,Closed Business Lockdown Grants (COVID-19),Closed Business Lockdown Grants (COVID-19),"4,000.00",An Individual
20/01/2021,Local Restrictions Support Grants � Mandatory Closed (COVID-19),Local Restrictions Support Grants (COVID-19),"2,001.00",An Individual
01/03/2021,Local Restrictions Support Grants � Mandatory Closed (COVID-19),Local Restrictions Support Grants (COVID-19),"2,096.00",An Individual
20/01/2021,Closed Business Lockdown Grants (COVID-19),Closed Business Lockdown Grants (COVID-19),"4,000.00",An Individual
20/01/2021,Local Restrictions Support Grants � Mandatory Closed (COVID-19),Local Restrictions Support Grants (COVID-19),"2,001.00",An Individual
01/03/2021,Local Restrictions Support Grants � Mandatory Closed (COVID-19),Local Restrictions Support Grants (COVID-19),"2,096.00",An Individual
20/01/2021,Closed Business Lockdown Grants (COVID-19),Closed Business Lockdown Grants (COVID-19),"4,000.00",An Individual
20/01/2021,Local Restrictions Support Grants � Mandatory Closed (COVID-19),Local Restrictions Support Grants (COVID-19),"2,001.00",An Individual
01/03/2021,Local Restrictions Support Grants � Mandatory Closed (COVID-19),Local Restrictions Support Grants (COVID-19),"2,096.00",An Individual
17/02/2021,Closed Business Lockdown Grants (COVID-19),Closed Business Lockdown Grants (COVID-19),"6,000.00",An Individual
03/02/2021,Local Restrictions Support Grants � Mandatory Closed (COVID-19),Local Restrictions Support Grants (COVID-19),"2,000.00",An Individual
17/02/2021,Local Restrictions Support Grants � Mandatory Closed (COVID-19),Local Restrictions Support Grants (COVID-19),"3,000.00",An Individual
01/03/2021,Local Restrictions Support Grants � Mandatory Closed (COVID-19),Local Restrictions Support Grants (COVID-19),"3,143.00",An Individual
03/03/2021,Closed Business Lockdown Grants (COVID-19),Closed Business Lockdown Grants (COVID-19),"4,000.00",An Individual
03/03/2021,Local Restrictions Support Grants � Mandatory Closed (COVID-19),Local Restrictions Support Grants (COVID-19),"1,334.00",An Individual
03/03/2021,Local Restrictions Support Grants � Mandatory Closed (COVID-19),Local Restrictions Support Grants (COVID-19),"2,096.00",An Individual
03/03/2021,Local Restrictions Support Grants � Mandatory Closed (COVID-19),Local Restrictions Support Grants (COVID-19),"2,001.00",An Individual
17/02/2021,Closed Business Lockdown Grants (COVID-19),Closed Business Lockdown Grants (COVID-19),"4,000.00",An Individual
20/01/2021,Local Restrictions Support Grants � Mandatory Closed (COVID-19),Local Restrictions Support Grants (COVID-19),"1,334.00",An Individual
17/02/2021,Local Restrictions Support Grants � Mandatory Closed (COVID-19),Local Restrictions Support Grants (COVID-19),"2,001.00",An Individual
01/03/2021,Local Restrictions Support Grants � Mandatory Closed (COVID-19),Local Restrictions Support Grants (COVID-19),"2,096.00",An Individual
29/01/2021,Closed Business Lockdown Grants (COVID-19),Closed Business Lockdown Grants (COVID-19),"4,000.00",An Individual
20/01/2021,Local Restrictions Support Grants � Mandatory Closed (COVID-19),Local Restrictions Support Grants (COVID-19),"1,334.00",An Individual
29/01/2021,Local Restrictions Support Grants � Mandatory Closed (COVID-19),Local Restrictions Support Grants (COVID-19),"2,001.00",An Individual
01/03/2021,Local Restrictions Support Grants � Mandatory Closed (COVID-19),Local Restrictions Support Grants (COVID-19),"2,096.00",An Individual
17/03/2021,Closed Business Lockdown Grants (COVID-19),Closed Business Lockdown Grants (COVID-19),"4,000.00",An Individual
17/03/2021,Local Restrictions Support Grants � Mandatory Closed (COVID-19),Local Restrictions Support Grants (COVID-19),"2,096.00",An Individual
17/03/2021,Local Restrictions Support Grants � Mandatory Closed (COVID-19),Local Restrictions Support Grants (COVID-19),"2,001.00",An Individual
10/03/2021,Closed Business Lockdown Grants (COVID-19),Closed Business Lockdown Grants (COVID-19),"4,000.00",An Individual
10/03/2021,Local Restrictions Support Grants � Mandatory Closed (COVID-19),Local Restrictions Support Grants (COVID-19),"2,001.00",An Individual
10/03/2021,Local Restrictions Support Grants � Mandatory Closed (COVID-19),Local Restrictions Support Grants (COVID-19),"1,334.00",An Individual
10/03/2021,Local Restrictions Support Grants � Mandatory Closed (COVID-19),Local Restrictions Support Grants (COVID-19),"2,096.00",An Individual
08/03/2021,Closed Business Lockdown Grants (COVID-19),Closed Business Lockdown Grants (COVID-19),"4,000.00",An Individual
08/03/2021,Local Restrictions Support Grants � Mandatory Closed (COVID-19),Local Restrictions Support Grants (COVID-19),"2,001.00",An Individual
08/03/2021,Local Restrictions Support Grants � Mandatory Closed (COVID-19),Local Restrictions Support Grants (COVID-19),"2,096.00",An Individual
08/03/2021,Local Restrictions Support Grants � Mandatory Closed (COVID-19),Local Restrictions Support Grants (COVID-19),"1,334.00",An Individual
20/01/2021,Closed Business Lockdown Grants (COVID-19),Closed Business Lockdown Grants (COVID-19),"4,000.00",An Individual
20/01/2021,Local Restrictions Support Grants � Mandatory Closed (COVID-19),Local Restrictions Support Grants (COVID-19),"2,001.00",An Individual
22/01/2021,Local Restrictions Support Grants � Mandatory Closed (COVID-19),Local Restrictions Support Grants (COVID-19),667.00,An Individual
22/01/2021,Local Restrictions Support Grants � Mandatory Closed (COVID-19),Local Restrictions Support Grants (COVID-19),667.00,An Individual
01/03/2021,Local Restrictions Support Grants � Mandatory Closed (COVID-19),Local Restrictions Support Grants (COVID-19),"2,048.35",An Individual
20/01/2021,Closed Business Lockdown Grants (COVID-19),Closed Business Lockdown Grants (COVID-19),"4,000.00",An Individual
20/01/2021,Local Restrictions Support Grants � Mandatory Closed (COVID-19),Local Restrictions Support Grants (COVID-19),"2,001.00",An Individual
22/01/2021,Local Restrictions Support Grants � Mandatory Closed (COVID-19),Local Restrictions Support Grants (COVID-19),667.00,An Individual
22/01/2021,Local Restrictions Support Grants � Mandatory Closed (COVID-19),Local Restrictions Support Grants (COVID-19),667.00,An Individual
01/03/2021,Local Restrictions Support Grants � Mandatory Closed (COVID-19),Local Restrictions Support Grants (COVID-19),"2,048.35",An Individual
10/02/2021,Closed Business Lockdown Grants (COVID-19),Closed Business Lockdown Grants (COVID-19),"4,000.00",An Individual
10/02/2021,Local Restrictions Support Grants � Mandatory Closed (COVID-19),Local Restrictions Support Grants (COVID-19),"1,334.00",An Individual
10/02/2021,Local Restrictions Support Grants � Mandatory Closed (COVID-19),Local Restrictions Support Grants (COVID-19),"2,001.00",An Individual
01/03/2021,Local Restrictions Support Grants � Mandatory Closed (COVID-19),Local Restrictions Support Grants (COVID-19),"2,096.00",An Individual
09/03/2021,Market Rental Deposits,Burton Retail Market,595.22,An Individual
03/03/2021,Closed Business Lockdown Grants (COVID-19),Closed Business Lockdown Grants (COVID-19),"4,000.00",An Individual
03/03/2021,Closed Business Lockdown Grants (COVID-19),Closed Business Lockdown Grants (COVID-19),"4,000.00",An Individual
03/03/2021,Local Restrictions Support Grants � Mandatory Closed (COVID-19),Local Restrictions Support Grants (COVID-19),"2,096.00",An Individual
03/03/2021,Local Restrictions Support Grants � Mandatory Closed (COVID-19),Local Restrictions Support Grants (COVID-19),"1,334.00",An Individual
03/03/2021,Local Restrictions Support Grants � Mandatory Closed (COVID-19),Local Restrictions Support Grants (COVID-19),"2,096.00",An Individual
03/03/2021,Local Restrictions Support Grants � Mandatory Closed (COVID-19),Local Restrictions Support Grants (COVID-19),"2,001.00",An Individual
03/03/2021,Local Restrictions Support Grants � Mandatory Closed (COVID-19),Local Restrictions Support Grants (COVID-19),"2,001.00",An Individual
03/03/2021,Local Restrictions Support Grants � Mandatory Closed (COVID-19),Local Restrictions Support Grants (COVID-19),"1,334.00",An Individual
24/03/2021,Closed Business Lockdown Grants (COVID-19),Closed Business Lockdown Grants (COVID-19),"4,000.00",An Individual
24/03/2021,Local Restrictions Support Grants � Mandatory Closed (COVID-19),Local Restrictions Support Grants (COVID-19),"2,001.00",An Individual
24/03/2021,Local Restrictions Support Grants � Mandatory Closed (COVID-19),Local Restrictions Support Grants (COVID-19),"2,096.00",An Individual
20/01/2021,Closed Business Lockdown Grants (COVID-19),Closed Business Lockdown Grants (COVID-19),"4,000.00",An Individual
20/01/2021,Local Restrictions Support Grants � Mandatory Closed (COVID-19),Local Restrictions Support Grants (COVID-19),"2,001.00",An Individual
01/03/2021,Local Restrictions Support Grants � Mandatory Closed (COVID-19),Local Restrictions Support Grants (COVID-19),"2,096.00",An Individual
20/01/2021,Closed Business Lockdown Grants (COVID-19),Closed Business Lockdown Grants (COVID-19),"4,000.00",An Individual
20/01/2021,Local Restrictions Support Grants � Mandatory Closed (COVID-19),Local Restrictions Support Grants (COVID-19),"2,001.00",An Individual
01/03/2021,Local Restrictions Support Grants � Mandatory Closed (COVID-19),Local Restrictions Support Grants (COVID-19),"2,096.00",An Individual
20/01/2021,Closed Business Lockdown Grants (COVID-19),Closed Business Lockdown Grants (COVID-19),"4,000.00",An Individual
20/01/2021,Local Restrictions Support Grants � Mandatory Closed (COVID-19),Local Restrictions Support Grants (COVID-19),"2,001.00",An Individual
01/03/2021,Local Restrictions Support Grants � Mandatory Closed (COVID-19),Local Restrictions Support Grants (COVID-19),"2,096.00",An Individual
08/03/2021,Closed Business Lockdown Grants (COVID-19),Closed Business Lockdown Grants (COVID-19),"4,000.00",An Individual
08/03/2021,Local Restrictions Support Grants � Mandatory Closed (COVID-19),Local Restrictions Support Grants (COVID-19),"1,334.00",An Individual
08/03/2021,Local Restrictions Support Grants � Mandatory Closed (COVID-19),Local Restrictions Support Grants (COVID-19),"2,096.00",An Individual
08/03/2021,Local Restrictions Support Grants � Mandatory Closed (COVID-19),Local Restrictions Support Grants (COVID-19),"2,001.00",An Individual
20/01/2021,Closed Business Lockdown Grants (COVID-19),Closed Business Lockdown Grants (COVID-19),"4,000.00",An Individual
20/01/2021,Local Restrictions Support Grants � Mandatory Closed (COVID-19),Local Restrictions Support Grants (COVID-19),"2,001.00",An Individual
22/01/2021,Local Restrictions Support Grants � Mandatory Closed (COVID-19),Local Restrictions Support Grants (COVID-19),667.00,An Individual
22/01/2021,Local Restrictions Support Grants � Mandatory Closed (COVID-19),Local Restrictions Support Grants (COVID-19),667.00,An Individual
01/03/2021,Local Restrictions Support Grants � Mandatory Closed (COVID-19),Local Restrictions Support Grants (COVID-19),"2,048.35",An Individual
08/01/2021,Local Restrictions Support Grants � Discretionary (COVID-19),Local Restrictions Support Grants (COVID-19),"1,334.00",An Individual
24/02/2021,Local Restrictions Support Grants � Discretionary (COVID-19),Local Restrictions Support Grants (COVID-19),"8,666.00",An Individual
06/01/2021,Local Restrictions Support Grants � Mandatory Closed (COVID-19),Local Restrictions Support Grants (COVID-19),"1,334.00",An Individual
08/03/2021,Closed Business Lockdown Grants (COVID-19),Closed Business Lockdown Grants (COVID-19),"4,000.00",An Individual
08/03/2021,Local Restrictions Support Grants � Mandatory Closed (COVID-19),Local Restrictions Support Grants (COVID-19),"1,334.00",An Individual
08/03/2021,Local Restrictions Support Grants � Mandatory Closed (COVID-19),Local Restrictions Support Grants (COVID-19),"2,096.00",An Individual
08/03/2021,Local Restrictions Support Grants � Mandatory Closed (COVID-19),Local Restrictions Support Grants (COVID-19),"2,001.00",An Individual
29/01/2021,Closed Business Lockdown Grants (COVID-19),Closed Business Lockdown Grants (COVID-19),"4,000.00",An Individual
27/01/2021,Local Restrictions Support Grants � Mandatory Closed (COVID-19),Local Restrictions Support Grants (COVID-19),"1,334.00",An Individual
29/01/2021,Local Restrictions Support Grants � Mandatory Closed (COVID-19),Local Restrictions Support Grants (COVID-19),"2,001.00",An Individual
01/03/2021,Local Restrictions Support Grants � Mandatory Closed (COVID-19),Local Restrictions Support Grants (COVID-19),"2,096.00",An Individual
10/03/2021,Closed Business Lockdown Grants (COVID-19),Closed Business Lockdown Grants (COVID-19),"6,000.00",An Individual
10/03/2021,Local Restrictions Support Grants � Mandatory Closed (COVID-19),Local Restrictions Support Grants (COVID-19),"3,000.00",An Individual
10/03/2021,Local Restrictions Support Grants � Mandatory Closed (COVID-19),Local Restrictions Support Grants (COVID-19),"1,000.00",An Individual
10/03/2021,Local Restrictions Support Grants � Mandatory Closed (COVID-19),Local Restrictions Support Grants (COVID-19),"3,143.00",An Individual
10/03/2021,Local Restrictions Support Grants � Mandatory Closed (COVID-19),Local Restrictions Support Grants (COVID-19),"1,000.00",An Individual
10/03/2021,Local Restrictions Support Grants � Mandatory Closed (COVID-19),Local Restrictions Support Grants (COVID-19),"2,000.00",An Individual
20/01/2021,Closed Business Lockdown Grants (COVID-19),Closed Business Lockdown Grants (COVID-19),"4,000.00",An Individual
20/01/2021,Local Restrictions Support Grants � Mandatory Closed (COVID-19),Local Restrictions Support Grants (COVID-19),"2,001.00",An Individual
01/03/2021,Local Restrictions Support Grants � Mandatory Closed (COVID-19),Local Restrictions Support Grants (COVID-19),"2,096.00",An Individual
20/01/2021,Closed Business Lockdown Grants (COVID-19),Closed Business Lockdown Grants (COVID-19),"4,000.00",An Individual
20/01/2021,Local Restrictions Support Grants � Mandatory Closed (COVID-19),Local Restrictions Support Grants (COVID-19),"2,001.00",An Individual
01/03/2021,Local Restrictions Support Grants � Mandatory Closed (COVID-19),Local Restrictions Support Grants (COVID-19),"2,096.00",An Individual
20/01/2021,Closed Business Lockdown Grants (COVID-19),Closed Business Lockdown Grants (COVID-19),"4,000.00",An Individual
20/01/2021,Local Restrictions Support Grants � Mandatory Closed (COVID-19),Local Restrictions Support Grants (COVID-19),"2,001.00",An Individual
22/01/2021,Local Restrictions Support Grants � Mandatory Closed (COVID-19),Local Restrictions Support Grants (COVID-19),667.00,An Individual
22/01/2021,Local Restrictions Support Grants � Mandatory Closed (COVID-19),Local Restrictions Support Grants (COVID-19),667.00,An Individual
01/03/2021,Local Restrictions Support Grants � Mandatory Closed (COVID-19),Local Restrictions Support Grants (COVID-19),"2,048.35",An Individual
20/01/2021,Closed Business Lockdown Grants (COVID-19),Closed Business Lockdown Grants (COVID-19),"4,000.00",An Individual
20/01/2021,Local Restrictions Support Grants � Mandatory Closed (COVID-19),Local Restrictions Support Grants (COVID-19),"2,001.00",An Individual
01/03/2021,Local Restrictions Support Grants � Mandatory Closed (COVID-19),Local Restrictions Support Grants (COVID-19),"2,096.00",An Individual
29/01/2021,Closed Business Lockdown Grants (COVID-19),Closed Business Lockdown Grants (COVID-19),"4,000.00",An Individual
20/01/2021,Local Restrictions Support Grants � Mandatory Closed (COVID-19),Local Restrictions Support Grants (COVID-19),"1,334.00",An Individual
29/01/2021,Local Restrictions Support Grants � Mandatory Closed (COVID-19),Local Restrictions Support Grants (COVID-19),"2,001.00",An Individual
01/03/2021,Local Restrictions Support Grants � Mandatory Closed (COVID-19),Local Restrictions Support Grants (COVID-19),"2,096.00",An Individual
20/01/2021,Closed Business Lockdown Grants (COVID-19),Closed Business Lockdown Grants (COVID-19),"4,000.00",An Individual
20/01/2021,Local Restrictions Support Grants � Mandatory Closed (COVID-19),Local Restrictions Support Grants (COVID-19),"2,001.00",An Individual
01/03/2021,Local Restrictions Support Grants � Mandatory Closed (COVID-19),Local Restrictions Support Grants (COVID-19),"2,096.00",An Individual
24/02/2021,Christmas Support Payment - Wet Led Pubs (COVID-19),Local Restrictions Support Grants (COVID-19),"1,000.00",An Individual
29/01/2021,Closed Business Lockdown Grants (COVID-19),Closed Business Lockdown Grants (COVID-19),"4,000.00",An Individual
27/01/2021,Local Restrictions Support Grants � Mandatory Closed (COVID-19),Local Restrictions Support Grants (COVID-19),"1,334.00",An Individual
29/01/2021,Local Restrictions Support Grants � Mandatory Closed (COVID-19),Local Restrictions Support Grants (COVID-19),"2,001.00",An Individual
01/03/2021,Local Restrictions Support Grants � Mandatory Closed (COVID-19),Local Restrictions Support Grants (COVID-19),"2,096.00",An Individual
24/02/2021,Closed Business Lockdown Grants (COVID-19),Closed Business Lockdown Grants (COVID-19),"4,000.00",An Individual
24/02/2021,Local Restrictions Support Grants � Mandatory Closed (COVID-19),Local Restrictions Support Grants (COVID-19),"2,001.00",An Individual
24/02/2021,Local Restrictions Support Grants � Mandatory Closed (COVID-19),Local Restrictions Support Grants (COVID-19),"1,334.00",An Individual
01/03/2021,Local Restrictions Support Grants � Mandatory Closed (COVID-19),Local Restrictions Support Grants (COVID-19),"2,096.00",An Individual
20/01/2021,Closed Business Lockdown Grants (COVID-19),Closed Business Lockdown Grants (COVID-19),"4,000.00",An Individual
20/01/2021,Local Restrictions Support Grants � Mandatory Closed (COVID-19),Local Restrictions Support Grants (COVID-19),"2,001.00",An Individual
01/03/2021,Local Restrictions Support Grants � Mandatory Closed (COVID-19),Local Restrictions Support Grants (COVID-19),"2,096.00",An Individual
20/01/2021,Closed Business Lockdown Grants (COVID-19),Closed Business Lockdown Grants (COVID-19),"4,000.00",An Individual
20/01/2021,Local Restrictions Support Grants � Mandatory Closed (COVID-19),Local Restrictions Support Grants (COVID-19),"2,001.00",An Individual
01/03/2021,Local Restrictions Support Grants � Mandatory Closed (COVID-19),Local Restrictions Support Grants (COVID-19),"2,096.00",An Individual
20/01/2021,Closed Business Lockdown Grants (COVID-19),Closed Business Lockdown Grants (COVID-19),"4,000.00",An Individual
20/01/2021,Closed Business Lockdown Grants (COVID-19),Closed Business Lockdown Grants (COVID-19),"9,000.00",An Individual
20/01/2021,Local Restrictions Support Grants � Mandatory Closed (COVID-19),Local Restrictions Support Grants (COVID-19),"4,500.00",An Individual
20/01/2021,Local Restrictions Support Grants � Mandatory Closed (COVID-19),Local Restrictions Support Grants (COVID-19),"2,001.00",An Individual
03/02/2021,Local Restrictions Support Grants � Mandatory Closed (COVID-19),Local Restrictions Support Grants (COVID-19),535.71,An Individual
01/03/2021,Local Restrictions Support Grants � Mandatory Closed (COVID-19),Local Restrictions Support Grants (COVID-19),"4,714.00",An Individual
01/03/2021,Local Restrictions Support Grants � Mandatory Closed (COVID-19),Local Restrictions Support Grants (COVID-19),"2,096.00",An Individual
08/03/2021,Closed Business Lockdown Grants (COVID-19),Closed Business Lockdown Grants (COVID-19),"4,000.00",An Individual
08/03/2021,Local Restrictions Support Grants � Mandatory Closed (COVID-19),Local Restrictions Support Grants (COVID-19),"1,334.00",An Individual
08/03/2021,Local Restrictions Support Grants � Mandatory Closed (COVID-19),Local Restrictions Support Grants (COVID-19),667.00,An Individual
08/03/2021,Local Restrictions Support Grants � Mandatory Closed (COVID-19),Local Restrictions Support Grants (COVID-19),"2,001.00",An Individual
08/03/2021,Local Restrictions Support Grants � Mandatory Closed (COVID-19),Local Restrictions Support Grants (COVID-19),"2,096.00",An Individual
08/03/2021,Local Restrictions Support Grants � Mandatory Closed (COVID-19),Local Restrictions Support Grants (COVID-19),667.00,An Individual
03/03/2021,Closed Business Lockdown Grants (COVID-19),Closed Business Lockdown Grants (COVID-19),"4,000.00",An Individual
03/03/2021,Local Restrictions Support Grants � Mandatory Closed (COVID-19),Local Restrictions Support Grants (COVID-19),"2,001.00",An Individual
03/03/2021,Local Restrictions Support Grants � Mandatory Closed (COVID-19),Local Restrictions Support Grants (COVID-19),"2,096.00",An Individual
03/03/2021,Local Restrictions Support Grants � Mandatory Closed (COVID-19),Local Restrictions Support Grants (COVID-19),"1,334.00",An Individual
03/03/2021,Closed Business Lockdown Grants (COVID-19),Closed Business Lockdown Grants (COVID-19),"4,000.00",An Individual
03/03/2021,Local Restrictions Support Grants � Mandatory Closed (COVID-19),Local Restrictions Support Grants (COVID-19),"1,334.00",An Individual
03/03/2021,Local Restrictions Support Grants � Mandatory Closed (COVID-19),Local Restrictions Support Grants (COVID-19),"2,001.00",An Individual
03/03/2021,Local Restrictions Support Grants � Mandatory Closed (COVID-19),Local Restrictions Support Grants (COVID-19),"2,096.00",An Individual
20/01/2021,Closed Business Lockdown Grants (COVID-19),Closed Business Lockdown Grants (COVID-19),"4,000.00",An Individual
20/01/2021,Local Restrictions Support Grants � Mandatory Closed (COVID-19),Local Restrictions Support Grants (COVID-19),"2,001.00",An Individual
01/03/2021,Local Restrictions Support Grants � Mandatory Closed (COVID-19),Local Restrictions Support Grants (COVID-19),"2,096.00",An Individual
20/01/2021,Closed Business Lockdown Grants (COVID-19),Closed Business Lockdown Grants (COVID-19),"4,000.00",An Individual
20/01/2021,Local Restrictions Support Grants � Mandatory Closed (COVID-19),Local Restrictions Support Grants (COVID-19),"2,001.00",An Individual
01/03/2021,Local Restrictions Support Grants � Mandatory Closed (COVID-19),Local Restrictions Support Grants (COVID-19),"2,096.00",An Individual
20/01/2021,Closed Business Lockdown Grants (COVID-19),Closed Business Lockdown Grants (COVID-19),"4,000.00",An Individual
20/01/2021,Local Restrictions Support Grants � Mandatory Closed (COVID-19),Local Restrictions Support Grants (COVID-19),"2,001.00",An Individual
01/03/2021,Local Restrictions Support Grants � Mandatory Closed (COVID-19),Local Restrictions Support Grants (COVID-19),"2,096.00",An Individual
20/01/2021,Closed Business Lockdown Grants (COVID-19),Closed Business Lockdown Grants (COVID-19),"4,000.00",An Individual
20/01/2021,Local Restrictions Support Grants � Mandatory Closed (COVID-19),Local Restrictions Support Grants (COVID-19),"2,001.00",An Individual
01/03/2021,Local Restrictions Support Grants � Mandatory Closed (COVID-19),Local Restrictions Support Grants (COVID-19),"2,096.00",An Individual
17/03/2021,Closed Business Lockdown Grants (COVID-19),Closed Business Lockdown Grants (COVID-19),"4,000.00",An Individual
17/03/2021,Local Restrictions Support Grants � Mandatory Closed (COVID-19),Local Restrictions Support Grants (COVID-19),667.00,An Individual
17/03/2021,Local Restrictions Support Grants � Mandatory Closed (COVID-19),Local Restrictions Support Grants (COVID-19),"2,096.00",An Individual
17/03/2021,Local Restrictions Support Grants � Mandatory Closed (COVID-19),Local Restrictions Support Grants (COVID-19),"1,334.00",An Individual
17/03/2021,Local Restrictions Support Grants � Mandatory Closed (COVID-19),Local Restrictions Support Grants (COVID-19),"2,001.00",An Individual
17/03/2021,Local Restrictions Support Grants � Mandatory Closed (COVID-19),Local Restrictions Support Grants (COVID-19),667.00,An Individual
29/01/2021,Closed Business Lockdown Grants (COVID-19),Closed Business Lockdown Grants (COVID-19),"6,000.00",An Individual
27/01/2021,Local Restrictions Support Grants � Mandatory Closed (COVID-19),Local Restrictions Support Grants (COVID-19),"2,000.00",An Individual
29/01/2021,Local Restrictions Support Grants � Mandatory Closed (COVID-19),Local Restrictions Support Grants (COVID-19),"3,000.00",An Individual
01/03/2021,Local Restrictions Support Grants � Mandatory Closed (COVID-19),Local Restrictions Support Grants (COVID-19),"3,143.00",An Individual
20/01/2021,Closed Business Lockdown Grants (COVID-19),Closed Business Lockdown Grants (COVID-19),"4,000.00",An Individual
20/01/2021,Local Restrictions Support Grants � Mandatory Closed (COVID-19),Local Restrictions Support Grants (COVID-19),"2,001.00",An Individual
01/03/2021,Local Restrictions Support Grants � Mandatory Closed (COVID-19),Local Restrictions Support Grants (COVID-19),"2,096.00",An Individual
20/01/2021,Closed Business Lockdown Grants (COVID-19),Closed Business Lockdown Grants (COVID-19),"4,000.00",An Individual
20/01/2021,Local Restrictions Support Grants � Mandatory Closed (COVID-19),Local Restrictions Support Grants (COVID-19),"2,001.00",An Individual
01/03/2021,Local Restrictions Support Grants � Mandatory Closed (COVID-19),Local Restrictions Support Grants (COVID-19),"2,096.00",An Individual
20/01/2021,Closed Business Lockdown Grants (COVID-19),Closed Business Lockdown Grants (COVID-19),"4,000.00",An Individual
20/01/2021,Local Restrictions Support Grants � Mandatory Closed (COVID-19),Local Restrictions Support Grants (COVID-19),"2,001.00",An Individual
01/03/2021,Local Restrictions Support Grants � Mandatory Closed (COVID-19),Local Restrictions Support Grants (COVID-19),"2,096.00",An Individual
20/01/2021,Closed Business Lockdown Grants (COVID-19),Closed Business Lockdown Grants (COVID-19),"4,000.00",An Individual
20/01/2021,Local Restrictions Support Grants � Mandatory Closed (COVID-19),Local Restrictions Support Grants (COVID-19),"2,001.00",An Individual
01/03/2021,Local Restrictions Support Grants � Mandatory Closed (COVID-19),Local Restrictions Support Grants (COVID-19),"2,096.00",An Individual
20/01/2021,Closed Business Lockdown Grants (COVID-19),Closed Business Lockdown Grants (COVID-19),"4,000.00",An Individual
20/01/2021,Local Restrictions Support Grants � Mandatory Closed (COVID-19),Local Restrictions Support Grants (COVID-19),"2,001.00",An Individual
01/03/2021,Local Restrictions Support Grants � Mandatory Closed (COVID-19),Local Restrictions Support Grants (COVID-19),"2,096.00",An Individual
20/01/2021,Closed Business Lockdown Grants (COVID-19),Closed Business Lockdown Grants (COVID-19),"4,000.00",An Individual
08/01/2021,Local Restrictions Support Grants � Mandatory Closed (COVID-19),Local Restrictions Support Grants (COVID-19),"1,334.00",An Individual
20/01/2021,Local Restrictions Support Grants � Mandatory Closed (COVID-19),Local Restrictions Support Grants (COVID-19),"2,001.00",An Individual
01/03/2021,Local Restrictions Support Grants � Mandatory Closed (COVID-19),Local Restrictions Support Grants (COVID-19),"2,096.00",An Individual
08/03/2021,Closed Business Lockdown Grants (COVID-19),Closed Business Lockdown Grants (COVID-19),"4,000.00",An Individual
08/03/2021,Local Restrictions Support Grants � Mandatory Closed (COVID-19),Local Restrictions Support Grants (COVID-19),"1,334.00",An Individual
08/03/2021,Local Restrictions Support Grants � Mandatory Closed (COVID-19),Local Restrictions Support Grants (COVID-19),"2,096.00",An Individual
08/03/2021,Local Restrictions Support Grants � Mandatory Closed (COVID-19),Local Restrictions Support Grants (COVID-19),"2,001.00",An Individual
20/01/2021,Closed Business Lockdown Grants (COVID-19),Closed Business Lockdown Grants (COVID-19),"4,000.00",An Individual
20/01/2021,Local Restrictions Support Grants � Mandatory Closed (COVID-19),Local Restrictions Support Grants (COVID-19),"2,001.00",An Individual
22/01/2021,Local Restrictions Support Grants � Mandatory Closed (COVID-19),Local Restrictions Support Grants (COVID-19),667.00,An Individual
22/01/2021,Local Restrictions Support Grants � Mandatory Closed (COVID-19),Local Restrictions Support Grants (COVID-19),667.00,An Individual
01/03/2021,Local Restrictions Support Grants � Mandatory Closed (COVID-19),Local Restrictions Support Grants (COVID-19),"2,048.35",An Individual
20/01/2021,Closed Business Lockdown Grants (COVID-19),Closed Business Lockdown Grants (COVID-19),"4,000.00",An Individual
20/01/2021,Local Restrictions Support Grants � Mandatory Closed (COVID-19),Local Restrictions Support Grants (COVID-19),"2,001.00",An Individual
01/03/2021,Local Restrictions Support Grants � Mandatory Closed (COVID-19),Local Restrictions Support Grants (COVID-19),"2,096.00",An Individual
20/01/2021,Closed Business Lockdown Grants (COVID-19),Closed Business Lockdown Grants (COVID-19),"4,000.00",An Individual
20/01/2021,Local Restrictions Support Grants � Mandatory Closed (COVID-19),Local Restrictions Support Grants (COVID-19),"2,001.00",An Individual
01/03/2021,Local Restrictions Support Grants � Mandatory Closed (COVID-19),Local Restrictions Support Grants (COVID-19),"2,096.00",An Individual
10/02/2021,Closed Business Lockdown Grants (COVID-19),Closed Business Lockdown Grants (COVID-19),"4,000.00",An Individual
10/02/2021,Local Restrictions Support Grants � Mandatory Closed (COVID-19),Local Restrictions Support Grants (COVID-19),"1,334.00",An Individual
10/02/2021,Local Restrictions Support Grants � Mandatory Closed (COVID-19),Local Restrictions Support Grants (COVID-19),"2,001.00",An Individual
01/03/2021,Local Restrictions Support Grants � Mandatory Closed (COVID-19),Local Restrictions Support Grants (COVID-19),"2,096.00",An Individual
20/01/2021,Closed Business Lockdown Grants (COVID-19),Closed Business Lockdown Grants (COVID-19),"4,000.00",An Individual
20/01/2021,Closed Business Lockdown Grants (COVID-19),Closed Business Lockdown Grants (COVID-19),"4,000.00",An Individual
20/01/2021,Local Restrictions Support Grants � Mandatory Closed (COVID-19),Local Restrictions Support Grants (COVID-19),"2,001.00",An Individual
20/01/2021,Local Restrictions Support Grants � Mandatory Closed (COVID-19),Local Restrictions Support Grants (COVID-19),"2,001.00",An Individual
22/01/2021,Local Restrictions Support Grants � Mandatory Closed (COVID-19),Local Restrictions Support Grants (COVID-19),667.00,An Individual
22/01/2021,Local Restrictions Support Grants � Mandatory Closed (COVID-19),Local Restrictions Support Grants (COVID-19),667.00,An Individual
22/01/2021,Local Restrictions Support Grants � Mandatory Closed (COVID-19),Local Restrictions Support Grants (COVID-19),667.00,An Individual
22/01/2021,Local Restrictions Support Grants � Mandatory Closed (COVID-19),Local Restrictions Support Grants (COVID-19),667.00,An Individual
01/03/2021,Local Restrictions Support Grants � Mandatory Closed (COVID-19),Local Restrictions Support Grants (COVID-19),"2,048.35",An Individual
01/03/2021,Local Restrictions Support Grants � Mandatory Closed (COVID-19),Local Restrictions Support Grants (COVID-19),"2,048.35",An Individual
20/01/2021,Closed Business Lockdown Grants (COVID-19),Closed Business Lockdown Grants (COVID-19),"4,000.00",An Individual
20/01/2021,Local Restrictions Support Grants � Mandatory Closed (COVID-19),Local Restrictions Support Grants (COVID-19),"2,001.00",An Individual
01/03/2021,Local Restrictions Support Grants � Mandatory Closed (COVID-19),Local Restrictions Support Grants (COVID-19),"2,096.00",An Individual
20/01/2021,Closed Business Lockdown Grants (COVID-19),Closed Business Lockdown Grants (COVID-19),"4,000.00",An Individual
08/01/2021,Local Restrictions Support Grants � Mandatory Closed (COVID-19),Local Restrictions Support Grants (COVID-19),667.00,An Individual
08/01/2021,Local Restrictions Support Grants � Mandatory Closed (COVID-19),Local Restrictions Support Grants (COVID-19),667.00,An Individual
20/01/2021,Local Restrictions Support Grants � Mandatory Closed (COVID-19),Local Restrictions Support Grants (COVID-19),"2,001.00",An Individual
01/03/2021,Local Restrictions Support Grants � Mandatory Closed (COVID-19),Local Restrictions Support Grants (COVID-19),"2,048.35",An Individual
10/03/2021,Closed Business Lockdown Grants (COVID-19),Closed Business Lockdown Grants (COVID-19),"4,000.00",An Individual
10/03/2021,Local Restrictions Support Grants � Mandatory Closed (COVID-19),Local Restrictions Support Grants (COVID-19),"2,096.00",An Individual
10/03/2021,Local Restrictions Support Grants � Mandatory Closed (COVID-19),Local Restrictions Support Grants (COVID-19),"2,001.00",An Individual
20/01/2021,Closed Business Lockdown Grants (COVID-19),Closed Business Lockdown Grants (COVID-19),"4,000.00",An Individual
08/01/2021,Local Restrictions Support Grants � Mandatory Closed (COVID-19),Local Restrictions Support Grants (COVID-19),667.00,An Individual
08/01/2021,Local Restrictions Support Grants � Mandatory Closed (COVID-19),Local Restrictions Support Grants (COVID-19),667.00,An Individual
20/01/2021,Local Restrictions Support Grants � Mandatory Closed (COVID-19),Local Restrictions Support Grants (COVID-19),"2,001.00",An Individual
01/03/2021,Local Restrictions Support Grants � Mandatory Closed (COVID-19),Local Restrictions Support Grants (COVID-19),"2,048.35",An Individual
20/01/2021,Closed Business Lockdown Grants (COVID-19),Closed Business Lockdown Grants (COVID-19),"4,000.00",An Individual
20/01/2021,Local Restrictions Support Grants � Mandatory Closed (COVID-19),Local Restrictions Support Grants (COVID-19),"2,001.00",An Individual
22/01/2021,Local Restrictions Support Grants � Mandatory Closed (COVID-19),Local Restrictions Support Grants (COVID-19),667.00,An Individual
22/01/2021,Local Restrictions Support Grants � Mandatory Closed (COVID-19),Local Restrictions Support Grants (COVID-19),667.00,An Individual
01/03/2021,Local Restrictions Support Grants � Mandatory Closed (COVID-19),Local Restrictions Support Grants (COVID-19),"2,048.35",An Individual
20/01/2021,Closed Business Lockdown Grants (COVID-19),Closed Business Lockdown Grants (COVID-19),"4,000.00",An Individual
08/01/2021,Local Restrictions Support Grants � Mandatory Closed (COVID-19),Local Restrictions Support Grants (COVID-19),"1,334.00",An Individual
20/01/2021,Local Restrictions Support Grants � Mandatory Closed (COVID-19),Local Restrictions Support Grants (COVID-19),"2,001.00",An Individual
01/03/2021,Local Restrictions Support Grants � Mandatory Closed (COVID-19),Local Restrictions Support Grants (COVID-19),"2,096.00",An Individual
29/01/2021,Closed Business Lockdown Grants (COVID-19),Closed Business Lockdown Grants (COVID-19),"4,000.00",An Individual
22/01/2021,Local Restrictions Support Grants � Mandatory Closed (COVID-19),Local Restrictions Support Grants (COVID-19),"1,334.00",An Individual
29/01/2021,Local Restrictions Support Grants � Mandatory Closed (COVID-19),Local Restrictions Support Grants (COVID-19),"2,001.00",An Individual
01/03/2021,Local Restrictions Support Grants � Mandatory Closed (COVID-19),Local Restrictions Support Grants (COVID-19),"2,096.00",An Individual
24/02/2021,Closed Business Lockdown Grants (COVID-19),Closed Business Lockdown Grants (COVID-19),"4,000.00",An Individual
24/02/2021,Local Restrictions Support Grants � Mandatory Closed (COVID-19),Local Restrictions Support Grants (COVID-19),"2,001.00",An Individual
24/02/2021,Local Restrictions Support Grants � Mandatory Closed (COVID-19),Local Restrictions Support Grants (COVID-19),"1,334.00",An Individual
01/03/2021,Local Restrictions Support Grants � Mandatory Closed (COVID-19),Local Restrictions Support Grants (COVID-19),"2,096.00",An Individual
27/01/2021,Local Restrictions Support Grants � Discretionary (COVID-19),Local Restrictions Support Grants (COVID-19),"1,334.00",An Individual
24/02/2021,Local Restrictions Support Grants � Discretionary (COVID-19),Local Restrictions Support Grants (COVID-19),"8,666.00",An Individual
29/01/2021,Closed Business Lockdown Grants (COVID-19),Closed Business Lockdown Grants (COVID-19),"4,000.00",An Individual
27/01/2021,Local Restrictions Support Grants � Mandatory Closed (COVID-19),Local Restrictions Support Grants (COVID-19),"1,334.00",An Individual
29/01/2021,Local Restrictions Support Grants � Mandatory Closed (COVID-19),Local Restrictions Support Grants (COVID-19),"2,001.00",An Individual
01/03/2021,Local Restrictions Support Grants � Mandatory Closed (COVID-19),Local Restrictions Support Grants (COVID-19),"2,096.00",An Individual
20/01/2021,Closed Business Lockdown Grants (COVID-19),Closed Business Lockdown Grants (COVID-19),"4,000.00",An Individual
20/01/2021,Local Restrictions Support Grants � Mandatory Closed (COVID-19),Local Restrictions Support Grants (COVID-19),"2,001.00",An Individual
01/03/2021,Local Restrictions Support Grants � Mandatory Closed (COVID-19),Local Restrictions Support Grants (COVID-19),"2,096.00",An Individual
20/01/2021,Closed Business Lockdown Grants (COVID-19),Closed Business Lockdown Grants (COVID-19),"4,000.00",An Individual
20/01/2021,Local Restrictions Support Grants � Mandatory Closed (COVID-19),Local Restrictions Support Grants (COVID-19),"2,001.00",An Individual
01/03/2021,Local Restrictions Support Grants � Mandatory Closed (COVID-19),Local Restrictions Support Grants (COVID-19),"2,096.00",An Individual
20/01/2021,Closed Business Lockdown Grants (COVID-19),Closed Business Lockdown Grants (COVID-19),"4,000.00",An Individual
20/01/2021,Local Restrictions Support Grants � Mandatory Closed (COVID-19),Local Restrictions Support Grants (COVID-19),"2,001.00",An Individual
01/03/2021,Local Restrictions Support Grants � Mandatory Closed (COVID-19),Local Restrictions Support Grants (COVID-19),"2,096.00",An Individual
20/01/2021,Closed Business Lockdown Grants (COVID-19),Closed Business Lockdown Grants (COVID-19),"4,000.00",An Individual
08/01/2021,Local Restrictions Support Grants � Mandatory Closed (COVID-19),Local Restrictions Support Grants (COVID-19),667.00,An Individual
08/01/2021,Local Restrictions Support Grants � Mandatory Closed (COVID-19),Local Restrictions Support Grants (COVID-19),667.00,An Individual
20/01/2021,Local Restrictions Support Grants � Mandatory Closed (COVID-19),Local Restrictions Support Grants (COVID-19),"2,001.00",An Individual
01/03/2021,Local Restrictions Support Grants � Mandatory Closed (COVID-19),Local Restrictions Support Grants (COVID-19),"2,048.35",An Individual
03/03/2021,Closed Business Lockdown Grants (COVID-19),Closed Business Lockdown Grants (COVID-19),"4,000.00",An Individual
03/03/2021,Local Restrictions Support Grants � Mandatory Closed (COVID-19),Local Restrictions Support Grants (COVID-19),"2,096.00",An Individual
03/03/2021,Local Restrictions Support Grants � Mandatory Closed (COVID-19),Local Restrictions Support Grants (COVID-19),"1,334.00",An Individual
03/03/2021,Local Restrictions Support Grants � Mandatory Closed (COVID-19),Local Restrictions Support Grants (COVID-19),"2,001.00",An Individual
20/01/2021,Closed Business Lockdown Grants (COVID-19),Closed Business Lockdown Grants (COVID-19),"4,000.00",An Individual
20/01/2021,Local Restrictions Support Grants � Mandatory Closed (COVID-19),Local Restrictions Support Grants (COVID-19),"2,001.00",An Individual
01/03/2021,Local Restrictions Support Grants � Mandatory Closed (COVID-19),Local Restrictions Support Grants (COVID-19),"2,096.00",An Individual
20/01/2021,Closed Business Lockdown Grants (COVID-19),Closed Business Lockdown Grants (COVID-19),"4,000.00",An Individual
20/01/2021,Local Restrictions Support Grants � Mandatory Closed (COVID-19),Local Restrictions Support Grants (COVID-19),"2,001.00",An Individual
01/03/2021,Local Restrictions Support Grants � Mandatory Closed (COVID-19),Local Restrictions Support Grants (COVID-19),"2,096.00",An Individual
24/02/2021,Closed Business Lockdown Grants (COVID-19),Closed Business Lockdown Grants (COVID-19),"4,000.00",An Individual
24/02/2021,Local Restrictions Support Grants � Mandatory Closed (COVID-19),Local Restrictions Support Grants (COVID-19),"1,334.00",An Individual
24/02/2021,Local Restrictions Support Grants � Mandatory Closed (COVID-19),Local Restrictions Support Grants (COVID-19),"2,001.00",An Individual
01/03/2021,Local Restrictions Support Grants � Mandatory Closed (COVID-19),Local Restrictions Support Grants (COVID-19),"2,096.00",An Individual
08/03/2021,Local Restrictions Support Grants � Discretionary (COVID-19),Local Restrictions Support Grants (COVID-19),"10,000.00",An Individual
20/01/2021,Closed Business Lockdown Grants (COVID-19),Closed Business Lockdown Grants (COVID-19),"4,000.00",An Individual
20/01/2021,Local Restrictions Support Grants � Mandatory Closed (COVID-19),Local Restrictions Support Grants (COVID-19),"2,001.00",An Individual
01/03/2021,Local Restrictions Support Grants � Mandatory Closed (COVID-19),Local Restrictions Support Grants (COVID-19),"2,096.00",An Individual
10/02/2021,Closed Business Lockdown Grants (COVID-19),Closed Business Lockdown Grants (COVID-19),"4,000.00",An Individual
10/02/2021,Local Restrictions Support Grants � Mandatory Closed (COVID-19),Local Restrictions Support Grants (COVID-19),"2,001.00",An Individual
10/02/2021,Local Restrictions Support Grants � Mandatory Closed (COVID-19),Local Restrictions Support Grants (COVID-19),"1,334.00",An Individual
01/03/2021,Local Restrictions Support Grants � Mandatory Closed (COVID-19),Local Restrictions Support Grants (COVID-19),"2,096.00",An Individual
20/01/2021,Closed Business Lockdown Grants (COVID-19),Closed Business Lockdown Grants (COVID-19),"4,000.00",An Individual
20/01/2021,Local Restrictions Support Grants � Mandatory Closed (COVID-19),Local Restrictions Support Grants (COVID-19),"2,001.00",An Individual
01/03/2021,Local Restrictions Support Grants � Mandatory Closed (COVID-19),Local Restrictions Support Grants (COVID-19),"2,096.00",An Individual
20/01/2021,Closed Business Lockdown Grants (COVID-19),Closed Business Lockdown Grants (COVID-19),"4,000.00",An Individual
20/01/2021,Local Restrictions Support Grants � Mandatory Closed (COVID-19),Local Restrictions Support Grants (COVID-19),"2,001.00",An Individual
01/03/2021,Local Restrictions Support Grants � Mandatory Closed (COVID-19),Local Restrictions Support Grants (COVID-19),"2,096.00",An Individual
20/01/2021,Closed Business Lockdown Grants (COVID-19),Closed Business Lockdown Grants (COVID-19),"9,000.00",An Individual
08/01/2021,Local Restrictions Support Grants � Mandatory Closed (COVID-19),Local Restrictions Support Grants (COVID-19),"1,500.00",An Individual
08/01/2021,Local Restrictions Support Grants � Mandatory Closed (COVID-19),Local Restrictions Support Grants (COVID-19),"1,500.00",An Individual
20/01/2021,Local Restrictions Support Grants � Mandatory Closed (COVID-19),Local Restrictions Support Grants (COVID-19),"4,500.00",An Individual
27/01/2021,Local Restrictions Support Grants � Mandatory Closed (COVID-19),Local Restrictions Support Grants (COVID-19),642.86,An Individual
01/03/2021,Local Restrictions Support Grants � Mandatory Closed (COVID-19),Local Restrictions Support Grants (COVID-19),"4,606.85",An Individual
20/01/2021,Closed Business Lockdown Grants (COVID-19),Closed Business Lockdown Grants (COVID-19),"4,000.00",An Individual
20/01/2021,Local Restrictions Support Grants � Mandatory Closed (COVID-19),Local Restrictions Support Grants (COVID-19),"2,001.00",An Individual
01/03/2021,Local Restrictions Support Grants � Mandatory Closed (COVID-19),Local Restrictions Support Grants (COVID-19),"2,096.00",An Individual
20/01/2021,Closed Business Lockdown Grants (COVID-19),Closed Business Lockdown Grants (COVID-19),"4,000.00",An Individual
08/01/2021,Local Restrictions Support Grants � Mandatory Closed (COVID-19),Local Restrictions Support Grants (COVID-19),"1,334.00",An Individual
20/01/2021,Local Restrictions Support Grants � Mandatory Closed (COVID-19),Local Restrictions Support Grants (COVID-19),"2,001.00",An Individual
22/01/2021,Local Restrictions Support Grants � Mandatory Closed (COVID-19),Local Restrictions Support Grants (COVID-19),667.00,An Individual
22/01/2021,Local Restrictions Support Grants � Mandatory Closed (COVID-19),Local Restrictions Support Grants (COVID-19),667.00,An Individual
01/03/2021,Local Restrictions Support Grants � Mandatory Closed (COVID-19),Local Restrictions Support Grants (COVID-19),"2,048.35",An Individual
20/01/2021,Closed Business Lockdown Grants (COVID-19),Closed Business Lockdown Grants (COVID-19),"4,000.00",An Individual
04/01/2021,Local Restrictions Support Grants � Mandatory Closed (COVID-19),Local Restrictions Support Grants (COVID-19),"1,334.00",An Individual
20/01/2021,Local Restrictions Support Grants � Mandatory Closed (COVID-19),Local Restrictions Support Grants (COVID-19),"2,001.00",An Individual
01/03/2021,Local Restrictions Support Grants � Mandatory Closed (COVID-19),Local Restrictions Support Grants (COVID-19),"2,096.00",An Individual
20/01/2021,Closed Business Lockdown Grants (COVID-19),Closed Business Lockdown Grants (COVID-19),"4,000.00",An Individual
20/01/2021,Local Restrictions Support Grants � Mandatory Closed (COVID-19),Local Restrictions Support Grants (COVID-19),"2,001.00",An Individual
01/03/2021,Local Restrictions Support Grants � Mandatory Closed (COVID-19),Local Restrictions Support Grants (COVID-19),"2,096.00",An Individual
15/01/2021,Christmas Support Payment - Wet Led Pubs (COVID-19),Local Restrictions Support Grants (COVID-19),"1,000.00",An Individual
27/01/2021,Local Restrictions Support Grants � Discretionary (COVID-19),Local Restrictions Support Grants (COVID-19),"1,334.00",An Individual
24/02/2021,Local Restrictions Support Grants � Discretionary (COVID-19),Local Restrictions Support Grants (COVID-19),"8,666.00",An Individual
31/03/2021,Closed Business Lockdown Grants (COVID-19),Closed Business Lockdown Grants (COVID-19),"4,000.00",An Individual
31/03/2021,Local Restrictions Support Grants � Mandatory Closed (COVID-19),Local Restrictions Support Grants (COVID-19),"1,334.00",An Individual
31/03/2021,Local Restrictions Support Grants � Mandatory Closed (COVID-19),Local Restrictions Support Grants (COVID-19),667.00,An Individual
31/03/2021,Local Restrictions Support Grants � Mandatory Closed (COVID-19),Local Restrictions Support Grants (COVID-19),"2,001.00",An Individual
31/03/2021,Local Restrictions Support Grants � Mandatory Closed (COVID-19),Local Restrictions Support Grants (COVID-19),667.00,An Individual
31/03/2021,Local Restrictions Support Grants � Mandatory Closed (COVID-19),Local Restrictions Support Grants (COVID-19),"2,096.00",An Individual
20/01/2021,Closed Business Lockdown Grants (COVID-19),Closed Business Lockdown Grants (COVID-19),"4,000.00",An Individual
20/01/2021,Local Restrictions Support Grants � Mandatory Closed (COVID-19),Local Restrictions Support Grants (COVID-19),"2,001.00",An Individual
01/03/2021,Local Restrictions Support Grants � Mandatory Closed (COVID-19),Local Restrictions Support Grants (COVID-19),"2,096.00",An Individual
17/02/2021,Closed Business Lockdown Grants (COVID-19),Closed Business Lockdown Grants (COVID-19),"4,000.00",An Individual
03/02/2021,Local Restrictions Support Grants � Mandatory Closed (COVID-19),Local Restrictions Support Grants (COVID-19),"1,334.00",An Individual
17/02/2021,Local Restrictions Support Grants � Mandatory Closed (COVID-19),Local Restrictions Support Grants (COVID-19),"2,001.00",An Individual
01/03/2021,Local Restrictions Support Grants � Mandatory Closed (COVID-19),Local Restrictions Support Grants (COVID-19),"2,096.00",An Individual
20/01/2021,Closed Business Lockdown Grants (COVID-19),Closed Business Lockdown Grants (COVID-19),"6,000.00",An Individual
20/01/2021,Local Restrictions Support Grants � Mandatory Closed (COVID-19),Local Restrictions Support Grants (COVID-19),"3,000.00",An Individual
01/03/2021,Local Restrictions Support Grants � Mandatory Closed (COVID-19),Local Restrictions Support Grants (COVID-19),"3,143.00",An Individual
20/01/2021,Closed Business Lockdown Grants (COVID-19),Closed Business Lockdown Grants (COVID-19),"4,000.00",An Individual
20/01/2021,Local Restrictions Support Grants � Mandatory Closed (COVID-19),Local Restrictions Support Grants (COVID-19),"2,001.00",An Individual
01/03/2021,Local Restrictions Support Grants � Mandatory Closed (COVID-19),Local Restrictions Support Grants (COVID-19),"2,096.00",An Individual
24/02/2021,Closed Business Lockdown Grants (COVID-19),Closed Business Lockdown Grants (COVID-19),"4,000.00",An Individual
24/02/2021,Local Restrictions Support Grants � Mandatory Closed (COVID-19),Local Restrictions Support Grants (COVID-19),"2,001.00",An Individual
24/02/2021,Local Restrictions Support Grants � Mandatory Closed (COVID-19),Local Restrictions Support Grants (COVID-19),"1,334.00",An Individual
01/03/2021,Local Restrictions Support Grants � Mandatory Closed (COVID-19),Local Restrictions Support Grants (COVID-19),"2,096.00",An Individual
20/01/2021,Closed Business Lockdown Grants (COVID-19),Closed Business Lockdown Grants (COVID-19),"4,000.00",An Individual
20/01/2021,Local Restrictions Support Grants � Mandatory Closed (COVID-19),Local Restrictions Support Grants (COVID-19),"2,001.00",An Individual
01/03/2021,Local Restrictions Support Grants � Mandatory Closed (COVID-19),Local Restrictions Support Grants (COVID-19),"2,096.00",An Individual
17/02/2021,Closed Business Lockdown Grants (COVID-19),Closed Business Lockdown Grants (COVID-19),"4,000.00",An Individual
17/02/2021,Local Restrictions Support Grants � Mandatory Closed (COVID-19),Local Restrictions Support Grants (COVID-19),"1,334.00",An Individual
17/02/2021,Local Restrictions Support Grants � Mandatory Closed (COVID-19),Local Restrictions Support Grants (COVID-19),"2,001.00",An Individual
01/03/2021,Local Restrictions Support Grants � Mandatory Closed (COVID-19),Local Restrictions Support Grants (COVID-19),"2,096.00",An Individual
20/01/2021,Closed Business Lockdown Grants (COVID-19),Closed Business Lockdown Grants (COVID-19),"4,000.00",An Individual
08/01/2021,Local Restrictions Support Grants � Mandatory Closed (COVID-19),Local Restrictions Support Grants (COVID-19),"1,334.00",An Individual
20/01/2021,Local Restrictions Support Grants � Mandatory Closed (COVID-19),Local Restrictions Support Grants (COVID-19),"2,001.00",An Individual
01/03/2021,Local Restrictions Support Grants � Mandatory Closed (COVID-19),Local Restrictions Support Grants (COVID-19),"2,096.00",An Individual
20/01/2021,Closed Business Lockdown Grants (COVID-19),Closed Business Lockdown Grants (COVID-19),"4,000.00",An Individual
20/01/2021,Local Restrictions Support Grants � Mandatory Closed (COVID-19),Local Restrictions Support Grants (COVID-19),"2,001.00",An Individual
01/03/2021,Local Restrictions Support Grants � Mandatory Closed (COVID-19),Local Restrictions Support Grants (COVID-19),"2,096.00",An Individual
20/01/2021,Closed Business Lockdown Grants (COVID-19),Closed Business Lockdown Grants (COVID-19),"6,000.00",An Individual
08/01/2021,Local Restrictions Support Grants � Mandatory Closed (COVID-19),Local Restrictions Support Grants (COVID-19),"1,000.00",An Individual
08/01/2021,Local Restrictions Support Grants � Mandatory Closed (COVID-19),Local Restrictions Support Grants (COVID-19),"1,000.00",An Individual
20/01/2021,Local Restrictions Support Grants � Mandatory Closed (COVID-19),Local Restrictions Support Grants (COVID-19),"3,000.00",An Individual
10/02/2021,Christmas Support Payment - Wet Led Pubs (COVID-19),Local Restrictions Support Grants (COVID-19),"1,000.00",An Individual
01/03/2021,Local Restrictions Support Grants � Mandatory Closed (COVID-19),Local Restrictions Support Grants (COVID-19),"3,071.57",An Individual
10/02/2021,Closed Business Lockdown Grants (COVID-19),Closed Business Lockdown Grants (COVID-19),"6,000.00",An Individual
10/02/2021,Local Restrictions Support Grants � Mandatory Closed (COVID-19),Local Restrictions Support Grants (COVID-19),"3,000.00",An Individual
10/02/2021,Local Restrictions Support Grants � Mandatory Closed (COVID-19),Local Restrictions Support Grants (COVID-19),"2,000.00",An Individual
01/03/2021,Local Restrictions Support Grants � Mandatory Closed (COVID-19),Local Restrictions Support Grants (COVID-19),"3,143.00",An Individual
20/01/2021,Closed Business Lockdown Grants (COVID-19),Closed Business Lockdown Grants (COVID-19),"4,000.00",An Individual
20/01/2021,Local Restrictions Support Grants � Mandatory Closed (COVID-19),Local Restrictions Support Grants (COVID-19),"2,001.00",An Individual
01/03/2021,Local Restrictions Support Grants � Mandatory Closed (COVID-19),Local Restrictions Support Grants (COVID-19),"2,096.00",An Individual
20/01/2021,Closed Business Lockdown Grants (COVID-19),Closed Business Lockdown Grants (COVID-19),"4,000.00",An Individual
20/01/2021,Local Restrictions Support Grants � Mandatory Closed (COVID-19),Local Restrictions Support Grants (COVID-19),"2,001.00",An Individual
01/03/2021,Local Restrictions Support Grants � Mandatory Closed (COVID-19),Local Restrictions Support Grants (COVID-19),"2,096.00",An Individual
20/01/2021,Closed Business Lockdown Grants (COVID-19),Closed Business Lockdown Grants (COVID-19),"4,000.00",An Individual
08/01/2021,Local Restrictions Support Grants � Mandatory Closed (COVID-19),Local Restrictions Support Grants (COVID-19),667.00,An Individual
08/01/2021,Local Restrictions Support Grants � Mandatory Closed (COVID-19),Local Restrictions Support Grants (COVID-19),667.00,An Individual
20/01/2021,Local Restrictions Support Grants � Mandatory Closed (COVID-19),Local Restrictions Support Grants (COVID-19),"2,001.00",An Individual
01/03/2021,Local Restrictions Support Grants � Mandatory Closed (COVID-19),Local Restrictions Support Grants (COVID-19),"2,048.35",An Individual
29/01/2021,Closed Business Lockdown Grants (COVID-19),Closed Business Lockdown Grants (COVID-19),"4,000.00",An Individual
20/01/2021,Local Restrictions Support Grants � Mandatory Closed (COVID-19),Local Restrictions Support Grants (COVID-19),"1,334.00",An Individual
29/01/2021,Local Restrictions Support Grants � Mandatory Closed (COVID-19),Local Restrictions Support Grants (COVID-19),"2,001.00",An Individual
01/03/2021,Local Restrictions Support Grants � Mandatory Closed (COVID-19),Local Restrictions Support Grants (COVID-19),"2,096.00",An Individual
20/01/2021,Closed Business Lockdown Grants (COVID-19),Closed Business Lockdown Grants (COVID-19),"4,000.00",An Individual
08/01/2021,Local Restrictions Support Grants � Mandatory Closed (COVID-19),Local Restrictions Support Grants (COVID-19),667.00,An Individual
08/01/2021,Local Restrictions Support Grants � Mandatory Closed (COVID-19),Local Restrictions Support Grants (COVID-19),667.00,An Individual
13/01/2021,Christmas Support Payment - Wet Led Pubs (COVID-19),Local Restrictions Support Grants (COVID-19),"1,000.00",An Individual
20/01/2021,Local Restrictions Support Grants � Mandatory Closed (COVID-19),Local Restrictions Support Grants (COVID-19),"2,001.00",An Individual
01/03/2021,Local Restrictions Support Grants � Mandatory Closed (COVID-19),Local Restrictions Support Grants (COVID-19),"2,048.35",An Individual
03/03/2021,Closed Business Lockdown Grants (COVID-19),Closed Business Lockdown Grants (COVID-19),"4,000.00",An Individual
03/03/2021,Local Restrictions Support Grants � Mandatory Closed (COVID-19),Local Restrictions Support Grants (COVID-19),"2,096.00",An Individual
03/03/2021,Local Restrictions Support Grants � Mandatory Closed (COVID-19),Local Restrictions Support Grants (COVID-19),"1,334.00",An Individual
03/03/2021,Local Restrictions Support Grants � Mandatory Closed (COVID-19),Local Restrictions Support Grants (COVID-19),"2,001.00",An Individual
29/01/2021,Closed Business Lockdown Grants (COVID-19),Closed Business Lockdown Grants (COVID-19),"4,000.00",An Individual
27/01/2021,Local Restrictions Support Grants � Mandatory Closed (COVID-19),Local Restrictions Support Grants (COVID-19),"1,334.00",An Individual
29/01/2021,Local Restrictions Support Grants � Mandatory Closed (COVID-19),Local Restrictions Support Grants (COVID-19),"2,001.00",An Individual
01/03/2021,Local Restrictions Support Grants � Mandatory Closed (COVID-19),Local Restrictions Support Grants (COVID-19),"2,096.00",An Individual
17/02/2021,Closed Business Lockdown Grants (COVID-19),Closed Business Lockdown Grants (COVID-19),"4,000.00",An Individual
17/02/2021,Local Restrictions Support Grants � Mandatory Closed (COVID-19),Local Restrictions Support Grants (COVID-19),"1,334.00",An Individual
17/02/2021,Local Restrictions Support Grants � Mandatory Closed (COVID-19),Local Restrictions Support Grants (COVID-19),"2,001.00",An Individual
01/03/2021,Local Restrictions Support Grants � Mandatory Closed (COVID-19),Local Restrictions Support Grants (COVID-19),"2,096.00",An Individual
20/01/2021,Closed Business Lockdown Grants (COVID-19),Closed Business Lockdown Grants (COVID-19),"4,000.00",An Individual
08/01/2021,Local Restrictions Support Grants � Mandatory Closed (COVID-19),Local Restrictions Support Grants (COVID-19),667.00,An Individual
08/01/2021,Local Restrictions Support Grants � Mandatory Closed (COVID-19),Local Restrictions Support Grants (COVID-19),667.00,An Individual
20/01/2021,Local Restrictions Support Grants � Mandatory Closed (COVID-19),Local Restrictions Support Grants (COVID-19),"2,001.00",An Individual
01/03/2021,Local Restrictions Support Grants � Mandatory Closed (COVID-19),Local Restrictions Support Grants (COVID-19),"2,048.35",An Individual
20/01/2021,Closed Business Lockdown Grants (COVID-19),Closed Business Lockdown Grants (COVID-19),"4,000.00",An Individual
20/01/2021,Local Restrictions Support Grants � Mandatory Closed (COVID-19),Local Restrictions Support Grants (COVID-19),"2,001.00",An Individual
01/03/2021,Local Restrictions Support Grants � Mandatory Closed (COVID-19),Local Restrictions Support Grants (COVID-19),"2,096.00",An Individual
20/01/2021,Closed Business Lockdown Grants (COVID-19),Closed Business Lockdown Grants (COVID-19),"4,000.00",An Individual
20/01/2021,Local Restrictions Support Grants � Mandatory Closed (COVID-19),Local Restrictions Support Grants (COVID-19),"2,001.00",An Individual
01/03/2021,Local Restrictions Support Grants � Mandatory Closed (COVID-19),Local Restrictions Support Grants (COVID-19),"2,096.00",An Individual
20/01/2021,Closed Business Lockdown Grants (COVID-19),Closed Business Lockdown Grants (COVID-19),"6,000.00",An Individual
20/01/2021,Local Restrictions Support Grants � Mandatory Closed (COVID-19),Local Restrictions Support Grants (COVID-19),"3,000.00",An Individual
01/03/2021,Local Restrictions Support Grants � Mandatory Closed (COVID-19),Local Restrictions Support Grants (COVID-19),"3,143.00",An Individual
31/03/2021,Closed Business Lockdown Grants (COVID-19),Closed Business Lockdown Grants (COVID-19),"6,000.00",An Individual
31/03/2021,Local Restrictions Support Grants � Mandatory Closed (COVID-19),Local Restrictions Support Grants (COVID-19),"3,000.00",An Individual
31/03/2021,Local Restrictions Support Grants � Mandatory Closed (COVID-19),Local Restrictions Support Grants (COVID-19),"2,000.00",An Individual
31/03/2021,Local Restrictions Support Grants � Mandatory Closed (COVID-19),Local Restrictions Support Grants (COVID-19),"3,143.00",An Individual
20/01/2021,Closed Business Lockdown Grants (COVID-19),Closed Business Lockdown Grants (COVID-19),"6,000.00",An Individual
08/01/2021,Local Restrictions Support Grants � Mandatory Closed (COVID-19),Local Restrictions Support Grants (COVID-19),"1,000.00",An Individual
08/01/2021,Local Restrictions Support Grants � Mandatory Closed (COVID-19),Local Restrictions Support Grants (COVID-19),"1,000.00",An Individual
20/01/2021,Local Restrictions Support Grants � Mandatory Closed (COVID-19),Local Restrictions Support Grants (COVID-19),"3,000.00",An Individual
01/03/2021,Local Restrictions Support Grants � Mandatory Closed (COVID-19),Local Restrictions Support Grants (COVID-19),"3,071.57",An Individual
20/01/2021,Closed Business Lockdown Grants (COVID-19),Closed Business Lockdown Grants (COVID-19),"4,000.00",An Individual
06/01/2021,Local Restrictions Support Grants � Mandatory Closed (COVID-19),Local Restrictions Support Grants (COVID-19),"1,334.00",An Individual
20/01/2021,Local Restrictions Support Grants � Mandatory Closed (COVID-19),Local Restrictions Support Grants (COVID-19),"2,001.00",An Individual
01/03/2021,Local Restrictions Support Grants � Mandatory Closed (COVID-19),Local Restrictions Support Grants (COVID-19),"2,096.00",An Individual
24/03/2021,Local Restrictions Support Grants � Discretionary (COVID-19),Local Restrictions Support Grants (COVID-19),"10,000.00",An Individual
20/01/2021,Closed Business Lockdown Grants (COVID-19),Closed Business Lockdown Grants (COVID-19),"4,000.00",An Individual
04/01/2021,Local Restrictions Support Grants � Mandatory Closed (COVID-19),Local Restrictions Support Grants (COVID-19),"1,334.00",An Individual
20/01/2021,Local Restrictions Support Grants � Mandatory Closed (COVID-19),Local Restrictions Support Grants (COVID-19),"2,001.00",An Individual
01/03/2021,Local Restrictions Support Grants � Mandatory Closed (COVID-19),Local Restrictions Support Grants (COVID-19),"2,096.00",An Individual
20/01/2021,Closed Business Lockdown Grants (COVID-19),Closed Business Lockdown Grants (COVID-19),"6,000.00",An Individual
08/01/2021,Local Restrictions Support Grants � Mandatory Closed (COVID-19),Local Restrictions Support Grants (COVID-19),"1,000.00",An Individual
08/01/2021,Local Restrictions Support Grants � Mandatory Closed (COVID-19),Local Restrictions Support Grants (COVID-19),"1,000.00",An Individual
20/01/2021,Local Restrictions Support Grants � Mandatory Closed (COVID-19),Local Restrictions Support Grants (COVID-19),"3,000.00",An Individual
01/03/2021,Local Restrictions Support Grants � Mandatory Closed (COVID-19),Local Restrictions Support Grants (COVID-19),"3,071.57",An Individual
10/02/2021,Closed Business Lockdown Grants (COVID-19),Closed Business Lockdown Grants (COVID-19),"4,000.00",An Individual
10/02/2021,Local Restrictions Support Grants � Mandatory Closed (COVID-19),Local Restrictions Support Grants (COVID-19),"1,334.00",An Individual
10/02/2021,Local Restrictions Support Grants � Mandatory Closed (COVID-19),Local Restrictions Support Grants (COVID-19),"2,001.00",An Individual
01/03/2021,Local Restrictions Support Grants � Mandatory Closed (COVID-19),Local Restrictions Support Grants (COVID-19),"2,096.00",An Individual
08/03/2021,Closed Business Lockdown Grants (COVID-19),Closed Business Lockdown Grants (COVID-19),"4,000.00",An Individual
08/03/2021,Local Restrictions Support Grants � Mandatory Closed (COVID-19),Local Restrictions Support Grants (COVID-19),667.00,An Individual
08/03/2021,Local Restrictions Support Grants � Mandatory Closed (COVID-19),Local Restrictions Support Grants (COVID-19),"1,334.00",An Individual
08/03/2021,Local Restrictions Support Grants � Mandatory Closed (COVID-19),Local Restrictions Support Grants (COVID-19),667.00,An Individual
08/03/2021,Local Restrictions Support Grants � Mandatory Closed (COVID-19),Local Restrictions Support Grants (COVID-19),"2,001.00",An Individual
08/03/2021,Local Restrictions Support Grants � Mandatory Closed (COVID-19),Local Restrictions Support Grants (COVID-19),"2,096.00",An Individual
20/01/2021,Closed Business Lockdown Grants (COVID-19),Closed Business Lockdown Grants (COVID-19),"4,000.00",An Individual
20/01/2021,Local Restrictions Support Grants � Mandatory Closed (COVID-19),Local Restrictions Support Grants (COVID-19),"2,001.00",An Individual
01/03/2021,Local Restrictions Support Grants � Mandatory Closed (COVID-19),Local Restrictions Support Grants (COVID-19),"2,096.00",An Individual
29/01/2021,Closed Business Lockdown Grants (COVID-19),Closed Business Lockdown Grants (COVID-19),"4,000.00",An Individual
29/01/2021,Local Restrictions Support Grants � Mandatory Closed (COVID-19),Local Restrictions Support Grants (COVID-19),"1,334.00",An Individual
29/01/2021,Local Restrictions Support Grants � Mandatory Closed (COVID-19),Local Restrictions Support Grants (COVID-19),"2,001.00",An Individual
01/03/2021,Local Restrictions Support Grants � Mandatory Closed (COVID-19),Local Restrictions Support Grants (COVID-19),"2,096.00",An Individual
10/02/2021,Closed Business Lockdown Grants (COVID-19),Closed Business Lockdown Grants (COVID-19),"4,000.00",An Individual
10/02/2021,Local Restrictions Support Grants � Mandatory Closed (COVID-19),Local Restrictions Support Grants (COVID-19),"2,001.00",An Individual
10/02/2021,Local Restrictions Support Grants � Mandatory Closed (COVID-19),Local Restrictions Support Grants (COVID-19),"1,334.00",An Individual
01/03/2021,Local Restrictions Support Grants � Mandatory Closed (COVID-19),Local Restrictions Support Grants (COVID-19),"2,096.00",An Individual
20/01/2021,Closed Business Lockdown Grants (COVID-19),Closed Business Lockdown Grants (COVID-19),"4,000.00",An Individual
20/01/2021,Local Restrictions Support Grants � Mandatory Closed (COVID-19),Local Restrictions Support Grants (COVID-19),"2,001.00",An Individual
01/03/2021,Local Restrictions Support Grants � Mandatory Closed (COVID-19),Local Restrictions Support Grants (COVID-19),"2,096.00",An Individual
20/01/2021,Closed Business Lockdown Grants (COVID-19),Closed Business Lockdown Grants (COVID-19),"4,000.00",An Individual
20/01/2021,Local Restrictions Support Grants � Mandatory Closed (COVID-19),Local Restrictions Support Grants (COVID-19),"2,001.00",An Individual
01/03/2021,Local Restrictions Support Grants � Mandatory Closed (COVID-19),Local Restrictions Support Grants (COVID-19),"2,096.00",An Individual
22/02/2021,Car Park Season Ticket Income,Trinity Road Car Park,527.12,An Individual
20/01/2021,Closed Business Lockdown Grants (COVID-19),Closed Business Lockdown Grants (COVID-19),"4,000.00",An Individual
20/01/2021,Local Restrictions Support Grants � Mandatory Closed (COVID-19),Local Restrictions Support Grants (COVID-19),"2,001.00",An Individual
01/03/2021,Local Restrictions Support Grants � Mandatory Closed (COVID-19),Local Restrictions Support Grants (COVID-19),"2,096.00",An Individual
20/01/2021,Closed Business Lockdown Grants (COVID-19),Closed Business Lockdown Grants (COVID-19),"4,000.00",An Individual
20/01/2021,Local Restrictions Support Grants � Mandatory Closed (COVID-19),Local Restrictions Support Grants (COVID-19),"2,001.00",An Individual
01/03/2021,Local Restrictions Support Grants � Mandatory Closed (COVID-19),Local Restrictions Support Grants (COVID-19),"2,096.00",An Individual
20/01/2021,Closed Business Lockdown Grants (COVID-19),Closed Business Lockdown Grants (COVID-19),"4,000.00",An Individual
20/01/2021,Local Restrictions Support Grants � Mandatory Closed (COVID-19),Local Restrictions Support Grants (COVID-19),"2,001.00",An Individual
01/03/2021,Local Restrictions Support Grants � Mandatory Closed (COVID-19),Local Restrictions Support Grants (COVID-19),"2,096.00",An Individual
08/03/2021,Local Restrictions Support Grants � Mandatory Closed (COVID-19),Local Restrictions Support Grants (COVID-19),529.27,An Individual
31/03/2021,Closed Business Lockdown Grants (COVID-19),Closed Business Lockdown Grants (COVID-19),"4,000.00",An Individual
31/03/2021,Local Restrictions Support Grants � Mandatory Closed (COVID-19),Local Restrictions Support Grants (COVID-19),"2,001.00",An Individual
31/03/2021,Local Restrictions Support Grants � Mandatory Closed (COVID-19),Local Restrictions Support Grants (COVID-19),"1,334.00",An Individual
31/03/2021,Local Restrictions Support Grants � Mandatory Closed (COVID-19),Local Restrictions Support Grants (COVID-19),"2,096.00",An Individual
20/01/2021,Closed Business Lockdown Grants (COVID-19),Closed Business Lockdown Grants (COVID-19),"4,000.00",An Individual
20/01/2021,Local Restrictions Support Grants � Mandatory Closed (COVID-19),Local Restrictions Support Grants (COVID-19),"2,001.00",An Individual
22/01/2021,Local Restrictions Support Grants � Mandatory Closed (COVID-19),Local Restrictions Support Grants (COVID-19),667.00,An Individual
22/01/2021,Local Restrictions Support Grants � Mandatory Closed (COVID-19),Local Restrictions Support Grants (COVID-19),667.00,An Individual
01/03/2021,Local Restrictions Support Grants � Mandatory Closed (COVID-19),Local Restrictions Support Grants (COVID-19),"2,048.35",An Individual
20/01/2021,Closed Business Lockdown Grants (COVID-19),Closed Business Lockdown Grants (COVID-19),"4,000.00",An Individual
20/01/2021,Local Restrictions Support Grants � Mandatory Closed (COVID-19),Local Restrictions Support Grants (COVID-19),"2,001.00",An Individual
01/03/2021,Local Restrictions Support Grants � Mandatory Closed (COVID-19),Local Restrictions Support Grants (COVID-19),"2,096.00",An Individual
17/02/2021,Closed Business Lockdown Grants (COVID-19),Closed Business Lockdown Grants (COVID-19),"4,000.00",An Individual
17/02/2021,Local Restrictions Support Grants � Mandatory Closed (COVID-19),Local Restrictions Support Grants (COVID-19),"2,001.00",An Individual
17/02/2021,Local Restrictions Support Grants � Mandatory Closed (COVID-19),Local Restrictions Support Grants (COVID-19),"1,334.00",An Individual
01/03/2021,Local Restrictions Support Grants � Mandatory Closed (COVID-19),Local Restrictions Support Grants (COVID-19),"2,096.00",An Individual
20/01/2021,Closed Business Lockdown Grants (COVID-19),Closed Business Lockdown Grants (COVID-19),"4,000.00",An Individual
08/01/2021,Local Restrictions Support Grants � Mandatory Closed (COVID-19),Local Restrictions Support Grants (COVID-19),667.00,An Individual
08/01/2021,Local Restrictions Support Grants � Mandatory Closed (COVID-19),Local Restrictions Support Grants (COVID-19),667.00,An Individual
08/01/2021,Christmas Support Payment - Wet Led Pubs (COVID-19),Local Restrictions Support Grants (COVID-19),"1,000.00",An Individual
20/01/2021,Local Restrictions Support Grants � Mandatory Closed (COVID-19),Local Restrictions Support Grants (COVID-19),"2,001.00",An Individual
01/03/2021,Local Restrictions Support Grants � Mandatory Closed (COVID-19),Local Restrictions Support Grants (COVID-19),"2,048.35",An Individual
20/01/2021,Closed Business Lockdown Grants (COVID-19),Closed Business Lockdown Grants (COVID-19),"4,000.00",An Individual
20/01/2021,Local Restrictions Support Grants � Mandatory Closed (COVID-19),Local Restrictions Support Grants (COVID-19),"2,001.00",An Individual
01/03/2021,Local Restrictions Support Grants � Mandatory Closed (COVID-19),Local Restrictions Support Grants (COVID-19),"2,096.00",An Individual
03/02/2021,Local Restrictions Support Grants � Discretionary (COVID-19),Local Restrictions Support Grants (COVID-19),"1,334.00",An Individual
24/02/2021,Local Restrictions Support Grants � Discretionary (COVID-19),Local Restrictions Support Grants (COVID-19),"8,666.00",An Individual
20/01/2021,Closed Business Lockdown Grants (COVID-19),Closed Business Lockdown Grants (COVID-19),"4,000.00",An Individual
20/01/2021,Local Restrictions Support Grants � Mandatory Closed (COVID-19),Local Restrictions Support Grants (COVID-19),"2,001.00",An Individual
01/03/2021,Local Restrictions Support Grants � Mandatory Closed (COVID-19),Local Restrictions Support Grants (COVID-19),"2,096.00",An Individual
20/01/2021,Closed Business Lockdown Grants (COVID-19),Closed Business Lockdown Grants (COVID-19),"4,000.00",An Individual 
20/01/2021,Local Restrictions Support Grants � Mandatory Closed (COVID-19),Local Restrictions Support Grants (COVID-19),"2,001.00",An Individual 
24/03/2021,Local Restrictions Support Grants � Mandatory Closed (COVID-19),Local Restrictions Support Grants (COVID-19),"2,096.00",An Individual 
20/01/2021,Closed Business Lockdown Grants (COVID-19),Closed Business Lockdown Grants (COVID-19),"4,000.00",An Individual 
20/01/2021,Local Restrictions Support Grants � Mandatory Closed (COVID-19),Local Restrictions Support Grants (COVID-19),"2,001.00",An Individual 
22/01/2021,Local Restrictions Support Grants � Mandatory Closed (COVID-19),Local Restrictions Support Grants (COVID-19),667.00,An Individual 
22/01/2021,Local Restrictions Support Grants � Mandatory Closed (COVID-19),Local Restrictions Support Grants (COVID-19),667.00,An Individual 
01/03/2021,Local Restrictions Support Grants � Mandatory Closed (COVID-19),Local Restrictions Support Grants (COVID-19),"2,048.35",An Individual 
20/01/2021,Closed Business Lockdown Grants (COVID-19),Closed Business Lockdown Grants (COVID-19),"4,000.00",An Individual 
20/01/2021,Local Restrictions Support Grants � Mandatory Closed (COVID-19),Local Restrictions Support Grants (COVID-19),"2,001.00",An Individual 
01/03/2021,Local Restrictions Support Grants � Mandatory Closed (COVID-19),Local Restrictions Support Grants (COVID-19),"2,096.00",An Individual 
20/01/2021,Closed Business Lockdown Grants (COVID-19),Closed Business Lockdown Grants (COVID-19),"4,000.00",An Individual 
20/01/2021,Local Restrictions Support Grants � Mandatory Closed (COVID-19),Local Restrictions Support Grants (COVID-19),"2,001.00",An Individual 
22/01/2021,Local Restrictions Support Grants � Mandatory Closed (COVID-19),Local Restrictions Support Grants (COVID-19),667.00,An Individual 
22/01/2021,Local Restrictions Support Grants � Mandatory Closed (COVID-19),Local Restrictions Support Grants (COVID-19),667.00,An Individual 
01/03/2021,Local Restrictions Support Grants � Mandatory Closed (COVID-19),Local Restrictions Support Grants (COVID-19),"2,048.35",An Individual 
20/01/2021,Closed Business Lockdown Grants (COVID-19),Closed Business Lockdown Grants (COVID-19),"4,000.00",An Individual at Mays Beauty
20/01/2021,Local Restrictions Support Grants � Mandatory Closed (COVID-19),Local Restrictions Support Grants (COVID-19),"2,001.00",An Individual at Mays Beauty
01/03/2021,Local Restrictions Support Grants � Mandatory Closed (COVID-19),Local Restrictions Support Grants (COVID-19),"2,096.00",An Individual at Mays Beauty
20/01/2021,Closed Business Lockdown Grants (COVID-19),Closed Business Lockdown Grants (COVID-19),"4,000.00",An Individual E/RGLD
20/01/2021,Local Restrictions Support Grants � Mandatory Closed (COVID-19),Local Restrictions Support Grants (COVID-19),"2,001.00",An Individual E/RGLD
01/03/2021,Local Restrictions Support Grants � Mandatory Closed (COVID-19),Local Restrictions Support Grants (COVID-19),"2,096.00",An Individual E/RGLD
24/02/2021,Closed Business Lockdown Grants (COVID-19),Closed Business Lockdown Grants (COVID-19),"4,000.00",An Individual T/A 8
24/02/2021,Local Restrictions Support Grants � Mandatory Closed (COVID-19),Local Restrictions Support Grants (COVID-19),"1,334.00",An Individual T/A 8
24/02/2021,Local Restrictions Support Grants � Mandatory Closed (COVID-19),Local Restrictions Support Grants (COVID-19),"2,001.00",An Individual T/A 8
01/03/2021,Local Restrictions Support Grants � Mandatory Closed (COVID-19),Local Restrictions Support Grants (COVID-19),"2,096.00",An Individual T/A 8
10/02/2021,Closed Business Lockdown Grants (COVID-19),Closed Business Lockdown Grants (COVID-19),"4,000.00",An Individual T/A Awardboard
10/02/2021,Local Restrictions Support Grants � Mandatory Closed (COVID-19),Local Restrictions Support Grants (COVID-19),"1,334.00",An Individual T/A Awardboard
10/02/2021,Local Restrictions Support Grants � Mandatory Closed (COVID-19),Local Restrictions Support Grants (COVID-19),"2,001.00",An Individual T/A Awardboard
